Body,Body Name,Date Paid,Transaction Number,Amount,Supplier Name,Supplier ID,Supplier post code (first 4 digits),Directorate,Service Area,General Ledger code Description,BVACOP class,Revenue/ Capital Spend
http://statistics.data.gov.uk/id/local-authority/00HY,Wiltshire Council,15/06/2011,1900607955,508.6,Pewsey Vale Coaches Ltd ,100101,SN9 ,Neighbourhood & Planning,Mainstream 16+ Sec,Transport Contracts,Third Party Payments,REVENUE
http://statistics.data.gov.uk/id/local-authority/00HY,Wiltshire Council,15/06/2011,1900607954,"1,777.02",Pewsey Vale Coaches Ltd ,100101,SN9 ,Neighbourhood & Planning,Mainstream Primary,Transport Contracts,Third Party Payments,REVENUE
http://statistics.data.gov.uk/id/local-authority/00HY,Wiltshire Council,15/06/2011,1900607952,"2,396.04",Pewsey Vale Coaches Ltd ,100101,SN9 ,Neighbourhood & Planning,Mainstream Secondary,Transport Contracts,Third Party Payments,REVENUE
http://statistics.data.gov.uk/id/local-authority/00HY,Wiltshire Council,15/06/2011,1900607951,"2,440.62",Pewsey Vale Coaches Ltd ,100101,SN9 ,Neighbourhood & Planning,Mainstream Secondary,Transport Contracts,Third Party Payments,REVENUE
http://statistics.data.gov.uk/id/local-authority/00HY,Wiltshire Council,15/06/2011,1900607955,"2,904.28",Pewsey Vale Coaches Ltd ,100101,SN9 ,Neighbourhood & Planning,Mainstream Secondary,Transport Contracts,Third Party Payments,REVENUE
http://statistics.data.gov.uk/id/local-authority/00HY,Wiltshire Council,15/06/2011,1900607953,"3,060.98",Pewsey Vale Coaches Ltd ,100101,SN9 ,Neighbourhood & Planning,Mainstream Secondary,Transport Contracts,Third Party Payments,REVENUE
http://statistics.data.gov.uk/id/local-authority/00HY,Wiltshire Council,03/06/2011,1900599471,509.2,J V Pickford Ta Faresaver Buses ,100106,SN14,Neighbourhood & Planning,Mainstream 16+ Sec,Transport Contract -  Bus Season Tickets,Third Party Payments,REVENUE
http://statistics.data.gov.uk/id/local-authority/00HY,Wiltshire Council,03/06/2011,1900599472,564.8,J V Pickford Ta Faresaver Buses ,100106,SN14,Neighbourhood & Planning,Public Transport,Transport Contracts,Third Party Payments,REVENUE
http://statistics.data.gov.uk/id/local-authority/00HY,Wiltshire Council,03/06/2011,1900599485,635.94,J V Pickford Ta Faresaver Buses ,100106,SN14,Neighbourhood & Planning,Public Transport,Transport Contracts,Third Party Payments,REVENUE
http://statistics.data.gov.uk/id/local-authority/00HY,Wiltshire Council,03/06/2011,1900599478,648.2,J V Pickford Ta Faresaver Buses ,100106,SN14,Neighbourhood & Planning,Public Transport,Transport Contracts,Third Party Payments,REVENUE
http://statistics.data.gov.uk/id/local-authority/00HY,Wiltshire Council,03/06/2011,1900599496,669.2,J V Pickford Ta Faresaver Buses ,100106,SN14,Neighbourhood & Planning,Public Transport,Transport Contracts,Third Party Payments,REVENUE
http://statistics.data.gov.uk/id/local-authority/00HY,Wiltshire Council,06/06/2011,1900599907,807.71,J V Pickford Ta Faresaver Buses ,100106,SN14,Neighbourhood & Planning,Mainstream Secondary,Transport Contracts,Third Party Payments,REVENUE
http://statistics.data.gov.uk/id/local-authority/00HY,Wiltshire Council,27/06/2011,1900617268,893.76,J V Pickford Ta Faresaver Buses ,100106,SN14,Neighbourhood & Planning,Mainstream 16+ FE,Transport Contract -  Bus Season Tickets,Third Party Payments,REVENUE
http://statistics.data.gov.uk/id/local-authority/00HY,Wiltshire Council,03/06/2011,1900599456,897.46,J V Pickford Ta Faresaver Buses ,100106,SN14,Neighbourhood & Planning,Mainstream Secondary,Transport Contracts,Third Party Payments,REVENUE
http://statistics.data.gov.uk/id/local-authority/00HY,Wiltshire Council,03/06/2011,1900599473,"1,150.80",J V Pickford Ta Faresaver Buses ,100106,SN14,Neighbourhood & Planning,Public Transport,Transport Contracts,Third Party Payments,REVENUE
http://statistics.data.gov.uk/id/local-authority/00HY,Wiltshire Council,03/06/2011,1900599482,"1,292.95",J V Pickford Ta Faresaver Buses ,100106,SN14,Neighbourhood & Planning,Mainstream Primary,Transport Contracts,Third Party Payments,REVENUE
http://statistics.data.gov.uk/id/local-authority/00HY,Wiltshire Council,03/06/2011,1900599492,"1,548.78",J V Pickford Ta Faresaver Buses ,100106,SN14,Neighbourhood & Planning,Public Transport,Transport Contracts,Third Party Payments,REVENUE
http://statistics.data.gov.uk/id/local-authority/00HY,Wiltshire Council,06/06/2011,1900599907,"1,677.55",J V Pickford Ta Faresaver Buses ,100106,SN14,Neighbourhood & Planning,Public Transport,Transport Contracts,Third Party Payments,REVENUE
http://statistics.data.gov.uk/id/local-authority/00HY,Wiltshire Council,03/06/2011,1900599498,"1,733.34",J V Pickford Ta Faresaver Buses ,100106,SN14,Neighbourhood & Planning,Public Transport,Transport Contracts,Third Party Payments,REVENUE
http://statistics.data.gov.uk/id/local-authority/00HY,Wiltshire Council,03/06/2011,1900599456,"1,863.94",J V Pickford Ta Faresaver Buses ,100106,SN14,Neighbourhood & Planning,Public Transport,Transport Contracts,Third Party Payments,REVENUE
http://statistics.data.gov.uk/id/local-authority/00HY,Wiltshire Council,03/06/2011,1900599481,"1,864.98",J V Pickford Ta Faresaver Buses ,100106,SN14,Neighbourhood & Planning,Mainstream Primary,Transport Contracts,Third Party Payments,REVENUE
http://statistics.data.gov.uk/id/local-authority/00HY,Wiltshire Council,03/06/2011,1900599475,"2,058.18",J V Pickford Ta Faresaver Buses ,100106,SN14,Neighbourhood & Planning,Public Transport,Transport Contracts,Third Party Payments,REVENUE
http://statistics.data.gov.uk/id/local-authority/00HY,Wiltshire Council,03/06/2011,1900599462,"2,121.93",J V Pickford Ta Faresaver Buses ,100106,SN14,Neighbourhood & Planning,Mainstream Primary,Transport Contracts,Third Party Payments,REVENUE
http://statistics.data.gov.uk/id/local-authority/00HY,Wiltshire Council,03/06/2011,1900599476,"2,126.35",J V Pickford Ta Faresaver Buses ,100106,SN14,Neighbourhood & Planning,Mainstream Secondary,Transport Contracts,Third Party Payments,REVENUE
http://statistics.data.gov.uk/id/local-authority/00HY,Wiltshire Council,03/06/2011,1900599477,"2,257.49",J V Pickford Ta Faresaver Buses ,100106,SN14,Neighbourhood & Planning,Mainstream Secondary,Transport Contracts,Third Party Payments,REVENUE
http://statistics.data.gov.uk/id/local-authority/00HY,Wiltshire Council,03/06/2011,1900599479,"2,309.04",J V Pickford Ta Faresaver Buses ,100106,SN14,Neighbourhood & Planning,Mainstream 16+ FE,Transport Contracts,Third Party Payments,REVENUE
http://statistics.data.gov.uk/id/local-authority/00HY,Wiltshire Council,03/06/2011,1900599483,"2,369.81",J V Pickford Ta Faresaver Buses ,100106,SN14,Neighbourhood & Planning,Public Transport,Transport Contracts,Third Party Payments,REVENUE
http://statistics.data.gov.uk/id/local-authority/00HY,Wiltshire Council,03/06/2011,1900599499,"2,375.00",J V Pickford Ta Faresaver Buses ,100106,SN14,Neighbourhood & Planning,Mainstream Secondary,Transport Contracts,Third Party Payments,REVENUE
http://statistics.data.gov.uk/id/local-authority/00HY,Wiltshire Council,03/06/2011,1900599490,"2,432.00",J V Pickford Ta Faresaver Buses ,100106,SN14,Neighbourhood & Planning,Mainstream Secondary,Transport Contract -  Bus Season Tickets,Third Party Payments,REVENUE
http://statistics.data.gov.uk/id/local-authority/00HY,Wiltshire Council,03/06/2011,1900599492,"2,675.18",J V Pickford Ta Faresaver Buses ,100106,SN14,Neighbourhood & Planning,Mainstream Primary,Transport Contracts,Third Party Payments,REVENUE
http://statistics.data.gov.uk/id/local-authority/00HY,Wiltshire Council,03/06/2011,1900599492,"2,815.98",J V Pickford Ta Faresaver Buses ,100106,SN14,Neighbourhood & Planning,Mainstream Secondary,Transport Contracts,Third Party Payments,REVENUE
http://statistics.data.gov.uk/id/local-authority/00HY,Wiltshire Council,03/06/2011,1900599500,"3,700.00",J V Pickford Ta Faresaver Buses ,100106,SN14,Neighbourhood & Planning,Public Transport,Transport Contracts,Third Party Payments,REVENUE
http://statistics.data.gov.uk/id/local-authority/00HY,Wiltshire Council,03/06/2011,1900599499,"4,385.00",J V Pickford Ta Faresaver Buses ,100106,SN14,Neighbourhood & Planning,Public Transport,Transport Contracts,Third Party Payments,REVENUE
http://statistics.data.gov.uk/id/local-authority/00HY,Wiltshire Council,03/06/2011,1900599480,"4,534.37",J V Pickford Ta Faresaver Buses ,100106,SN14,Neighbourhood & Planning,Mainstream Secondary,Transport Contracts,Third Party Payments,REVENUE
http://statistics.data.gov.uk/id/local-authority/00HY,Wiltshire Council,03/06/2011,1900599479,"4,688.06",J V Pickford Ta Faresaver Buses ,100106,SN14,Neighbourhood & Planning,Mainstream Secondary,Transport Contracts,Third Party Payments,REVENUE
http://statistics.data.gov.uk/id/local-authority/00HY,Wiltshire Council,27/06/2011,1900617312,"10,962.17",J V Pickford Ta Faresaver Buses ,100106,SN14,Neighbourhood & Planning,Concessionary Fares,Compensation for Concessionary fares,Third Party Payments,REVENUE
http://statistics.data.gov.uk/id/local-authority/00HY,Wiltshire Council,27/06/2011,1900617287,"30,159.29",J V Pickford Ta Faresaver Buses ,100106,SN14,Neighbourhood & Planning,Concessionary Fares,Compensation for Concessionary fares,Third Party Payments,REVENUE
http://statistics.data.gov.uk/id/local-authority/00HY,Wiltshire Council,08/06/2011,1900601878,676.92,C M A Buildbase Ltd ,100114,RG14,Resources,Rural Estates,Preventative Property Maintenance,Premises Related,REVENUE
http://statistics.data.gov.uk/id/local-authority/00HY,Wiltshire Council,10/06/2011,1900602755,"1,691.36",Catleys Gas Centre ,100115,SN10,Resources,Traded,Preventative Property Maintenance,Premises Related,REVENUE
http://statistics.data.gov.uk/id/local-authority/00HY,Wiltshire Council,08/06/2011,1900601873,820.84,Ultra-Warm Ltd ,100118,SN13,Resources,Other,Preventative Property Maintenance,Premises Related,REVENUE
http://statistics.data.gov.uk/id/local-authority/00HY,Wiltshire Council,24/06/2011,1900616953,870.55,Seagers Coaches Ltd ,100122,SN14,Neighbourhood & Planning,DCS North Locality O,Transport Contracts,Third Party Payments,REVENUE
http://statistics.data.gov.uk/id/local-authority/00HY,Wiltshire Council,24/06/2011,1900616953,"2,321.45",Seagers Coaches Ltd ,100122,SN14,Neighbourhood & Planning,DCS North MenHth O65,Transport Contracts,Third Party Payments,REVENUE
http://statistics.data.gov.uk/id/local-authority/00HY,Wiltshire Council,17/06/2011,1900609162,"1,783.23",Tourist Coaches ,100123,SP1 ,Neighbourhood & Planning,Mainstream Secondary,Transport Contracts,Third Party Payments,REVENUE
http://statistics.data.gov.uk/id/local-authority/00HY,Wiltshire Council,17/06/2011,1900609140,"1,939.58",Tourist Coaches ,100123,SP1 ,Neighbourhood & Planning,Mainstream Primary,Transport Contracts,Third Party Payments,REVENUE
http://statistics.data.gov.uk/id/local-authority/00HY,Wiltshire Council,17/06/2011,1900609141,"1,939.58",Tourist Coaches ,100123,SP1 ,Neighbourhood & Planning,Mainstream Primary,Transport Contracts,Third Party Payments,REVENUE
http://statistics.data.gov.uk/id/local-authority/00HY,Wiltshire Council,17/06/2011,1900609142,"1,939.58",Tourist Coaches ,100123,SP1 ,Neighbourhood & Planning,Mainstream Primary,Transport Contracts,Third Party Payments,REVENUE
http://statistics.data.gov.uk/id/local-authority/00HY,Wiltshire Council,17/06/2011,1900609143,"1,939.58",Tourist Coaches ,100123,SP1 ,Neighbourhood & Planning,Mainstream Primary,Transport Contracts,Third Party Payments,REVENUE
http://statistics.data.gov.uk/id/local-authority/00HY,Wiltshire Council,17/06/2011,1900609144,"1,939.58",Tourist Coaches ,100123,SP1 ,Neighbourhood & Planning,Mainstream Primary,Transport Contracts,Third Party Payments,REVENUE
http://statistics.data.gov.uk/id/local-authority/00HY,Wiltshire Council,17/06/2011,1900609145,"1,939.58",Tourist Coaches ,100123,SP1 ,Neighbourhood & Planning,Mainstream Primary,Transport Contracts,Third Party Payments,REVENUE
http://statistics.data.gov.uk/id/local-authority/00HY,Wiltshire Council,17/06/2011,1900609146,"1,939.58",Tourist Coaches ,100123,SP1 ,Neighbourhood & Planning,Mainstream Primary,Transport Contracts,Third Party Payments,REVENUE
http://statistics.data.gov.uk/id/local-authority/00HY,Wiltshire Council,17/06/2011,1900609161,"2,470.00",Tourist Coaches ,100123,SP1 ,Neighbourhood & Planning,Mainstream Secondary,Transport Contracts,Third Party Payments,REVENUE
http://statistics.data.gov.uk/id/local-authority/00HY,Wiltshire Council,27/06/2011,1900617299,"3,057.10",Tourist Coaches ,100123,SP1 ,Neighbourhood & Planning,Concessionary Fares,Compensation for Concessionary fares,Third Party Payments,REVENUE
http://statistics.data.gov.uk/id/local-authority/00HY,Wiltshire Council,09/06/2011,1900602640,561.5,Alpha Taxis ,100124,BA14,Neighbourhood & Planning,DCS CTPLD U65,Transport Contracts,Third Party Payments,REVENUE
http://statistics.data.gov.uk/id/local-authority/00HY,Wiltshire Council,14/06/2011,1900603238,684,Alpha Taxis ,100124,BA14,Neighbourhood & Planning,SEN Secondary,Transport Contracts,Third Party Payments,REVENUE
http://statistics.data.gov.uk/id/local-authority/00HY,Wiltshire Council,23/06/2011,1900616844,931.7,Alpha Taxis ,100124,BA14,Neighbourhood & Planning,YPSS West,Transport Contracts,Third Party Payments,REVENUE
http://statistics.data.gov.uk/id/local-authority/00HY,Wiltshire Council,23/06/2011,1900616844,949.4,Alpha Taxis ,100124,BA14,Neighbourhood & Planning,Ref&Assess Trow,Transport Contracts,Third Party Payments,REVENUE
http://statistics.data.gov.uk/id/local-authority/00HY,Wiltshire Council,09/06/2011,1900602645,"1,048.00",Alpha Taxis ,100124,BA14,Neighbourhood & Planning,DCS CTPLD U65,Transport Contracts,Third Party Payments,REVENUE
http://statistics.data.gov.uk/id/local-authority/00HY,Wiltshire Council,23/06/2011,1900616844,"2,972.80",Alpha Taxis ,100124,BA14,Neighbourhood & Planning,Community Team East,Transport Contracts,Third Party Payments,REVENUE
http://statistics.data.gov.uk/id/local-authority/00HY,Wiltshire Council,15/06/2011,1900608009,627,REDACTED PERSONAL DATA,100126,REDACTED PERSONAL DATA,Neighbourhood & Planning,SEN Secondary,Transport Contracts,Third Party Payments,REVENUE
http://statistics.data.gov.uk/id/local-authority/00HY,Wiltshire Council,15/06/2011,1900608009,627,REDACTED PERSONAL DATA,100126,REDACTED PERSONAL DATA,Neighbourhood & Planning,SEN 16+ Secondary,Transport Contracts,Third Party Payments,REVENUE
http://statistics.data.gov.uk/id/local-authority/00HY,Wiltshire Council,15/06/2011,1900608009,627,REDACTED PERSONAL DATA,100126,REDACTED PERSONAL DATA,Neighbourhood & Planning,SEN Rechargable Exp,Transport Contracts,Third Party Payments,REVENUE
http://statistics.data.gov.uk/id/local-authority/00HY,Wiltshire Council,01/06/2011,1900598520,640,REDACTED PERSONAL DATA,100126,REDACTED PERSONAL DATA,Neighbourhood & Planning,SEN Primary,Transport Contracts,Third Party Payments,REVENUE
http://statistics.data.gov.uk/id/local-authority/00HY,Wiltshire Council,03/06/2011,1900599442,786.89,REDACTED PERSONAL DATA,100126,REDACTED PERSONAL DATA,Neighbourhood & Planning,Mainstream Primary,Transport Contracts,Third Party Payments,REVENUE
http://statistics.data.gov.uk/id/local-authority/00HY,Wiltshire Council,03/06/2011,1900599443,889.2,REDACTED PERSONAL DATA,100126,REDACTED PERSONAL DATA,Neighbourhood & Planning,Mainstream Secondary,Transport Contracts,Third Party Payments,REVENUE
http://statistics.data.gov.uk/id/local-authority/00HY,Wiltshire Council,03/06/2011,1900599455,"1,130.50",REDACTED PERSONAL DATA,100126,REDACTED PERSONAL DATA,Neighbourhood & Planning,SEN Primary,Transport Contracts,Third Party Payments,REVENUE
http://statistics.data.gov.uk/id/local-authority/00HY,Wiltshire Council,15/06/2011,1900608009,"1,254.00",REDACTED PERSONAL DATA,100126,REDACTED PERSONAL DATA,Neighbourhood & Planning,SEN Primary,Transport Contracts,Third Party Payments,REVENUE
http://statistics.data.gov.uk/id/local-authority/00HY,Wiltshire Council,15/06/2011,1900607956,"1,520.00",REDACTED PERSONAL DATA,100126,REDACTED PERSONAL DATA,Neighbourhood & Planning,Mainstream Primary,Transport Contracts,Third Party Payments,REVENUE
http://statistics.data.gov.uk/id/local-authority/00HY,Wiltshire Council,02/06/2011,1900599061,"3,411.92",Andybus  and  Coach Ltd ,100132,SN16,Neighbourhood & Planning,Mainstream 16+ FE,Transport Contracts,Third Party Payments,REVENUE
http://statistics.data.gov.uk/id/local-authority/00HY,Wiltshire Council,02/06/2011,1900599061,"3,800.00",Andybus  and  Coach Ltd ,100132,SN16,Neighbourhood & Planning,Mainstream Primary,Transport Contracts,Third Party Payments,REVENUE
http://statistics.data.gov.uk/id/local-authority/00HY,Wiltshire Council,02/06/2011,1900599061,"4,821.42",Andybus  and  Coach Ltd ,100132,SN16,Neighbourhood & Planning,Mainstream 16+ Sec,Transport Contracts,Third Party Payments,REVENUE
http://statistics.data.gov.uk/id/local-authority/00HY,Wiltshire Council,27/06/2011,1900617271,"5,986.40",Andybus  and  Coach Ltd ,100132,SN16,Neighbourhood & Planning,Concessionary Fares,Compensation for Concessionary fares,Third Party Payments,REVENUE
http://statistics.data.gov.uk/id/local-authority/00HY,Wiltshire Council,02/06/2011,1900599061,"18,846.00",Andybus  and  Coach Ltd ,100132,SN16,Neighbourhood & Planning,Mainstream Secondary,Transport Contracts,Third Party Payments,REVENUE
http://statistics.data.gov.uk/id/local-authority/00HY,Wiltshire Council,02/06/2011,1900599061,"36,497.46",Andybus  and  Coach Ltd ,100132,SN16,Neighbourhood & Planning,Public Transport,Transport Contracts,Third Party Payments,REVENUE
http://statistics.data.gov.uk/id/local-authority/00HY,Wiltshire Council,23/06/2011,1900616161,518,Devizes Taxis ,100136,SN10,Neighbourhood & Planning,SEN Secondary,Transport Contracts,Third Party Payments,REVENUE
http://statistics.data.gov.uk/id/local-authority/00HY,Wiltshire Council,17/06/2011,1900609083,584,Devizes Taxis ,100136,SN10,Neighbourhood & Planning,YPSS Kennet,Transport Contracts,Third Party Payments,REVENUE
http://statistics.data.gov.uk/id/local-authority/00HY,Wiltshire Council,17/06/2011,1900609076,590.4,Devizes Taxis ,100136,SN10,Neighbourhood & Planning,Mainstream Primary,Transport Contracts,Third Party Payments,REVENUE
http://statistics.data.gov.uk/id/local-authority/00HY,Wiltshire Council,27/06/2011,1900617270,630,Devizes Taxis ,100136,SN10,Neighbourhood & Planning,Community Team East,Transport Contracts,Third Party Payments,REVENUE
http://statistics.data.gov.uk/id/local-authority/00HY,Wiltshire Council,17/06/2011,1900609096,641,Devizes Taxis ,100136,SN10,Neighbourhood & Planning,Mainstream Primary,Transport Contracts,Third Party Payments,REVENUE
http://statistics.data.gov.uk/id/local-authority/00HY,Wiltshire Council,17/06/2011,1900609078,720,Devizes Taxis ,100136,SN10,Neighbourhood & Planning,Mainstream Primary,Transport Contracts,Third Party Payments,REVENUE
http://statistics.data.gov.uk/id/local-authority/00HY,Wiltshire Council,17/06/2011,1900609087,760,Devizes Taxis ,100136,SN10,Neighbourhood & Planning,Mainstream Secondary,Transport Contracts,Third Party Payments,REVENUE
http://statistics.data.gov.uk/id/local-authority/00HY,Wiltshire Council,17/06/2011,1900609089,763,Devizes Taxis ,100136,SN10,Neighbourhood & Planning,DCS East Locality PI,Transport Contracts,Third Party Payments,REVENUE
http://statistics.data.gov.uk/id/local-authority/00HY,Wiltshire Council,17/06/2011,1900609075,894.02,Devizes Taxis ,100136,SN10,Neighbourhood & Planning,Mainstream Primary,Transport Contracts,Third Party Payments,REVENUE
http://statistics.data.gov.uk/id/local-authority/00HY,Wiltshire Council,17/06/2011,1900609085,"1,092.00",Devizes Taxis ,100136,SN10,Neighbourhood & Planning,Community Team East,Transport Contracts,Third Party Payments,REVENUE
http://statistics.data.gov.uk/id/local-authority/00HY,Wiltshire Council,23/06/2011,1900616784,"1,203.30",Devizes Taxis ,100136,SN10,Neighbourhood & Planning,Mainstream Primary,Transport Contracts,Third Party Payments,REVENUE
http://statistics.data.gov.uk/id/local-authority/00HY,Wiltshire Council,17/06/2011,1900609099,"1,254.00",Devizes Taxis ,100136,SN10,Neighbourhood & Planning,Mainstream Primary,Transport Contracts,Third Party Payments,REVENUE
http://statistics.data.gov.uk/id/local-authority/00HY,Wiltshire Council,24/06/2011,1900616981,"1,296.00",Devizes Taxis ,100136,SN10,Neighbourhood & Planning,LAC&16+ South&West,Transport Contracts,Third Party Payments,REVENUE
http://statistics.data.gov.uk/id/local-authority/00HY,Wiltshire Council,23/06/2011,1900616784,"2,518.90",Devizes Taxis ,100136,SN10,Neighbourhood & Planning,Connect 2 Wiltshire,Transport Contracts,Third Party Payments,REVENUE
http://statistics.data.gov.uk/id/local-authority/00HY,Wiltshire Council,23/06/2011,1900616803,"5,502.87",Devizes Taxis ,100136,SN10,Neighbourhood & Planning,SEN Secondary,Transport Contracts,Third Party Payments,REVENUE
http://statistics.data.gov.uk/id/local-authority/00HY,Wiltshire Council,08/06/2011,1900601998,508.75,C Bodman   Sons ,100142,SN15,Neighbourhood & Planning,Mainstream 16+ Sec,Transport Contracts,Third Party Payments,REVENUE
http://statistics.data.gov.uk/id/local-authority/00HY,Wiltshire Council,08/06/2011,1900601988,525.01,C Bodman   Sons ,100142,SN15,Neighbourhood & Planning,Public Transport,Transport Contracts,Third Party Payments,REVENUE
http://statistics.data.gov.uk/id/local-authority/00HY,Wiltshire Council,07/06/2011,1900600238,527.76,C Bodman   Sons ,100142,SN15,Neighbourhood & Planning,Mainstream 16+ Sec,Transport Contracts,Third Party Payments,REVENUE
http://statistics.data.gov.uk/id/local-authority/00HY,Wiltshire Council,15/06/2011,1900607999,600.49,C Bodman   Sons ,100142,SN15,Neighbourhood & Planning,Public Transport,Transport Contracts,Third Party Payments,REVENUE
http://statistics.data.gov.uk/id/local-authority/00HY,Wiltshire Council,07/06/2011,1900600240,677.39,C Bodman   Sons ,100142,SN15,Neighbourhood & Planning,Public Transport,Transport Contracts,Third Party Payments,REVENUE
http://statistics.data.gov.uk/id/local-authority/00HY,Wiltshire Council,08/06/2011,1900601996,780.88,C Bodman   Sons ,100142,SN15,Neighbourhood & Planning,Mainstream 16+ Sec,Transport Contracts,Third Party Payments,REVENUE
http://statistics.data.gov.uk/id/local-authority/00HY,Wiltshire Council,29/06/2011,1900620517,841.23,C Bodman   Sons ,100142,SN15,Neighbourhood & Planning,Public Transport,Transport Contracts,Third Party Payments,REVENUE
http://statistics.data.gov.uk/id/local-authority/00HY,Wiltshire Council,07/06/2011,1900600242,874.06,C Bodman   Sons ,100142,SN15,Neighbourhood & Planning,Mainstream Primary,Transport Contracts,Third Party Payments,REVENUE
http://statistics.data.gov.uk/id/local-authority/00HY,Wiltshire Council,08/06/2011,1900601989,"1,497.74",C Bodman   Sons ,100142,SN15,Neighbourhood & Planning,Mainstream Secondary,Transport Contracts,Third Party Payments,REVENUE
http://statistics.data.gov.uk/id/local-authority/00HY,Wiltshire Council,08/06/2011,1900601989,"1,640.13",C Bodman   Sons ,100142,SN15,Neighbourhood & Planning,Mainstream 16+ Sec,Transport Contracts,Third Party Payments,REVENUE
http://statistics.data.gov.uk/id/local-authority/00HY,Wiltshire Council,08/06/2011,1900601996,"1,659.54",C Bodman   Sons ,100142,SN15,Neighbourhood & Planning,Mainstream Secondary,Transport Contracts,Third Party Payments,REVENUE
http://statistics.data.gov.uk/id/local-authority/00HY,Wiltshire Council,07/06/2011,1900600242,"1,783.08",C Bodman   Sons ,100142,SN15,Neighbourhood & Planning,Mainstream Secondary,Transport Contracts,Third Party Payments,REVENUE
http://statistics.data.gov.uk/id/local-authority/00HY,Wiltshire Council,07/06/2011,1900600241,"1,999.40",C Bodman   Sons ,100142,SN15,Neighbourhood & Planning,Public Transport,Transport Contracts,Third Party Payments,REVENUE
http://statistics.data.gov.uk/id/local-authority/00HY,Wiltshire Council,23/06/2011,1900616801,"2,111.40",C Bodman   Sons ,100142,SN15,Neighbourhood & Planning,Mainstream Secondary,Transport Contracts,Third Party Payments,REVENUE
http://statistics.data.gov.uk/id/local-authority/00HY,Wiltshire Council,07/06/2011,1900600238,"2,538.26",C Bodman   Sons ,100142,SN15,Neighbourhood & Planning,Mainstream Secondary,Transport Contracts,Third Party Payments,REVENUE
http://statistics.data.gov.uk/id/local-authority/00HY,Wiltshire Council,08/06/2011,1900601990,"2,843.61",C Bodman   Sons ,100142,SN15,Neighbourhood & Planning,Mainstream Secondary,Transport Contracts,Third Party Payments,REVENUE
http://statistics.data.gov.uk/id/local-authority/00HY,Wiltshire Council,07/06/2011,1900600243,"3,006.73",C Bodman   Sons ,100142,SN15,Neighbourhood & Planning,Mainstream Secondary,Transport Contracts,Third Party Payments,REVENUE
http://statistics.data.gov.uk/id/local-authority/00HY,Wiltshire Council,01/06/2011,1900598533,"3,066.86",C Bodman   Sons ,100142,SN15,Neighbourhood & Planning,Mainstream Secondary,Transport Contracts,Third Party Payments,REVENUE
http://statistics.data.gov.uk/id/local-authority/00HY,Wiltshire Council,07/06/2011,1900600244,"3,066.86",C Bodman   Sons ,100142,SN15,Neighbourhood & Planning,Mainstream Secondary,Transport Contracts,Third Party Payments,REVENUE
http://statistics.data.gov.uk/id/local-authority/00HY,Wiltshire Council,08/06/2011,1900601998,"3,357.75",C Bodman   Sons ,100142,SN15,Neighbourhood & Planning,Mainstream Secondary,Transport Contracts,Third Party Payments,REVENUE
http://statistics.data.gov.uk/id/local-authority/00HY,Wiltshire Council,07/06/2011,1900600246,"3,530.80",C Bodman   Sons ,100142,SN15,Neighbourhood & Planning,Mainstream Secondary,Transport Contracts,Third Party Payments,REVENUE
http://statistics.data.gov.uk/id/local-authority/00HY,Wiltshire Council,08/06/2011,1900601997,"3,808.69",C Bodman   Sons ,100142,SN15,Neighbourhood & Planning,Mainstream Secondary,Transport Contracts,Third Party Payments,REVENUE
http://statistics.data.gov.uk/id/local-authority/00HY,Wiltshire Council,07/06/2011,1900600239,"4,487.24",C Bodman   Sons ,100142,SN15,Neighbourhood & Planning,Mainstream Secondary,Transport Contracts,Third Party Payments,REVENUE
http://statistics.data.gov.uk/id/local-authority/00HY,Wiltshire Council,23/06/2011,1900616812,"5,666.67",C Bodman   Sons ,100142,SN15,Neighbourhood & Planning,Public Transport,Transport Contracts,Third Party Payments,REVENUE
http://statistics.data.gov.uk/id/local-authority/00HY,Wiltshire Council,07/06/2011,1900600242,"5,952.32",C Bodman   Sons ,100142,SN15,Neighbourhood & Planning,Public Transport,Transport Contracts,Third Party Payments,REVENUE
http://statistics.data.gov.uk/id/local-authority/00HY,Wiltshire Council,27/06/2011,1900617272,"17,878.17",C Bodman   Sons ,100142,SN15,Neighbourhood & Planning,Concessionary Fares,Compensation for Concessionary fares,Third Party Payments,REVENUE
http://statistics.data.gov.uk/id/local-authority/00HY,Wiltshire Council,23/06/2011,1900616801,"22,246.77",C Bodman   Sons ,100142,SN15,Neighbourhood & Planning,Public Transport,Transport Contracts,Third Party Payments,REVENUE
http://statistics.data.gov.uk/id/local-authority/00HY,Wiltshire Council,08/06/2011,1900601959,"1,117.86",Shaftesbury  District Motor Services Ltd,100146,SP7 ,Neighbourhood & Planning,Public Transport,Transport Contracts,Third Party Payments,REVENUE
http://statistics.data.gov.uk/id/local-authority/00HY,Wiltshire Council,08/06/2011,1900601959,"2,507.29",Shaftesbury  District Motor Services Ltd,100146,SP7 ,Neighbourhood & Planning,Mainstream Secondary,Transport Contracts,Third Party Payments,REVENUE
http://statistics.data.gov.uk/id/local-authority/00HY,Wiltshire Council,27/06/2011,5105965707,"40,396.39",Elliott Group Ltd ,100161,PE4 ,Wiltshire Council,Wiltshire Council,Premises Related Other Maintenance Costs,Premises Related,CAPITAL
http://statistics.data.gov.uk/id/local-authority/00HY,Wiltshire Council,03/06/2011,1900599489,"2,293.34",Ellisons Coaches ,100162,SN6 ,Neighbourhood & Planning,Mainstream Secondary,Transport Contracts,Third Party Payments,REVENUE
http://statistics.data.gov.uk/id/local-authority/00HY,Wiltshire Council,03/06/2011,1900599494,"2,467.75",Ellisons Coaches ,100162,SN6 ,Neighbourhood & Planning,Mainstream Secondary,Transport Contracts,Third Party Payments,REVENUE
http://statistics.data.gov.uk/id/local-authority/00HY,Wiltshire Council,03/06/2011,1900599493,"2,724.26",Ellisons Coaches ,100162,SN6 ,Neighbourhood & Planning,Mainstream Secondary,Transport Contracts,Third Party Payments,REVENUE
http://statistics.data.gov.uk/id/local-authority/00HY,Wiltshire Council,03/06/2011,1900599495,"2,801.61",Ellisons Coaches ,100162,SN6 ,Neighbourhood & Planning,Mainstream Secondary,Transport Contracts,Third Party Payments,REVENUE
http://statistics.data.gov.uk/id/local-authority/00HY,Wiltshire Council,03/06/2011,1900599487,"2,804.92",Ellisons Coaches ,100162,SN6 ,Neighbourhood & Planning,Mainstream Secondary,Transport Contracts,Third Party Payments,REVENUE
http://statistics.data.gov.uk/id/local-authority/00HY,Wiltshire Council,03/06/2011,1900599486,"2,898.95",Ellisons Coaches ,100162,SN6 ,Neighbourhood & Planning,Mainstream Secondary,Transport Contracts,Third Party Payments,REVENUE
http://statistics.data.gov.uk/id/local-authority/00HY,Wiltshire Council,03/06/2011,1900599488,"2,999.00",Ellisons Coaches ,100162,SN6 ,Neighbourhood & Planning,Mainstream Secondary,Transport Contracts,Third Party Payments,REVENUE
http://statistics.data.gov.uk/id/local-authority/00HY,Wiltshire Council,21/06/2011,1900609680,521.73,Wessex Water ,100164,BS48,Resources,Campus,Water - sewerage,Premises Related,REVENUE
http://statistics.data.gov.uk/id/local-authority/00HY,Wiltshire Council,21/06/2011,1900609504,542.02,Wessex Water ,100164,BS48,Neighbourhood & Planning,Gipsy Liaison,Water - sewerage,Premises Related,REVENUE
http://statistics.data.gov.uk/id/local-authority/00HY,Wiltshire Council,15/06/2011,1900608132,542.15,Wessex Water ,100164,BS48,Resources,SDC Other Offices,Water - sewerage,Premises Related,REVENUE
http://statistics.data.gov.uk/id/local-authority/00HY,Wiltshire Council,23/06/2011,1900616325,547.73,Wessex Water ,100164,BS48,Children & Education,Pavillion,Water - metered,Premises Related,REVENUE
http://statistics.data.gov.uk/id/local-authority/00HY,Wiltshire Council,28/06/2011,1900617468,583.02,Wessex Water ,100164,BS48,Resources,WTP Office,Water - metered,Premises Related,REVENUE
http://statistics.data.gov.uk/id/local-authority/00HY,Wiltshire Council,02/06/2011,1900599098,589.26,Wessex Water ,100164,BS48,Neighbourhood & Planning,North Depots,Water - sewerage,Premises Related,REVENUE
http://statistics.data.gov.uk/id/local-authority/00HY,Wiltshire Council,15/06/2011,1900604018,592.69,Wessex Water ,100164,BS48,Resources,Community,Water - sewerage,Premises Related,REVENUE
http://statistics.data.gov.uk/id/local-authority/00HY,Wiltshire Council,15/06/2011,1900603965,604.24,Wessex Water ,100164,BS48,Resources,Campus,Water - sewerage,Premises Related,REVENUE
http://statistics.data.gov.uk/id/local-authority/00HY,Wiltshire Council,07/06/2011,1900599995,623.6,Wessex Water ,100164,BS48,Neighbourhood & Planning,PrivateSectorLeasing,Water - sewerage,Premises Related,REVENUE
http://statistics.data.gov.uk/id/local-authority/00HY,Wiltshire Council,29/06/2011,1900617744,709.07,Wessex Water ,100164,BS48,Resources,WTP Office,Water - sewerage,Premises Related,REVENUE
http://statistics.data.gov.uk/id/local-authority/00HY,Wiltshire Council,29/06/2011,1900617741,727.58,Wessex Water ,100164,BS48,Resources,WTP Office,Water - sewerage,Premises Related,REVENUE
http://statistics.data.gov.uk/id/local-authority/00HY,Wiltshire Council,29/06/2011,1900617644,"1,006.23",Wessex Water ,100164,BS48,Neighbourhood & Planning,Suth Ops-Public Conv,Water - sewerage,Premises Related,REVENUE
http://statistics.data.gov.uk/id/local-authority/00HY,Wiltshire Council,29/06/2011,1900617737,"1,009.61",Wessex Water ,100164,BS48,Resources,WTP Office,Water - sewerage,Premises Related,REVENUE
http://statistics.data.gov.uk/id/local-authority/00HY,Wiltshire Council,21/06/2011,1900609496,"1,033.72",Wessex Water ,100164,BS48,Neighbourhood & Planning,Gipsy Liaison,Water - sewerage,Premises Related,REVENUE
http://statistics.data.gov.uk/id/local-authority/00HY,Wiltshire Council,01/06/2011,1900594780,"1,056.23",Wessex Water ,100164,BS48,Children & Education,AscotCourtCosts,Water - sewerage,Premises Related,REVENUE
http://statistics.data.gov.uk/id/local-authority/00HY,Wiltshire Council,02/06/2011,1900598729,"1,130.29",Wessex Water ,100164,BS48,Resources,Community,Water - sewerage,Premises Related,REVENUE
http://statistics.data.gov.uk/id/local-authority/00HY,Wiltshire Council,07/06/2011,1900599985,"1,163.04",Wessex Water ,100164,BS48,Resources,Other,Water - metered,Premises Related,REVENUE
http://statistics.data.gov.uk/id/local-authority/00HY,Wiltshire Council,23/06/2011,1900616324,"1,177.31",Wessex Water ,100164,BS48,Neighbourhood & Planning,Highway Depots,Water - metered,Premises Related,REVENUE
http://statistics.data.gov.uk/id/local-authority/00HY,Wiltshire Council,15/06/2011,1900608131,"1,191.62",Wessex Water ,100164,BS48,Neighbourhood & Planning,East Depots,Water - sewerage,Premises Related,REVENUE
http://statistics.data.gov.uk/id/local-authority/00HY,Wiltshire Council,14/06/2011,1900603105,"1,376.71",Wessex Water ,100164,BS48,Children & Education,UnoccupiedSiteSec,Water - sewerage,Premises Related,REVENUE
http://statistics.data.gov.uk/id/local-authority/00HY,Wiltshire Council,28/06/2011,1900617623,"1,554.14",Wessex Water ,100164,BS48,Resources,Campus,Water - sewerage,Premises Related,REVENUE
http://statistics.data.gov.uk/id/local-authority/00HY,Wiltshire Council,01/06/2011,1900594781,"1,647.40",Wessex Water ,100164,BS48,Neighbourhood & Planning,Parks & Open Spaces,Water - sewerage,Premises Related,REVENUE
http://statistics.data.gov.uk/id/local-authority/00HY,Wiltshire Council,28/06/2011,1900617621,"1,784.24",Wessex Water ,100164,BS48,Resources,Campus,Water - sewerage,Premises Related,REVENUE
http://statistics.data.gov.uk/id/local-authority/00HY,Wiltshire Council,02/06/2011,1900598802,"2,141.91",Wessex Water ,100164,BS48,Resources,Campus,Water - sewerage,Premises Related,REVENUE
http://statistics.data.gov.uk/id/local-authority/00HY,Wiltshire Council,21/06/2011,1900609658,"2,704.09",Wessex Water ,100164,BS48,Resources,Rural Estates,Water - metered,Premises Related,REVENUE
http://statistics.data.gov.uk/id/local-authority/00HY,Wiltshire Council,03/06/2011,1900599108,"2,890.07",Wessex Water ,100164,BS48,Children & Education,WestburyYDC,Water - metered,Premises Related,REVENUE
http://statistics.data.gov.uk/id/local-authority/00HY,Wiltshire Council,15/06/2011,1900603308,"6,600.38",Wessex Water ,100164,BS48,Neighbourhood & Planning,Five Rivers,Water - sewerage,Premises Related,REVENUE
http://statistics.data.gov.uk/id/local-authority/00HY,Wiltshire Council,06/06/2011,1900599707,"6,631.26",Wessex Water ,100164,BS48,Neighbourhood & Planning,Five Rivers,Water - sewerage,Premises Related,REVENUE
http://statistics.data.gov.uk/id/local-authority/00HY,Wiltshire Council,28/06/2011,5105960430,"1,200.00",T H White Installation Ltd ,100166,SN10,Children & Education,EYChildCentreTm,Fire Alarms maintenance,Premises Related,REVENUE
http://statistics.data.gov.uk/id/local-authority/00HY,Wiltshire Council,17/06/2011,1900609121,532.05,City Cabs Salisbury Ltd ,100168,SP2 ,Neighbourhood & Planning,DCS CTPLD O65,Transport Contracts,Third Party Payments,REVENUE
http://statistics.data.gov.uk/id/local-authority/00HY,Wiltshire Council,27/06/2011,1900617258,737.44,City Cabs Salisbury Ltd ,100168,SP2 ,Neighbourhood & Planning,DCS CTPLD U65,Transport Contracts,Third Party Payments,REVENUE
http://statistics.data.gov.uk/id/local-authority/00HY,Wiltshire Council,17/06/2011,1900609123,752.4,City Cabs Salisbury Ltd ,100168,SP2 ,Neighbourhood & Planning,Mainstream Primary,Transport Contracts,Third Party Payments,REVENUE
http://statistics.data.gov.uk/id/local-authority/00HY,Wiltshire Council,17/06/2011,1900609111,"1,271.34",City Cabs Salisbury Ltd ,100168,SP2 ,Neighbourhood & Planning,SEN Primary,Transport Contracts,Third Party Payments,REVENUE
http://statistics.data.gov.uk/id/local-authority/00HY,Wiltshire Council,17/06/2011,1900609108,"2,755.76",City Cabs Salisbury Ltd ,100168,SP2 ,Neighbourhood & Planning,Mainstream Primary,Transport Contracts,Third Party Payments,REVENUE
http://statistics.data.gov.uk/id/local-authority/00HY,Wiltshire Council,07/06/2011,1900599331,"131,241.00",E W Beard Holdings Ltd ,100171,SN3 ,Wiltshire Council,Wiltshire Council,Buildings Minor Alterations,Premises Related,CAPITAL
http://statistics.data.gov.uk/id/local-authority/00HY,Wiltshire Council,03/06/2011,1900599335,"206,692.23",E W Beard Holdings Ltd ,100171,SN3 ,Wiltshire Council,Wiltshire Council,Buildings Minor Alterations,Premises Related,CAPITAL
http://statistics.data.gov.uk/id/local-authority/00HY,Wiltshire Council,16/06/2011,1900608385,506,Starline  and  Wessex Taxis 228 ,100172,BA12,Neighbourhood & Planning,Mainstream Primary,Transport Contracts,Third Party Payments,REVENUE
http://statistics.data.gov.uk/id/local-authority/00HY,Wiltshire Council,24/06/2011,1900616966,513,Starline  and  Wessex Taxis 228 ,100172,BA12,Neighbourhood & Planning,SEN Secondary,Transport Contracts,Third Party Payments,REVENUE
http://statistics.data.gov.uk/id/local-authority/00HY,Wiltshire Council,24/06/2011,1900616966,513,Starline  and  Wessex Taxis 228 ,100172,BA12,Neighbourhood & Planning,SEN 16+ Secondary,Transport Contracts,Third Party Payments,REVENUE
http://statistics.data.gov.uk/id/local-authority/00HY,Wiltshire Council,16/06/2011,1900608386,582.84,Starline  and  Wessex Taxis 228 ,100172,BA12,Neighbourhood & Planning,Mainstream Secondary,Transport Contracts,Third Party Payments,REVENUE
http://statistics.data.gov.uk/id/local-authority/00HY,Wiltshire Council,24/06/2011,1900616959,608,Starline  and  Wessex Taxis 228 ,100172,BA12,Neighbourhood & Planning,Mainstream Secondary,Transport Contracts,Third Party Payments,REVENUE
http://statistics.data.gov.uk/id/local-authority/00HY,Wiltshire Council,16/06/2011,1900608403,612.5,Starline  and  Wessex Taxis 228 ,100172,BA12,Neighbourhood & Planning,SEN Primary,Transport Contracts,Third Party Payments,REVENUE
http://statistics.data.gov.uk/id/local-authority/00HY,Wiltshire Council,16/06/2011,1900608395,703.31,Starline  and  Wessex Taxis 228 ,100172,BA12,Neighbourhood & Planning,DCS CTPLD U65,Transport Contracts,Third Party Payments,REVENUE
http://statistics.data.gov.uk/id/local-authority/00HY,Wiltshire Council,16/06/2011,1900608404,720,Starline  and  Wessex Taxis 228 ,100172,BA12,Neighbourhood & Planning,SEN Primary,Transport Contracts,Third Party Payments,REVENUE
http://statistics.data.gov.uk/id/local-authority/00HY,Wiltshire Council,16/06/2011,1900608400,739.2,Starline  and  Wessex Taxis 228 ,100172,BA12,Neighbourhood & Planning,Mainstream Primary,Transport Contracts,Third Party Payments,REVENUE
http://statistics.data.gov.uk/id/local-authority/00HY,Wiltshire Council,16/06/2011,1900608383,834.5,Starline  and  Wessex Taxis 228 ,100172,BA12,Neighbourhood & Planning,Mainstream Secondary,Transport Contracts,Third Party Payments,REVENUE
http://statistics.data.gov.uk/id/local-authority/00HY,Wiltshire Council,16/06/2011,1900608407,836,Starline  and  Wessex Taxis 228 ,100172,BA12,Neighbourhood & Planning,SEN Secondary,Transport Contracts,Third Party Payments,REVENUE
http://statistics.data.gov.uk/id/local-authority/00HY,Wiltshire Council,16/06/2011,1900608392,881,Starline  and  Wessex Taxis 228 ,100172,BA12,Neighbourhood & Planning,Ref&Assess Trow,Transport Contracts,Third Party Payments,REVENUE
http://statistics.data.gov.uk/id/local-authority/00HY,Wiltshire Council,16/06/2011,1900608396,982.05,Starline  and  Wessex Taxis 228 ,100172,BA12,Neighbourhood & Planning,DCS CTPLD U65,Transport Contracts,Third Party Payments,REVENUE
http://statistics.data.gov.uk/id/local-authority/00HY,Wiltshire Council,16/06/2011,1900608397,"1,014.57",Starline  and  Wessex Taxis 228 ,100172,BA12,Neighbourhood & Planning,DCS West Locality OP,Transport Contracts,Third Party Payments,REVENUE
http://statistics.data.gov.uk/id/local-authority/00HY,Wiltshire Council,16/06/2011,1900608384,"1,256.92",Starline  and  Wessex Taxis 228 ,100172,BA12,Neighbourhood & Planning,Mainstream Primary,Transport Contracts,Third Party Payments,REVENUE
http://statistics.data.gov.uk/id/local-authority/00HY,Wiltshire Council,16/06/2011,1900608390,"1,278.00",Starline  and  Wessex Taxis 228 ,100172,BA12,Neighbourhood & Planning,DCS CTPLD U65,Transport Contracts,Third Party Payments,REVENUE
http://statistics.data.gov.uk/id/local-authority/00HY,Wiltshire Council,16/06/2011,1900608388,"1,330.00",Starline  and  Wessex Taxis 228 ,100172,BA12,Neighbourhood & Planning,Mainstream Secondary,Transport Contracts,Third Party Payments,REVENUE
http://statistics.data.gov.uk/id/local-authority/00HY,Wiltshire Council,16/06/2011,1900608380,"2,625.48",Starline  and  Wessex Taxis 228 ,100172,BA12,Neighbourhood & Planning,DCS CTPLD U65,Transport Contracts,Third Party Payments,REVENUE
http://statistics.data.gov.uk/id/local-authority/00HY,Wiltshire Council,06/06/2011,1900599931,677.35,Southern Electric Plc ,100174,PO9 ,Resources,Wkplc Trnsfrm Prprty,Electricity,Premises Related,REVENUE
http://statistics.data.gov.uk/id/local-authority/00HY,Wiltshire Council,02/06/2011,1900598643,817.77,Southern Electric Plc ,100174,PO9 ,Resources,Other,Electricity,Premises Related,REVENUE
http://statistics.data.gov.uk/id/local-authority/00HY,Wiltshire Council,28/06/2011,1900617503,852,Southern Electric Plc ,100174,PO9 ,Resources,Other,Electricity,Premises Related,REVENUE
http://statistics.data.gov.uk/id/local-authority/00HY,Wiltshire Council,14/06/2011,1900603198,"1,555.25",Southern Electric Plc ,100174,PO9 ,Resources,Campus,Electricity,Premises Related,REVENUE
http://statistics.data.gov.uk/id/local-authority/00HY,Wiltshire Council,21/06/2011,1900609541,"2,817.36",Southern Electric Plc ,100174,PO9 ,Resources,WTP Office,Electricity,Premises Related,REVENUE
http://statistics.data.gov.uk/id/local-authority/00HY,Wiltshire Council,17/06/2011,1900609109,540.94,Coachstyle Ltd ,100176,SN14,Neighbourhood & Planning,Mainstream 16+ Sec,Transport Contracts,Third Party Payments,REVENUE
http://statistics.data.gov.uk/id/local-authority/00HY,Wiltshire Council,17/06/2011,1900609109,540.94,Coachstyle Ltd ,100176,SN14,Neighbourhood & Planning,Mainstream 16+ FE,Transport Contracts,Third Party Payments,REVENUE
http://statistics.data.gov.uk/id/local-authority/00HY,Wiltshire Council,17/06/2011,1900609110,663.1,Coachstyle Ltd ,100176,SN14,Neighbourhood & Planning,Mainstream 16+ FE,Transport Contracts,Third Party Payments,REVENUE
http://statistics.data.gov.uk/id/local-authority/00HY,Wiltshire Council,17/06/2011,1900609116,665.45,Coachstyle Ltd ,100176,SN14,Neighbourhood & Planning,Mainstream Primary,Transport Contracts,Third Party Payments,REVENUE
http://statistics.data.gov.uk/id/local-authority/00HY,Wiltshire Council,27/06/2011,1900617311,807.96,Coachstyle Ltd ,100176,SN14,Neighbourhood & Planning,Concessionary Fares,Compensation for Concessionary fares,Third Party Payments,REVENUE
http://statistics.data.gov.uk/id/local-authority/00HY,Wiltshire Council,17/06/2011,1900609112,973.71,Coachstyle Ltd ,100176,SN14,Neighbourhood & Planning,Mainstream 16+ Sec,Transport Contracts,Third Party Payments,REVENUE
http://statistics.data.gov.uk/id/local-authority/00HY,Wiltshire Council,17/06/2011,1900609110,977.21,Coachstyle Ltd ,100176,SN14,Neighbourhood & Planning,Public Transport,Transport Contracts,Third Party Payments,REVENUE
http://statistics.data.gov.uk/id/local-authority/00HY,Wiltshire Council,17/06/2011,1900609112,"1,027.81",Coachstyle Ltd ,100176,SN14,Neighbourhood & Planning,Mainstream 16+ FE,Transport Contracts,Third Party Payments,REVENUE
http://statistics.data.gov.uk/id/local-authority/00HY,Wiltshire Council,17/06/2011,1900609112,"1,081.91",Coachstyle Ltd ,100176,SN14,Neighbourhood & Planning,Public Transport,Transport Contracts,Third Party Payments,REVENUE
http://statistics.data.gov.uk/id/local-authority/00HY,Wiltshire Council,27/06/2011,1900617286,"1,134.37",Coachstyle Ltd ,100176,SN14,Neighbourhood & Planning,Concessionary Fares,Compensation for Concessionary fares,Third Party Payments,REVENUE
http://statistics.data.gov.uk/id/local-authority/00HY,Wiltshire Council,17/06/2011,1900609110,"1,500.71",Coachstyle Ltd ,100176,SN14,Neighbourhood & Planning,Mainstream Secondary,Transport Contracts,Third Party Payments,REVENUE
http://statistics.data.gov.uk/id/local-authority/00HY,Wiltshire Council,17/06/2011,1900609109,"1,622.84",Coachstyle Ltd ,100176,SN14,Neighbourhood & Planning,Public Transport,Transport Contracts,Third Party Payments,REVENUE
http://statistics.data.gov.uk/id/local-authority/00HY,Wiltshire Council,17/06/2011,1900609112,"2,326.09",Coachstyle Ltd ,100176,SN14,Neighbourhood & Planning,Mainstream Secondary,Transport Contracts,Third Party Payments,REVENUE
http://statistics.data.gov.uk/id/local-authority/00HY,Wiltshire Council,17/06/2011,1900609109,"2,704.72",Coachstyle Ltd ,100176,SN14,Neighbourhood & Planning,Mainstream Secondary,Transport Contracts,Third Party Payments,REVENUE
http://statistics.data.gov.uk/id/local-authority/00HY,Wiltshire Council,17/06/2011,1900609104,"3,490.44",Coachstyle Ltd ,100176,SN14,Neighbourhood & Planning,Mainstream Secondary,Transport Contracts,Third Party Payments,REVENUE
http://statistics.data.gov.uk/id/local-authority/00HY,Wiltshire Council,17/06/2011,1900609116,"5,989.07",Coachstyle Ltd ,100176,SN14,Neighbourhood & Planning,Mainstream Secondary,Transport Contracts,Third Party Payments,REVENUE
http://statistics.data.gov.uk/id/local-authority/00HY,Wiltshire Council,20/06/2011,1900609403,"1,760.92",Thamesdown Transport Ltd ,100178,SN2 ,Neighbourhood & Planning,Public Transport,Transport Contracts,Third Party Payments,REVENUE
http://statistics.data.gov.uk/id/local-authority/00HY,Wiltshire Council,23/06/2011,1900616842,"2,284.40",Thamesdown Transport Ltd ,100178,SN2 ,Neighbourhood & Planning,Public Transport,Transport Contracts,Third Party Payments,REVENUE
http://statistics.data.gov.uk/id/local-authority/00HY,Wiltshire Council,20/06/2011,1900609408,"2,430.81",Thamesdown Transport Ltd ,100178,SN2 ,Neighbourhood & Planning,Mainstream Secondary,Transport Contracts,Third Party Payments,REVENUE
http://statistics.data.gov.uk/id/local-authority/00HY,Wiltshire Council,20/06/2011,1900609408,"2,430.81",Thamesdown Transport Ltd ,100178,SN2 ,Neighbourhood & Planning,Mainstream 16+ Sec,Transport Contracts,Third Party Payments,REVENUE
http://statistics.data.gov.uk/id/local-authority/00HY,Wiltshire Council,20/06/2011,1900609404,"3,587.10",Thamesdown Transport Ltd ,100178,SN2 ,Neighbourhood & Planning,Public Transport,Transport Contracts,Third Party Payments,REVENUE
http://statistics.data.gov.uk/id/local-authority/00HY,Wiltshire Council,20/06/2011,1900609408,"5,262.84",Thamesdown Transport Ltd ,100178,SN2 ,Neighbourhood & Planning,Public Transport,Transport Contracts,Third Party Payments,REVENUE
http://statistics.data.gov.uk/id/local-authority/00HY,Wiltshire Council,27/06/2011,1900617298,"145,657.38",Thamesdown Transport Ltd ,100178,SN2 ,Neighbourhood & Planning,Concessionary Fares,Compensation for Concessionary fares,Third Party Payments,REVENUE
http://statistics.data.gov.uk/id/local-authority/00HY,Wiltshire Council,27/06/2011,1900617226,547.43,Wilkins Builders Ltd ,100189,SN11,Resources,Community,Preventative Property Maintenance,Premises Related,REVENUE
http://statistics.data.gov.uk/id/local-authority/00HY,Wiltshire Council,27/06/2011,1900617347,562.53,Wilkins Builders Ltd ,100189,SN11,Resources,Campus,Preventative Property Maintenance,Premises Related,REVENUE
http://statistics.data.gov.uk/id/local-authority/00HY,Wiltshire Council,27/06/2011,1900617220,602.7,Wilkins Builders Ltd ,100189,SN11,Resources,Community,Preventative Property Maintenance,Premises Related,REVENUE
http://statistics.data.gov.uk/id/local-authority/00HY,Wiltshire Council,27/06/2011,1900617217,657.59,Wilkins Builders Ltd ,100189,SN11,Neighbourhood & Planning,Resdntl Trvllr Sites,Preventative Property Maintenance,Premises Related,REVENUE
http://statistics.data.gov.uk/id/local-authority/00HY,Wiltshire Council,16/06/2011,1900598420,917.63,Wilkins Builders Ltd ,100189,SN11,Resources,Investment Estate,Preventative Property Maintenance,Premises Related,REVENUE
http://statistics.data.gov.uk/id/local-authority/00HY,Wiltshire Council,16/06/2011,1900598428,983.64,Wilkins Builders Ltd ,100189,SN11,Resources,Campus,Preventative Property Maintenance,Premises Related,REVENUE
http://statistics.data.gov.uk/id/local-authority/00HY,Wiltshire Council,27/06/2011,1900617219,"1,050.33",Wilkins Builders Ltd ,100189,SN11,Resources,Community,Preventative Property Maintenance,Premises Related,REVENUE
http://statistics.data.gov.uk/id/local-authority/00HY,Wiltshire Council,27/06/2011,1900617214,"1,104.24",Wilkins Builders Ltd ,100189,SN11,Resources,Community,Preventative Property Maintenance,Premises Related,REVENUE
http://statistics.data.gov.uk/id/local-authority/00HY,Wiltshire Council,27/06/2011,1900617222,"1,230.00",Wilkins Builders Ltd ,100189,SN11,Resources,Primary Sch Pooling,Preventative Property Maintenance,Premises Related,REVENUE
http://statistics.data.gov.uk/id/local-authority/00HY,Wiltshire Council,24/06/2011,1900616902,"1,448.98",Wilkins Builders Ltd ,100189,SN11,Resources,Campus,Preventative Property Maintenance,Premises Related,REVENUE
http://statistics.data.gov.uk/id/local-authority/00HY,Wiltshire Council,14/06/2011,1900602890,"1,470.15",Wilkins Builders Ltd ,100189,SN11,Resources,Primary Sch Pooling,Preventative Property Maintenance,Premises Related,REVENUE
http://statistics.data.gov.uk/id/local-authority/00HY,Wiltshire Council,17/06/2011,1900609276,"1,500.00",Wilkins Builders Ltd ,100189,SN11,Resources,Primary Sch Pooling,Preventative Property Maintenance,Premises Related,REVENUE
http://statistics.data.gov.uk/id/local-authority/00HY,Wiltshire Council,17/06/2011,1900609270,"1,630.00",Wilkins Builders Ltd ,100189,SN11,Resources,Community,Preventative Property Maintenance,Premises Related,REVENUE
http://statistics.data.gov.uk/id/local-authority/00HY,Wiltshire Council,28/06/2011,1900616361,"1,692.50",Wilkins Builders Ltd ,100189,SN11,Resources,Other Rechable Works,Preventative Property Maintenance,Premises Related,REVENUE
http://statistics.data.gov.uk/id/local-authority/00HY,Wiltshire Council,14/06/2011,1900602881,"1,882.00",Wilkins Builders Ltd ,100189,SN11,Resources,Campus,Preventative Property Maintenance,Premises Related,REVENUE
http://statistics.data.gov.uk/id/local-authority/00HY,Wiltshire Council,27/06/2011,1900617215,"2,870.00",Wilkins Builders Ltd ,100189,SN11,Resources,Primary Sch Pooling,Preventative Property Maintenance,Premises Related,REVENUE
http://statistics.data.gov.uk/id/local-authority/00HY,Wiltshire Council,21/06/2011,1900602886,"2,968.00",Wilkins Builders Ltd ,100189,SN11,Resources,Community,Preventative Property Maintenance,Premises Related,REVENUE
http://statistics.data.gov.uk/id/local-authority/00HY,Wiltshire Council,23/06/2011,1900616863,"3,777.20",Wilkins Builders Ltd ,100189,SN11,Resources,Campus,Preventative Property Maintenance,Premises Related,REVENUE
http://statistics.data.gov.uk/id/local-authority/00HY,Wiltshire Council,03/06/2011,1900599330,"4,834.11",Wilkins Builders Ltd ,100189,SN11,Wiltshire Council,Wiltshire Council,Buildings Minor Alterations,Premises Related,CAPITAL
http://statistics.data.gov.uk/id/local-authority/00HY,Wiltshire Council,06/06/2011,1900599714,"11,207.15",Wilkins Builders Ltd ,100189,SN11,Wiltshire Council,Wiltshire Council,Buildings Minor Alterations,Premises Related,CAPITAL
http://statistics.data.gov.uk/id/local-authority/00HY,Wiltshire Council,07/06/2011,5105954981,"83,652.80",Wilkins Builders Ltd ,100189,SN11,Wiltshire Council,Wiltshire Council,Premises Related Other Maintenance Costs,Premises Related,CAPITAL
http://statistics.data.gov.uk/id/local-authority/00HY,Wiltshire Council,06/06/2011,1900599894,"1,358.48",Barnes Coaches Ltd ,100190,SN3 ,Neighbourhood & Planning,Mainstream 16+ FE,Transport Contracts,Third Party Payments,REVENUE
http://statistics.data.gov.uk/id/local-authority/00HY,Wiltshire Council,03/06/2011,1900599436,"1,966.50",Barnes Coaches Ltd ,100190,SN3 ,Neighbourhood & Planning,Mainstream Secondary,Transport Contracts,Third Party Payments,REVENUE
http://statistics.data.gov.uk/id/local-authority/00HY,Wiltshire Council,03/06/2011,1900599438,"2,567.46",Barnes Coaches Ltd ,100190,SN3 ,Neighbourhood & Planning,Mainstream Secondary,Transport Contracts,Third Party Payments,REVENUE
http://statistics.data.gov.uk/id/local-authority/00HY,Wiltshire Council,06/06/2011,1900599894,"12,226.31",Barnes Coaches Ltd ,100190,SN3 ,Neighbourhood & Planning,Mainstream Secondary,Transport Contracts,Third Party Payments,REVENUE
http://statistics.data.gov.uk/id/local-authority/00HY,Wiltshire Council,14/06/2011,1900603257,"1,002.92",Stagecoach Services Ltd ,100197,SK3 ,Neighbourhood & Planning,Mainstream 16+ Sec,Transport Contracts,Third Party Payments,REVENUE
http://statistics.data.gov.uk/id/local-authority/00HY,Wiltshire Council,16/06/2011,1900608410,"1,002.92",Stagecoach Services Ltd ,100197,SK3 ,Neighbourhood & Planning,Mainstream 16+ Sec,Transport Contracts,Third Party Payments,REVENUE
http://statistics.data.gov.uk/id/local-authority/00HY,Wiltshire Council,14/06/2011,1900603258,"1,402.88",Stagecoach Services Ltd ,100197,SK3 ,Neighbourhood & Planning,Public Transport,Transport Contracts,Third Party Payments,REVENUE
http://statistics.data.gov.uk/id/local-authority/00HY,Wiltshire Council,16/06/2011,1900608411,"1,402.88",Stagecoach Services Ltd ,100197,SK3 ,Neighbourhood & Planning,Public Transport,Transport Contracts,Third Party Payments,REVENUE
http://statistics.data.gov.uk/id/local-authority/00HY,Wiltshire Council,14/06/2011,1900603260,"2,226.23",Stagecoach Services Ltd ,100197,SK3 ,Neighbourhood & Planning,Public Transport,Transport Contracts,Third Party Payments,REVENUE
http://statistics.data.gov.uk/id/local-authority/00HY,Wiltshire Council,16/06/2011,1900608414,"2,226.23",Stagecoach Services Ltd ,100197,SK3 ,Neighbourhood & Planning,Public Transport,Transport Contracts,Third Party Payments,REVENUE
http://statistics.data.gov.uk/id/local-authority/00HY,Wiltshire Council,14/06/2011,1900603257,"3,747.74",Stagecoach Services Ltd ,100197,SK3 ,Neighbourhood & Planning,Mainstream 16+ FE,Transport Contracts,Third Party Payments,REVENUE
http://statistics.data.gov.uk/id/local-authority/00HY,Wiltshire Council,16/06/2011,1900608410,"3,747.74",Stagecoach Services Ltd ,100197,SK3 ,Neighbourhood & Planning,Mainstream 16+ FE,Transport Contracts,Third Party Payments,REVENUE
http://statistics.data.gov.uk/id/local-authority/00HY,Wiltshire Council,14/06/2011,1900603261,"6,541.27",Stagecoach Services Ltd ,100197,SK3 ,Neighbourhood & Planning,Public Transport,Transport Contracts,Third Party Payments,REVENUE
http://statistics.data.gov.uk/id/local-authority/00HY,Wiltshire Council,16/06/2011,1900608415,"6,541.27",Stagecoach Services Ltd ,100197,SK3 ,Neighbourhood & Planning,Public Transport,Transport Contracts,Third Party Payments,REVENUE
http://statistics.data.gov.uk/id/local-authority/00HY,Wiltshire Council,14/06/2011,1900603257,"6,611.58",Stagecoach Services Ltd ,100197,SK3 ,Neighbourhood & Planning,Public Transport,Transport Contracts,Third Party Payments,REVENUE
http://statistics.data.gov.uk/id/local-authority/00HY,Wiltshire Council,16/06/2011,1900608410,"6,611.58",Stagecoach Services Ltd ,100197,SK3 ,Neighbourhood & Planning,Public Transport,Transport Contracts,Third Party Payments,REVENUE
http://statistics.data.gov.uk/id/local-authority/00HY,Wiltshire Council,10/06/2011,1900599017,528.55,R Moulding & Co (Salisbury) Ltd ,100200,SP2 ,Resources,Campus,Preventative Property Maintenance,Premises Related,REVENUE
http://statistics.data.gov.uk/id/local-authority/00HY,Wiltshire Council,10/06/2011,1900599028,559.95,R Moulding & Co (Salisbury) Ltd ,100200,SP2 ,Resources,Community,Preventative Property Maintenance,Premises Related,REVENUE
http://statistics.data.gov.uk/id/local-authority/00HY,Wiltshire Council,13/06/2011,1900603000,640.56,R Moulding & Co (Salisbury) Ltd ,100200,SP2 ,Resources,Community,Preventative Property Maintenance,Premises Related,REVENUE
http://statistics.data.gov.uk/id/local-authority/00HY,Wiltshire Council,09/06/2011,1900602684,644.43,R Moulding & Co (Salisbury) Ltd ,100200,SP2 ,Resources,Primary Sch Pooling,Preventative Property Maintenance,Premises Related,REVENUE
http://statistics.data.gov.uk/id/local-authority/00HY,Wiltshire Council,10/06/2011,1900599014,745,R Moulding & Co (Salisbury) Ltd ,100200,SP2 ,Resources,WTP Office,Preventative Property Maintenance,Premises Related,REVENUE
http://statistics.data.gov.uk/id/local-authority/00HY,Wiltshire Council,10/06/2011,1900599022,797,R Moulding & Co (Salisbury) Ltd ,100200,SP2 ,Resources,Campus,Preventative Property Maintenance,Premises Related,REVENUE
http://statistics.data.gov.uk/id/local-authority/00HY,Wiltshire Council,10/06/2011,1900598496,"1,292.20",R Moulding & Co (Salisbury) Ltd ,100200,SP2 ,Resources,Campus,Preventative Property Maintenance,Premises Related,REVENUE
http://statistics.data.gov.uk/id/local-authority/00HY,Wiltshire Council,10/06/2011,1900599011,"1,595.02",R Moulding & Co (Salisbury) Ltd ,100200,SP2 ,Resources,Primary Sch Pooling,Preventative Property Maintenance,Premises Related,REVENUE
http://statistics.data.gov.uk/id/local-authority/00HY,Wiltshire Council,10/06/2011,1900599019,"1,869.49",R Moulding & Co (Salisbury) Ltd ,100200,SP2 ,Resources,Campus,Preventative Property Maintenance,Premises Related,REVENUE
http://statistics.data.gov.uk/id/local-authority/00HY,Wiltshire Council,10/06/2011,1900599012,"5,329.66",R Moulding & Co (Salisbury) Ltd ,100200,SP2 ,Resources,Investment Estate,Preventative Property Maintenance,Premises Related,REVENUE
http://statistics.data.gov.uk/id/local-authority/00HY,Wiltshire Council,10/06/2011,1900602668,"5,710.40",R Moulding & Co (Salisbury) Ltd ,100200,SP2 ,Resources,Primary Sch Pooling,Preventative Property Maintenance,Premises Related,REVENUE
http://statistics.data.gov.uk/id/local-authority/00HY,Wiltshire Council,02/06/2011,1900599067,757.19,North Newnton Garage ,100201,SN9 ,Neighbourhood & Planning,Mainstream Primary,Transport Contracts,Third Party Payments,REVENUE
http://statistics.data.gov.uk/id/local-authority/00HY,Wiltshire Council,02/06/2011,1900599068,"3,141.53",North Newnton Garage ,100201,SN9 ,Neighbourhood & Planning,Mainstream Primary,Transport Contracts,Third Party Payments,REVENUE
http://statistics.data.gov.uk/id/local-authority/00HY,Wiltshire Council,09/06/2011,1900602663,661.4,RGV Engineering (Netheravon) Ltd ,100202,SP4 ,Wiltshire Council,Wiltshire Council,Buildings Minor Alterations,Premises Related,CAPITAL
http://statistics.data.gov.uk/id/local-authority/00HY,Wiltshire Council,28/06/2011,5105960867,717,RGV Engineering (Netheravon) Ltd ,100202,SP4 ,Neighbourhood & Planning,Housing Rprs Simdell,Premises Related Other Maintenance Costs,Premises Related,REVENUE
http://statistics.data.gov.uk/id/local-authority/00HY,Wiltshire Council,21/06/2011,1900602979,"1,142.00",RGV Engineering (Netheravon) Ltd ,100202,SP4 ,Resources,Primary Sch Pooling,Preventative Property Maintenance,Premises Related,REVENUE
http://statistics.data.gov.uk/id/local-authority/00HY,Wiltshire Council,01/06/2011,1900594771,"1,165.58",RGV Engineering (Netheravon) Ltd ,100202,SP4 ,Wiltshire Council,Wiltshire Council,Buildings Minor Alterations,Premises Related,CAPITAL
http://statistics.data.gov.uk/id/local-authority/00HY,Wiltshire Council,01/06/2011,1900594772,"1,370.45",RGV Engineering (Netheravon) Ltd ,100202,SP4 ,Wiltshire Council,Wiltshire Council,Buildings Minor Alterations,Premises Related,CAPITAL
http://statistics.data.gov.uk/id/local-authority/00HY,Wiltshire Council,06/06/2011,1900580052,"1,387.53",RGV Engineering (Netheravon) Ltd ,100202,SP4 ,Resources,Community,Preventative Property Maintenance,Premises Related,REVENUE
http://statistics.data.gov.uk/id/local-authority/00HY,Wiltshire Council,21/06/2011,1900602988,"1,397.96",RGV Engineering (Netheravon) Ltd ,100202,SP4 ,Resources,Primary Sch Pooling,Preventative Property Maintenance,Premises Related,REVENUE
http://statistics.data.gov.uk/id/local-authority/00HY,Wiltshire Council,09/06/2011,1900602662,"2,582.84",RGV Engineering (Netheravon) Ltd ,100202,SP4 ,Wiltshire Council,Wiltshire Council,Buildings Minor Alterations,Premises Related,CAPITAL
http://statistics.data.gov.uk/id/local-authority/00HY,Wiltshire Council,01/06/2011,1900594773,"3,150.00",RGV Engineering (Netheravon) Ltd ,100202,SP4 ,Resources,Primary Sch Pooling,Preventative Property Maintenance,Premises Related,REVENUE
http://statistics.data.gov.uk/id/local-authority/00HY,Wiltshire Council,28/06/2011,1900617424,"5,191.53",RGV Engineering (Netheravon) Ltd ,100202,SP4 ,Resources,Primary Schools,Preventative Property Maintenance,Premises Related,REVENUE
http://statistics.data.gov.uk/id/local-authority/00HY,Wiltshire Council,01/06/2011,1900594775,"6,500.00",RGV Engineering (Netheravon) Ltd ,100202,SP4 ,Resources,Schools - Other,Preventative Property Maintenance,Premises Related,REVENUE
http://statistics.data.gov.uk/id/local-authority/00HY,Wiltshire Council,07/06/2011,1900599940,"10,819.47",RGV Engineering (Netheravon) Ltd ,100202,SP4 ,Resources,Other,Preventative Property Maintenance,Premises Related,REVENUE
http://statistics.data.gov.uk/id/local-authority/00HY,Wiltshire Council,16/06/2011,1900608455,"58,425.00",RGV Engineering (Netheravon) Ltd ,100202,SP4 ,Wiltshire Council,Wiltshire Council,Buildings Minor Alterations,Premises Related,CAPITAL
http://statistics.data.gov.uk/id/local-authority/00HY,Wiltshire Council,16/06/2011,1900608432,627,REDACTED PERSONAL DATA,100212,REDACTED PERSONAL DATA,Neighbourhood & Planning,SEN Primary,Transport Contracts,Third Party Payments,REVENUE
http://statistics.data.gov.uk/id/local-authority/00HY,Wiltshire Council,27/06/2011,1900617260,748,REDACTED PERSONAL DATA,100212,REDACTED PERSONAL DATA,Neighbourhood & Planning,DCS CTPLD U65,Transport Contracts,Third Party Payments,REVENUE
http://statistics.data.gov.uk/id/local-authority/00HY,Wiltshire Council,21/06/2011,1900609731,"3,556.00",Bennett & Dean Electrical Ltd ,100214,SP2 ,Wiltshire Council,Wiltshire Council,Payments to Contractors - Other,Third Party Payments,CAPITAL
http://statistics.data.gov.uk/id/local-authority/00HY,Wiltshire Council,02/06/2011,1900599055,524.44,Wilts Dorset Bus Co Ltd ,100218,BH15,Neighbourhood & Planning,Public Transport,Transport Contracts,Third Party Payments,REVENUE
http://statistics.data.gov.uk/id/local-authority/00HY,Wiltshire Council,02/06/2011,1900599053,"1,311.09",Wilts Dorset Bus Co Ltd ,100218,BH15,Neighbourhood & Planning,Mainstream 16+ Sec,Transport Contracts,Third Party Payments,REVENUE
http://statistics.data.gov.uk/id/local-authority/00HY,Wiltshire Council,02/06/2011,1900599053,"1,311.09",Wilts Dorset Bus Co Ltd ,100218,BH15,Neighbourhood & Planning,Mainstream 16+ FE,Transport Contracts,Third Party Payments,REVENUE
http://statistics.data.gov.uk/id/local-authority/00HY,Wiltshire Council,02/06/2011,1900599054,"1,400.36",Wilts Dorset Bus Co Ltd ,100218,BH15,Neighbourhood & Planning,Mainstream Primary,Transport Contracts,Third Party Payments,REVENUE
http://statistics.data.gov.uk/id/local-authority/00HY,Wiltshire Council,02/06/2011,1900599047,"1,744.73",Wilts Dorset Bus Co Ltd ,100218,BH15,Neighbourhood & Planning,Mainstream Primary,Transport Contracts,Third Party Payments,REVENUE
http://statistics.data.gov.uk/id/local-authority/00HY,Wiltshire Council,02/06/2011,1900599045,"2,186.32",Wilts Dorset Bus Co Ltd ,100218,BH15,Neighbourhood & Planning,Mainstream Secondary,Transport Contracts,Third Party Payments,REVENUE
http://statistics.data.gov.uk/id/local-authority/00HY,Wiltshire Council,02/06/2011,1900599047,"3,083.94",Wilts Dorset Bus Co Ltd ,100218,BH15,Neighbourhood & Planning,Mainstream Secondary,Transport Contracts,Third Party Payments,REVENUE
http://statistics.data.gov.uk/id/local-authority/00HY,Wiltshire Council,02/06/2011,1900599054,"3,151.58",Wilts Dorset Bus Co Ltd ,100218,BH15,Neighbourhood & Planning,Mainstream 16+ FE,Transport Contracts,Third Party Payments,REVENUE
http://statistics.data.gov.uk/id/local-authority/00HY,Wiltshire Council,02/06/2011,1900599046,"4,526.33",Wilts Dorset Bus Co Ltd ,100218,BH15,Neighbourhood & Planning,Mainstream 16+ Sec,Transport Contracts,Third Party Payments,REVENUE
http://statistics.data.gov.uk/id/local-authority/00HY,Wiltshire Council,02/06/2011,1900599054,"4,726.85",Wilts Dorset Bus Co Ltd ,100218,BH15,Neighbourhood & Planning,Mainstream 16+ Sec,Transport Contracts,Third Party Payments,REVENUE
http://statistics.data.gov.uk/id/local-authority/00HY,Wiltshire Council,02/06/2011,1900599048,"7,596.21",Wilts Dorset Bus Co Ltd ,100218,BH15,Neighbourhood & Planning,Mainstream Secondary,Transport Contracts,Third Party Payments,REVENUE
http://statistics.data.gov.uk/id/local-authority/00HY,Wiltshire Council,02/06/2011,1900599046,"12,285.76",Wilts Dorset Bus Co Ltd ,100218,BH15,Neighbourhood & Planning,Mainstream 16+ FE,Transport Contracts,Third Party Payments,REVENUE
http://statistics.data.gov.uk/id/local-authority/00HY,Wiltshire Council,02/06/2011,1900599053,"12,813.68",Wilts Dorset Bus Co Ltd ,100218,BH15,Neighbourhood & Planning,Public Transport,Transport Contracts,Third Party Payments,REVENUE
http://statistics.data.gov.uk/id/local-authority/00HY,Wiltshire Council,02/06/2011,1900599046,"16,812.11",Wilts Dorset Bus Co Ltd ,100218,BH15,Neighbourhood & Planning,Mainstream Primary,Transport Contracts,Third Party Payments,REVENUE
http://statistics.data.gov.uk/id/local-authority/00HY,Wiltshire Council,02/06/2011,1900599047,"18,584.25",Wilts Dorset Bus Co Ltd ,100218,BH15,Neighbourhood & Planning,Public Transport,Transport Contracts,Third Party Payments,REVENUE
http://statistics.data.gov.uk/id/local-authority/00HY,Wiltshire Council,02/06/2011,1900599054,"24,286.31",Wilts Dorset Bus Co Ltd ,100218,BH15,Neighbourhood & Planning,Public Transport,Transport Contracts,Third Party Payments,REVENUE
http://statistics.data.gov.uk/id/local-authority/00HY,Wiltshire Council,02/06/2011,1900599046,"31,037.72",Wilts Dorset Bus Co Ltd ,100218,BH15,Neighbourhood & Planning,Mainstream Secondary,Transport Contracts,Third Party Payments,REVENUE
http://statistics.data.gov.uk/id/local-authority/00HY,Wiltshire Council,02/06/2011,1900599054,"33,091.54",Wilts Dorset Bus Co Ltd ,100218,BH15,Neighbourhood & Planning,Mainstream Secondary,Transport Contracts,Third Party Payments,REVENUE
http://statistics.data.gov.uk/id/local-authority/00HY,Wiltshire Council,14/06/2011,1900603244,"52,445.00",Wilts Dorset Bus Co Ltd ,100218,BH15,Neighbourhood & Planning,Park & Ride Services,Transport Contracts,Third Party Payments,REVENUE
http://statistics.data.gov.uk/id/local-authority/00HY,Wiltshire Council,14/06/2011,1900603267,"58,929.20",Wilts Dorset Bus Co Ltd ,100218,BH15,Neighbourhood & Planning,Park & Ride Services,Transport Contracts,Third Party Payments,REVENUE
http://statistics.data.gov.uk/id/local-authority/00HY,Wiltshire Council,14/06/2011,1900603266,"61,027.36",Wilts Dorset Bus Co Ltd ,100218,BH15,Neighbourhood & Planning,Park & Ride Services,Transport Contracts,Third Party Payments,REVENUE
http://statistics.data.gov.uk/id/local-authority/00HY,Wiltshire Council,02/06/2011,1900599046,"71,789.45",Wilts Dorset Bus Co Ltd ,100218,BH15,Neighbourhood & Planning,Public Transport,Transport Contracts,Third Party Payments,REVENUE
http://statistics.data.gov.uk/id/local-authority/00HY,Wiltshire Council,14/06/2011,1900603265,"72,681.50",Wilts Dorset Bus Co Ltd ,100218,BH15,Neighbourhood & Planning,Park & Ride Services,Transport Contracts,Third Party Payments,REVENUE
http://statistics.data.gov.uk/id/local-authority/00HY,Wiltshire Council,27/06/2011,1900617301,"142,081.72",Wilts Dorset Bus Co Ltd ,100218,BH15,Neighbourhood & Planning,Concessionary Fares,Compensation for Concessionary fares,Third Party Payments,REVENUE
http://statistics.data.gov.uk/id/local-authority/00HY,Wiltshire Council,22/06/2011,1900599039,"6,450.00",REDACTED PERSONAL DATA,100227,REDACTED PERSONAL DATA,Neighbourhood & Planning,Community Transport,Grants provided by WC - Other,Supplies and Services,REVENUE
http://statistics.data.gov.uk/id/local-authority/00HY,Wiltshire Council,09/06/2011,5105949488,694.98,Insight Direct  UK  Ltd ,100231,UB8 ,Children & Education,Harnessing ICT,Hardware Consumables IT,Supplies and Services,REVENUE
http://statistics.data.gov.uk/id/local-authority/00HY,Wiltshire Council,16/06/2011,5105955597,"1,413.30",Insight Direct  UK  Ltd ,100231,UB8 ,Resources,Infrastructure,Hardware Maintenance,Supplies and Services,REVENUE
http://statistics.data.gov.uk/id/local-authority/00HY,Wiltshire Council,29/06/2011,5105959771,"1,514.98",Insight Direct  UK  Ltd ,100231,UB8 ,Children & Education,Harnessing ICT,Hardware Consumables IT,Supplies and Services,REVENUE
http://statistics.data.gov.uk/id/local-authority/00HY,Wiltshire Council,28/06/2011,5105960669,"2,100.00",Insight Direct  UK  Ltd ,100231,UB8 ,Wiltshire Council,Wiltshire Council,Hardware Purchases IT,Supplies and Services,CAPITAL
http://statistics.data.gov.uk/id/local-authority/00HY,Wiltshire Council,15/06/2011,5105958765,"2,331.00",Insight Direct  UK  Ltd ,100231,UB8 ,Resources,Infrastructure,ICT - Support arrangements,Supplies and Services,REVENUE
http://statistics.data.gov.uk/id/local-authority/00HY,Wiltshire Council,30/06/2011,1900620741,627.97,Ulverscroft Large Print Books Ltd ,100233,LE7 ,Community Services,Lib Book Fund,Library Service,Supplies and Services,REVENUE
http://statistics.data.gov.uk/id/local-authority/00HY,Wiltshire Council,22/06/2011,5105963953,709.9,Boc Limited ,100237,M28 ,Neighbourhood & Planning,Fleet Operations,Materials & Consumables (Non-Educational),Supplies and Services,REVENUE
http://statistics.data.gov.uk/id/local-authority/00HY,Wiltshire Council,22/06/2011,1900615616,520,Norman E Webb Transport Services Li ,100239,SN14,Neighbourhood & Planning,FamilySuppSouth&West,Transport Contracts,Third Party Payments,REVENUE
http://statistics.data.gov.uk/id/local-authority/00HY,Wiltshire Council,23/06/2011,1900616807,551.6,Bradies Taxis ,100249,SN15,Neighbourhood & Planning,Mainstream 16+ FE,Transport Contracts,Third Party Payments,REVENUE
http://statistics.data.gov.uk/id/local-authority/00HY,Wiltshire Council,23/06/2011,1900616810,621,Bradies Taxis ,100249,SN15,Neighbourhood & Planning,Community Team East,Transport Contracts,Third Party Payments,REVENUE
http://statistics.data.gov.uk/id/local-authority/00HY,Wiltshire Council,23/06/2011,1900616207,791.67,Bradies Taxis ,100249,SN15,Neighbourhood & Planning,Mainstream Primary,Transport Contracts,Third Party Payments,REVENUE
http://statistics.data.gov.uk/id/local-authority/00HY,Wiltshire Council,23/06/2011,1900616207,791.67,Bradies Taxis ,100249,SN15,Neighbourhood & Planning,Mainstream 16+ FE,Transport Contracts,Third Party Payments,REVENUE
http://statistics.data.gov.uk/id/local-authority/00HY,Wiltshire Council,23/06/2011,1900616806,994.08,Bradies Taxis ,100249,SN15,Neighbourhood & Planning,Mainstream Secondary,Transport Contracts,Third Party Payments,REVENUE
http://statistics.data.gov.uk/id/local-authority/00HY,Wiltshire Council,27/06/2011,1900617274,"1,102.87",Bradies Taxis ,100249,SN15,Neighbourhood & Planning,Concessionary Fares,Compensation for Concessionary fares,Third Party Payments,REVENUE
http://statistics.data.gov.uk/id/local-authority/00HY,Wiltshire Council,27/06/2011,1900617305,"2,158.15",Bradies Taxis ,100249,SN15,Neighbourhood & Planning,Concessionary Fares,Compensation for Concessionary fares,Third Party Payments,REVENUE
http://statistics.data.gov.uk/id/local-authority/00HY,Wiltshire Council,23/06/2011,1900616207,"9,322.87",Bradies Taxis ,100249,SN15,Neighbourhood & Planning,Connect 2 Wiltshire,Transport Contracts,Third Party Payments,REVENUE
http://statistics.data.gov.uk/id/local-authority/00HY,Wiltshire Council,07/06/2011,1900600297,500,Hatts Travel ,100252,SN15,Neighbourhood & Planning,Mainstream Secondary,Transport Contracts,Third Party Payments,REVENUE
http://statistics.data.gov.uk/id/local-authority/00HY,Wiltshire Council,23/06/2011,1900616194,516.17,Hatts Travel ,100252,SN15,Neighbourhood & Planning,SEN Primary,Transport Contracts,Third Party Payments,REVENUE
http://statistics.data.gov.uk/id/local-authority/00HY,Wiltshire Council,23/06/2011,1900616205,521.14,Hatts Travel ,100252,SN15,Neighbourhood & Planning,SEN Primary,Transport Contracts,Third Party Payments,REVENUE
http://statistics.data.gov.uk/id/local-authority/00HY,Wiltshire Council,23/06/2011,1900616196,570,Hatts Travel ,100252,SN15,Neighbourhood & Planning,SEN 16+ Secondary,Transport Contracts,Third Party Payments,REVENUE
http://statistics.data.gov.uk/id/local-authority/00HY,Wiltshire Council,29/06/2011,1900620523,650.72,Hatts Travel ,100252,SN15,Neighbourhood & Planning,SEN Primary,Transport Contracts,Third Party Payments,REVENUE
http://statistics.data.gov.uk/id/local-authority/00HY,Wiltshire Council,29/06/2011,1900620523,650.76,Hatts Travel ,100252,SN15,Neighbourhood & Planning,SEN 16+ Secondary,Transport Contracts,Third Party Payments,REVENUE
http://statistics.data.gov.uk/id/local-authority/00HY,Wiltshire Council,23/06/2011,1900616198,781.08,Hatts Travel ,100252,SN15,Neighbourhood & Planning,SEN 16+ Secondary,Transport Contracts,Third Party Payments,REVENUE
http://statistics.data.gov.uk/id/local-authority/00HY,Wiltshire Council,23/06/2011,1900616770,819.38,Hatts Travel ,100252,SN15,Neighbourhood & Planning,Mainstream Primary,Transport Contracts,Third Party Payments,REVENUE
http://statistics.data.gov.uk/id/local-authority/00HY,Wiltshire Council,07/06/2011,1900600287,866,Hatts Travel ,100252,SN15,Neighbourhood & Planning,Mainstream Primary,Transport Contracts,Third Party Payments,REVENUE
http://statistics.data.gov.uk/id/local-authority/00HY,Wiltshire Council,29/06/2011,1900620519,929.94,Hatts Travel ,100252,SN15,Neighbourhood & Planning,SEN Primary,Transport Contracts,Third Party Payments,REVENUE
http://statistics.data.gov.uk/id/local-authority/00HY,Wiltshire Council,23/06/2011,1900616770,931.5,Hatts Travel ,100252,SN15,Neighbourhood & Planning,Mainstream 16+ FE,Transport Contracts,Third Party Payments,REVENUE
http://statistics.data.gov.uk/id/local-authority/00HY,Wiltshire Council,29/06/2011,1900620525,966.97,Hatts Travel ,100252,SN15,Neighbourhood & Planning,SEN Secondary,Transport Contracts,Third Party Payments,REVENUE
http://statistics.data.gov.uk/id/local-authority/00HY,Wiltshire Council,23/06/2011,1900616194,"1,032.34",Hatts Travel ,100252,SN15,Neighbourhood & Planning,SEN 16+ Secondary,Transport Contracts,Third Party Payments,REVENUE
http://statistics.data.gov.uk/id/local-authority/00HY,Wiltshire Council,23/06/2011,1900616202,"1,114.66",Hatts Travel ,100252,SN15,Neighbourhood & Planning,SEN Secondary,Transport Contracts,Third Party Payments,REVENUE
http://statistics.data.gov.uk/id/local-authority/00HY,Wiltshire Council,23/06/2011,1900616202,"1,114.67",Hatts Travel ,100252,SN15,Neighbourhood & Planning,SEN Primary,Transport Contracts,Third Party Payments,REVENUE
http://statistics.data.gov.uk/id/local-authority/00HY,Wiltshire Council,23/06/2011,1900616202,"1,114.67",Hatts Travel ,100252,SN15,Neighbourhood & Planning,SEN 16+ Secondary,Transport Contracts,Third Party Payments,REVENUE
http://statistics.data.gov.uk/id/local-authority/00HY,Wiltshire Council,23/06/2011,1900616199,"1,134.55",Hatts Travel ,100252,SN15,Neighbourhood & Planning,SEN Primary,Transport Contracts,Third Party Payments,REVENUE
http://statistics.data.gov.uk/id/local-authority/00HY,Wiltshire Council,23/06/2011,1900616199,"1,134.58",Hatts Travel ,100252,SN15,Neighbourhood & Planning,SEN Secondary,Transport Contracts,Third Party Payments,REVENUE
http://statistics.data.gov.uk/id/local-authority/00HY,Wiltshire Council,23/06/2011,1900616196,"1,140.00",Hatts Travel ,100252,SN15,Neighbourhood & Planning,SEN Secondary,Transport Contracts,Third Party Payments,REVENUE
http://statistics.data.gov.uk/id/local-authority/00HY,Wiltshire Council,23/06/2011,1900616204,"1,156.80",Hatts Travel ,100252,SN15,Neighbourhood & Planning,SEN Primary,Transport Contracts,Third Party Payments,REVENUE
http://statistics.data.gov.uk/id/local-authority/00HY,Wiltshire Council,23/06/2011,1900616198,"1,171.68",Hatts Travel ,100252,SN15,Neighbourhood & Planning,SEN Primary,Transport Contracts,Third Party Payments,REVENUE
http://statistics.data.gov.uk/id/local-authority/00HY,Wiltshire Council,23/06/2011,1900616203,"1,229.58",Hatts Travel ,100252,SN15,Neighbourhood & Planning,SEN Primary,Transport Contracts,Third Party Payments,REVENUE
http://statistics.data.gov.uk/id/local-authority/00HY,Wiltshire Council,23/06/2011,1900616203,"1,229.58",Hatts Travel ,100252,SN15,Neighbourhood & Planning,SEN Secondary,Transport Contracts,Third Party Payments,REVENUE
http://statistics.data.gov.uk/id/local-authority/00HY,Wiltshire Council,29/06/2011,1900620523,"1,301.52",Hatts Travel ,100252,SN15,Neighbourhood & Planning,SEN Secondary,Transport Contracts,Third Party Payments,REVENUE
http://statistics.data.gov.uk/id/local-authority/00HY,Wiltshire Council,07/06/2011,1900600297,"1,341.38",Hatts Travel ,100252,SN15,Neighbourhood & Planning,Public Transport,Transport Contracts,Third Party Payments,REVENUE
http://statistics.data.gov.uk/id/local-authority/00HY,Wiltshire Council,23/06/2011,1900616204,"1,446.00",Hatts Travel ,100252,SN15,Neighbourhood & Planning,SEN Secondary,Transport Contracts,Third Party Payments,REVENUE
http://statistics.data.gov.uk/id/local-authority/00HY,Wiltshire Council,07/06/2011,1900600296,"1,449.30",Hatts Travel ,100252,SN15,Neighbourhood & Planning,Public Transport,Transport Contracts,Third Party Payments,REVENUE
http://statistics.data.gov.uk/id/local-authority/00HY,Wiltshire Council,07/06/2011,1900600297,"1,500.00",Hatts Travel ,100252,SN15,Neighbourhood & Planning,Mainstream 16+ FE,Transport Contracts,Third Party Payments,REVENUE
http://statistics.data.gov.uk/id/local-authority/00HY,Wiltshire Council,23/06/2011,1900616200,"1,527.60",Hatts Travel ,100252,SN15,Neighbourhood & Planning,SEN Secondary,Transport Contracts,Third Party Payments,REVENUE
http://statistics.data.gov.uk/id/local-authority/00HY,Wiltshire Council,23/06/2011,1900616194,"1,548.49",Hatts Travel ,100252,SN15,Neighbourhood & Planning,SEN Secondary,Transport Contracts,Third Party Payments,REVENUE
http://statistics.data.gov.uk/id/local-authority/00HY,Wiltshire Council,23/06/2011,1900616198,"1,562.24",Hatts Travel ,100252,SN15,Neighbourhood & Planning,SEN Secondary,Transport Contracts,Third Party Payments,REVENUE
http://statistics.data.gov.uk/id/local-authority/00HY,Wiltshire Council,29/06/2011,1900620521,"1,576.29",Hatts Travel ,100252,SN15,Neighbourhood & Planning,SEN Secondary,Transport Contracts,Third Party Payments,REVENUE
http://statistics.data.gov.uk/id/local-authority/00HY,Wiltshire Council,29/06/2011,1900620521,"1,576.30",Hatts Travel ,100252,SN15,Neighbourhood & Planning,SEN 16+ Secondary,Transport Contracts,Third Party Payments,REVENUE
http://statistics.data.gov.uk/id/local-authority/00HY,Wiltshire Council,29/06/2011,1900620525,"1,597.63",Hatts Travel ,100252,SN15,Neighbourhood & Planning,SEN Primary,Transport Contracts,Third Party Payments,REVENUE
http://statistics.data.gov.uk/id/local-authority/00HY,Wiltshire Council,29/06/2011,1900620519,"1,664.09",Hatts Travel ,100252,SN15,Neighbourhood & Planning,SEN Secondary,Transport Contracts,Third Party Payments,REVENUE
http://statistics.data.gov.uk/id/local-authority/00HY,Wiltshire Council,23/06/2011,1900616199,"1,701.87",Hatts Travel ,100252,SN15,Neighbourhood & Planning,SEN 16+ Secondary,Transport Contracts,Third Party Payments,REVENUE
http://statistics.data.gov.uk/id/local-authority/00HY,Wiltshire Council,07/06/2011,1900600287,"1,819.57",Hatts Travel ,100252,SN15,Neighbourhood & Planning,Mainstream Secondary,Transport Contracts,Third Party Payments,REVENUE
http://statistics.data.gov.uk/id/local-authority/00HY,Wiltshire Council,29/06/2011,1900620527,"1,871.50",Hatts Travel ,100252,SN15,Neighbourhood & Planning,SEN Secondary,Transport Contracts,Third Party Payments,REVENUE
http://statistics.data.gov.uk/id/local-authority/00HY,Wiltshire Council,23/06/2011,1900616196,"2,280.00",Hatts Travel ,100252,SN15,Neighbourhood & Planning,SEN Primary,Transport Contracts,Third Party Payments,REVENUE
http://statistics.data.gov.uk/id/local-authority/00HY,Wiltshire Council,23/06/2011,1900616200,"2,291.40",Hatts Travel ,100252,SN15,Neighbourhood & Planning,SEN Primary,Transport Contracts,Third Party Payments,REVENUE
http://statistics.data.gov.uk/id/local-authority/00HY,Wiltshire Council,23/06/2011,1900616206,"2,466.54",Hatts Travel ,100252,SN15,Neighbourhood & Planning,Mainstream Primary,Transport Contracts,Third Party Payments,REVENUE
http://statistics.data.gov.uk/id/local-authority/00HY,Wiltshire Council,07/06/2011,1900600285,"2,501.25",Hatts Travel ,100252,SN15,Neighbourhood & Planning,Mainstream Primary,Transport Contracts,Third Party Payments,REVENUE
http://statistics.data.gov.uk/id/local-authority/00HY,Wiltshire Council,07/06/2011,1900600283,"2,537.81",Hatts Travel ,100252,SN15,Neighbourhood & Planning,Mainstream 16+ Sec,Transport Contracts,Third Party Payments,REVENUE
http://statistics.data.gov.uk/id/local-authority/00HY,Wiltshire Council,08/06/2011,1900601999,"2,603.72",Hatts Travel ,100252,SN15,Neighbourhood & Planning,Public Transport,Transport Contracts,Third Party Payments,REVENUE
http://statistics.data.gov.uk/id/local-authority/00HY,Wiltshire Council,07/06/2011,1900600283,"2,641.39",Hatts Travel ,100252,SN15,Neighbourhood & Planning,Mainstream 16+ FE,Transport Contracts,Third Party Payments,REVENUE
http://statistics.data.gov.uk/id/local-authority/00HY,Wiltshire Council,07/06/2011,1900600286,"2,743.21",Hatts Travel ,100252,SN15,Neighbourhood & Planning,Mainstream Secondary,Transport Contracts,Third Party Payments,REVENUE
http://statistics.data.gov.uk/id/local-authority/00HY,Wiltshire Council,23/06/2011,1900616771,"2,787.08",Hatts Travel ,100252,SN15,Neighbourhood & Planning,Connect 2 Wiltshire,Transport Contracts,Third Party Payments,REVENUE
http://statistics.data.gov.uk/id/local-authority/00HY,Wiltshire Council,07/06/2011,1900600282,"2,859.59",Hatts Travel ,100252,SN15,Neighbourhood & Planning,Mainstream Secondary,Transport Contracts,Third Party Payments,REVENUE
http://statistics.data.gov.uk/id/local-authority/00HY,Wiltshire Council,23/06/2011,1900616205,"3,126.86",Hatts Travel ,100252,SN15,Neighbourhood & Planning,SEN Secondary,Transport Contracts,Third Party Payments,REVENUE
http://statistics.data.gov.uk/id/local-authority/00HY,Wiltshire Council,07/06/2011,1900600290,"3,624.84",Hatts Travel ,100252,SN15,Neighbourhood & Planning,Mainstream Secondary,Transport Contracts,Third Party Payments,REVENUE
http://statistics.data.gov.uk/id/local-authority/00HY,Wiltshire Council,23/06/2011,1900616770,"5,244.00",Hatts Travel ,100252,SN15,Neighbourhood & Planning,Mainstream Secondary,Transport Contracts,Third Party Payments,REVENUE
http://statistics.data.gov.uk/id/local-authority/00HY,Wiltshire Council,23/06/2011,1900616770,"14,171.71",Hatts Travel ,100252,SN15,Neighbourhood & Planning,Connect 2 Wiltshire,Transport Contracts,Third Party Payments,REVENUE
http://statistics.data.gov.uk/id/local-authority/00HY,Wiltshire Council,17/06/2011,1900609137,618.07,Wessex Community Action ,100262,SP1 ,Neighbourhood & Planning,DCS CTPLD U65,Transport Contracts,Third Party Payments,REVENUE
http://statistics.data.gov.uk/id/local-authority/00HY,Wiltshire Council,17/06/2011,1900609137,660.7,Wessex Community Action ,100262,SP1 ,Neighbourhood & Planning,DCS CTPLD O65,Transport Contracts,Third Party Payments,REVENUE
http://statistics.data.gov.uk/id/local-authority/00HY,Wiltshire Council,17/06/2011,1900609137,"4,049.48",Wessex Community Action ,100262,SP1 ,Neighbourhood & Planning,DCS South Locality O,Transport Contracts,Third Party Payments,REVENUE
http://statistics.data.gov.uk/id/local-authority/00HY,Wiltshire Council,17/06/2011,1900609137,"7,587.54",Wessex Community Action ,100262,SP1 ,Neighbourhood & Planning,DCS Salis MenHth O65,Transport Contracts,Third Party Payments,REVENUE
http://statistics.data.gov.uk/id/local-authority/00HY,Wiltshire Council,09/06/2011,5105949485,"12,000.00",Wessex Community Action ,100262,SP1 ,Community Services,OPPI Commissioned Ct,Grants Paid to individuals for Tangible Benefits,Supplies and Services,REVENUE
http://statistics.data.gov.uk/id/local-authority/00HY,Wiltshire Council,03/06/2011,1900599504,"1,298.35",REDACTED PERSONAL DATA,100263,REDACTED PERSONAL DATA,Neighbourhood & Planning,Mainstream Secondary,Transport Contracts,Third Party Payments,REVENUE
http://statistics.data.gov.uk/id/local-authority/00HY,Wiltshire Council,17/06/2011,5105954731,"3,201.75",M J Church Plant Ltd ,100266,SN14,Wiltshire Council,Wiltshire Council,Highways Contracts - Other,Third Party Payments,CAPITAL
http://statistics.data.gov.uk/id/local-authority/00HY,Wiltshire Council,14/06/2011,5105951693,"19,036.50",M J Church Plant Ltd ,100266,SN14,Wiltshire Council,Wiltshire Council,Highways Contracts - Other,Third Party Payments,CAPITAL
http://statistics.data.gov.uk/id/local-authority/00HY,Wiltshire Council,03/06/2011,1900599524,"2,400.46",Calne Travel ,100267,SN11,Neighbourhood & Planning,Mainstream Secondary,Transport Contracts,Third Party Payments,REVENUE
http://statistics.data.gov.uk/id/local-authority/00HY,Wiltshire Council,03/06/2011,1900599508,"2,420.66",Calne Travel ,100267,SN11,Neighbourhood & Planning,Mainstream Secondary,Transport Contracts,Third Party Payments,REVENUE
http://statistics.data.gov.uk/id/local-authority/00HY,Wiltshire Council,03/06/2011,1900599507,"2,619.86",Calne Travel ,100267,SN11,Neighbourhood & Planning,Mainstream Secondary,Transport Contracts,Third Party Payments,REVENUE
http://statistics.data.gov.uk/id/local-authority/00HY,Wiltshire Council,03/06/2011,1900599503,"2,719.45",Calne Travel ,100267,SN11,Neighbourhood & Planning,Mainstream Secondary,Transport Contracts,Third Party Payments,REVENUE
http://statistics.data.gov.uk/id/local-authority/00HY,Wiltshire Council,03/06/2011,1900599521,"2,754.26",Calne Travel ,100267,SN11,Neighbourhood & Planning,Mainstream Secondary,Transport Contracts,Third Party Payments,REVENUE
http://statistics.data.gov.uk/id/local-authority/00HY,Wiltshire Council,03/06/2011,1900599530,"2,850.00",Calne Travel ,100267,SN11,Neighbourhood & Planning,Mainstream Secondary,Transport Contracts,Third Party Payments,REVENUE
http://statistics.data.gov.uk/id/local-authority/00HY,Wiltshire Council,03/06/2011,1900599506,"2,908.45",Calne Travel ,100267,SN11,Neighbourhood & Planning,Mainstream Secondary,Transport Contracts,Third Party Payments,REVENUE
http://statistics.data.gov.uk/id/local-authority/00HY,Wiltshire Council,03/06/2011,1900599523,"3,168.70",Calne Travel ,100267,SN11,Neighbourhood & Planning,Mainstream Secondary,Transport Contracts,Third Party Payments,REVENUE
http://statistics.data.gov.uk/id/local-authority/00HY,Wiltshire Council,03/06/2011,1900599501,"3,241.58",Calne Travel ,100267,SN11,Neighbourhood & Planning,Mainstream Secondary,Transport Contracts,Third Party Payments,REVENUE
http://statistics.data.gov.uk/id/local-authority/00HY,Wiltshire Council,23/06/2011,1900616167,594,Devizes District Phab Minibus Ac ,100269,BA14,Neighbourhood & Planning,DCS East Locality PI,Transport Contracts,Third Party Payments,REVENUE
http://statistics.data.gov.uk/id/local-authority/00HY,Wiltshire Council,17/06/2011,1900608536,619,Peters Ltd ,100315,B5 6,Community Services,Lib Book Fund,Library Service,Supplies and Services,REVENUE
http://statistics.data.gov.uk/id/local-authority/00HY,Wiltshire Council,01/06/2011,1900576514,785.72,Peters Ltd ,100315,B5 6,Community Services,Lib Book Fund,Library Service,Supplies and Services,REVENUE
http://statistics.data.gov.uk/id/local-authority/00HY,Wiltshire Council,01/06/2011,1900576496,840.37,Peters Ltd ,100315,B5 6,Community Services,Lib Book Fund,Library Service,Supplies and Services,REVENUE
http://statistics.data.gov.uk/id/local-authority/00HY,Wiltshire Council,20/06/2011,1900609384,910,Rogers Taxis ,100316,SN15,Neighbourhood & Planning,DCS CTPLD U65,Transport Contracts,Third Party Payments,REVENUE
http://statistics.data.gov.uk/id/local-authority/00HY,Wiltshire Council,24/06/2011,1900616978,"1,225.00",Rogers Taxis ,100316,SN15,Neighbourhood & Planning,SEN Secondary,Transport Contracts,Third Party Payments,REVENUE
http://statistics.data.gov.uk/id/local-authority/00HY,Wiltshire Council,23/06/2011,1900616363,653,Cleveland  and  Gale ,100349,BA14,Resources,WTP Office,Preventative Property Maintenance,Premises Related,REVENUE
http://statistics.data.gov.uk/id/local-authority/00HY,Wiltshire Council,06/06/2011,1900599903,968.2,Chandlers Coach Travel ,100350,BA13,Neighbourhood & Planning,Mainstream Secondary,Transport Contract -  Bus Season Tickets,Third Party Payments,REVENUE
http://statistics.data.gov.uk/id/local-authority/00HY,Wiltshire Council,15/06/2011,1900607987,547.2,Minerva Travel ,100351,SN12,Neighbourhood & Planning,Mainstream Secondary,Transport Contract -  Bus Season Tickets,Third Party Payments,REVENUE
http://statistics.data.gov.uk/id/local-authority/00HY,Wiltshire Council,15/06/2011,1900607989,"1,596.00",Minerva Travel ,100351,SN12,Neighbourhood & Planning,Mainstream Secondary,Transport Contract -  Bus Season Tickets,Third Party Payments,REVENUE
http://statistics.data.gov.uk/id/local-authority/00HY,Wiltshire Council,27/06/2011,1900617158,554.39,Westlea Housing Association ,100407,SN14,Wiltshire Council,Wiltshire Council,Other Professional Fees,Supplies and Services,CAPITAL
http://statistics.data.gov.uk/id/local-authority/00HY,Wiltshire Council,27/06/2011,1900617181,555.74,Westlea Housing Association ,100407,SN14,Wiltshire Council,Wiltshire Council,Other Professional Fees,Supplies and Services,CAPITAL
http://statistics.data.gov.uk/id/local-authority/00HY,Wiltshire Council,27/06/2011,1900617162,569.9,Westlea Housing Association ,100407,SN14,Wiltshire Council,Wiltshire Council,Other Professional Fees,Supplies and Services,CAPITAL
http://statistics.data.gov.uk/id/local-authority/00HY,Wiltshire Council,27/06/2011,1900617193,583.58,Westlea Housing Association ,100407,SN14,Wiltshire Council,Wiltshire Council,Other Professional Fees,Supplies and Services,CAPITAL
http://statistics.data.gov.uk/id/local-authority/00HY,Wiltshire Council,27/06/2011,1900617167,625.57,Westlea Housing Association ,100407,SN14,Wiltshire Council,Wiltshire Council,Other Professional Fees,Supplies and Services,CAPITAL
http://statistics.data.gov.uk/id/local-authority/00HY,Wiltshire Council,27/06/2011,1900617184,676.8,Westlea Housing Association ,100407,SN14,Wiltshire Council,Wiltshire Council,Other Professional Fees,Supplies and Services,CAPITAL
http://statistics.data.gov.uk/id/local-authority/00HY,Wiltshire Council,29/06/2011,1900620515,"1,675.59",Westlea Housing Association ,100407,SN14,Neighbourhood & Planning,Wiltshire Work Grant,Payments to Contractors - Other,Third Party Payments,REVENUE
http://statistics.data.gov.uk/id/local-authority/00HY,Wiltshire Council,27/06/2011,1900617164,"1,785.79",Westlea Housing Association ,100407,SN14,Wiltshire Council,Wiltshire Council,Other Professional Fees,Supplies and Services,CAPITAL
http://statistics.data.gov.uk/id/local-authority/00HY,Wiltshire Council,15/06/2011,1900607868,"29,590.40",Westlea Housing Association ,100407,SN14,Community Services,S/People,Supporting People - Block Gross,Third Party Payments,REVENUE
http://statistics.data.gov.uk/id/local-authority/00HY,Wiltshire Council,23/06/2011,1900616047,"29,590.40",Westlea Housing Association ,100407,SN14,Community Services,S/People,Supporting People - Block Gross,Third Party Payments,REVENUE
http://statistics.data.gov.uk/id/local-authority/00HY,Wiltshire Council,15/06/2011,5105961330,"1,868.07",Test Valley Mobility LLP - CIS Vend ,100413,SO51,Neighbourhood & Planning,Housg Rprs Contracts,Premises Related Other Maintenance Costs,Premises Related,REVENUE
http://statistics.data.gov.uk/id/local-authority/00HY,Wiltshire Council,24/06/2011,1900616874,517.5,Steele Davis (Swindon) Ltd ,100419,SN10,Resources,Campus,Preventative Property Maintenance,Premises Related,REVENUE
http://statistics.data.gov.uk/id/local-authority/00HY,Wiltshire Council,24/06/2011,1900616908,532.85,Steele Davis (Swindon) Ltd ,100419,SN10,Resources,Other,Preventative Property Maintenance,Premises Related,REVENUE
http://statistics.data.gov.uk/id/local-authority/00HY,Wiltshire Council,24/06/2011,1900616921,732.52,Steele Davis (Swindon) Ltd ,100419,SN10,Resources,Nursery Schools,Preventative Property Maintenance,Premises Related,REVENUE
http://statistics.data.gov.uk/id/local-authority/00HY,Wiltshire Council,23/06/2011,1900616603,914.81,Steele Davis (Swindon) Ltd ,100419,SN10,Resources,Primary Sch Pooling,Preventative Property Maintenance,Premises Related,REVENUE
http://statistics.data.gov.uk/id/local-authority/00HY,Wiltshire Council,24/06/2011,1900616879,"1,000.00",Steele Davis (Swindon) Ltd ,100419,SN10,Wiltshire Council,Wiltshire Council,Buildings Minor Alterations,Premises Related,CAPITAL
http://statistics.data.gov.uk/id/local-authority/00HY,Wiltshire Council,20/06/2011,1900609458,"1,350.00",Steele Davis (Swindon) Ltd ,100419,SN10,Resources,Other,Preventative Property Maintenance,Premises Related,REVENUE
http://statistics.data.gov.uk/id/local-authority/00HY,Wiltshire Council,24/06/2011,1900616878,"2,000.00",Steele Davis (Swindon) Ltd ,100419,SN10,Wiltshire Council,Wiltshire Council,Buildings Minor Alterations,Premises Related,CAPITAL
http://statistics.data.gov.uk/id/local-authority/00HY,Wiltshire Council,24/06/2011,1900616883,"2,000.00",Steele Davis (Swindon) Ltd ,100419,SN10,Wiltshire Council,Wiltshire Council,Buildings Minor Alterations,Premises Related,CAPITAL
http://statistics.data.gov.uk/id/local-authority/00HY,Wiltshire Council,28/06/2011,1900617419,"2,429.85",Steele Davis (Swindon) Ltd ,100419,SN10,Resources,WTP Office,Preventative Property Maintenance,Premises Related,REVENUE
http://statistics.data.gov.uk/id/local-authority/00HY,Wiltshire Council,24/06/2011,1900616882,"3,000.00",Steele Davis (Swindon) Ltd ,100419,SN10,Wiltshire Council,Wiltshire Council,Buildings Minor Alterations,Premises Related,CAPITAL
http://statistics.data.gov.uk/id/local-authority/00HY,Wiltshire Council,24/06/2011,1900616911,"3,622.50",Steele Davis (Swindon) Ltd ,100419,SN10,Resources,Primary Schools,Preventative Property Maintenance,Premises Related,REVENUE
http://statistics.data.gov.uk/id/local-authority/00HY,Wiltshire Council,02/06/2011,5105954849,"5,100.00",Steele Davis (Swindon) Ltd ,100419,SN10,Wiltshire Council,Wiltshire Council,Consultants� Fees,Supplies and Services,CAPITAL
http://statistics.data.gov.uk/id/local-authority/00HY,Wiltshire Council,10/06/2011,1900602915,"5,687.90",Steele Davis (Swindon) Ltd ,100419,SN10,Resources,Other Rechable Works,Preventative Property Maintenance,Premises Related,REVENUE
http://statistics.data.gov.uk/id/local-authority/00HY,Wiltshire Council,24/06/2011,1900616906,"8,774.29",Steele Davis (Swindon) Ltd ,100419,SN10,Resources,WTP Office,Preventative Property Maintenance,Premises Related,REVENUE
http://statistics.data.gov.uk/id/local-authority/00HY,Wiltshire Council,23/06/2011,1900616864,"9,500.00",Steele Davis (Swindon) Ltd ,100419,SN10,Resources,Campus,Preventative Property Maintenance,Premises Related,REVENUE
http://statistics.data.gov.uk/id/local-authority/00HY,Wiltshire Council,28/06/2011,1900617410,"10,000.00",Steele Davis (Swindon) Ltd ,100419,SN10,Wiltshire Council,Wiltshire Council,Buildings Minor Alterations,Premises Related,CAPITAL
http://statistics.data.gov.uk/id/local-authority/00HY,Wiltshire Council,02/06/2011,5105954850,"15,000.00",Steele Davis (Swindon) Ltd ,100419,SN10,Wiltshire Council,Wiltshire Council,Consultants� Fees,Supplies and Services,CAPITAL
http://statistics.data.gov.uk/id/local-authority/00HY,Wiltshire Council,15/06/2011,1900603959,"19,228.00",Steele Davis (Swindon) Ltd ,100419,SN10,Neighbourhood & Planning,Energy Effcncy Projs,Preventative Property Maintenance,Premises Related,REVENUE
http://statistics.data.gov.uk/id/local-authority/00HY,Wiltshire Council,03/06/2011,1900599332,"36,100.00",Steele Davis (Swindon) Ltd ,100419,SN10,Wiltshire Council,Wiltshire Council,Buildings Minor Alterations,Premises Related,CAPITAL
http://statistics.data.gov.uk/id/local-authority/00HY,Wiltshire Council,28/06/2011,5105966017,"36,201.94",Steele Davis (Swindon) Ltd ,100419,SN10,Wiltshire Council,Wiltshire Council,Consultants� Fees,Supplies and Services,CAPITAL
http://statistics.data.gov.uk/id/local-authority/00HY,Wiltshire Council,03/06/2011,1900599333,"39,425.00",Steele Davis (Swindon) Ltd ,100419,SN10,Wiltshire Council,Wiltshire Council,Buildings Minor Alterations,Premises Related,CAPITAL
http://statistics.data.gov.uk/id/local-authority/00HY,Wiltshire Council,23/06/2011,1900616313,"47,500.00",Steele Davis (Swindon) Ltd ,100419,SN10,Wiltshire Council,Wiltshire Council,Buildings Minor Alterations,Premises Related,CAPITAL
http://statistics.data.gov.uk/id/local-authority/00HY,Wiltshire Council,28/06/2011,1900616314,"60,297.48",Steele Davis (Swindon) Ltd ,100419,SN10,Wiltshire Council,Wiltshire Council,Buildings Minor Alterations,Premises Related,CAPITAL
http://statistics.data.gov.uk/id/local-authority/00HY,Wiltshire Council,09/06/2011,1900602753,873.6,Southern Electric Contracting Ltd ,100421,EX1 ,Resources,Primary Sch Pooling,Preventative Property Maintenance,Premises Related,REVENUE
http://statistics.data.gov.uk/id/local-authority/00HY,Wiltshire Council,08/06/2011,5105958868,"1,557.55",Southern Electric Contracting Ltd ,100421,EX1 ,Neighbourhood & Planning,Street Lighting-Mtce,Highways Contracts - Other,Third Party Payments,REVENUE
http://statistics.data.gov.uk/id/local-authority/00HY,Wiltshire Council,09/06/2011,1900602669,"2,870.35",Southern Electric Contracting Ltd ,100421,EX1 ,Resources,Other,Preventative Property Maintenance,Premises Related,REVENUE
http://statistics.data.gov.uk/id/local-authority/00HY,Wiltshire Council,08/06/2011,1900601885,"4,763.52",Southern Electric Contracting Ltd ,100421,EX1 ,Resources,WTP Office,Preventative Property Maintenance,Premises Related,REVENUE
http://statistics.data.gov.uk/id/local-authority/00HY,Wiltshire Council,15/06/2011,1900608000,836,Corsham Taxis ,100434,SN13,Neighbourhood & Planning,Mainstream Secondary,Transport Contracts,Third Party Payments,REVENUE
http://statistics.data.gov.uk/id/local-authority/00HY,Wiltshire Council,15/06/2011,1900608005,912,Corsham Taxis ,100434,SN13,Neighbourhood & Planning,YPSS Kennet,Transport Contracts,Third Party Payments,REVENUE
http://statistics.data.gov.uk/id/local-authority/00HY,Wiltshire Council,15/06/2011,1900608002,"1,384.20",Corsham Taxis ,100434,SN13,Neighbourhood & Planning,Mainstream 16+ FE,Transport Contracts,Third Party Payments,REVENUE
http://statistics.data.gov.uk/id/local-authority/00HY,Wiltshire Council,15/06/2011,1900608007,"1,501.00",Corsham Taxis ,100434,SN13,Neighbourhood & Planning,SEN Secondary,Transport Contracts,Third Party Payments,REVENUE
http://statistics.data.gov.uk/id/local-authority/00HY,Wiltshire Council,08/06/2011,5105957017,598.4,REDACTED PERSONAL DATA,100501,REDACTED PERSONAL DATA,Community Services,OP North FNC,Adult Care Funded Nursing Care - Loal Auth Clients,Third Party Payments,REVENUE
http://statistics.data.gov.uk/id/local-authority/00HY,Wiltshire Council,08/06/2011,5105957261,598.4,REDACTED PERSONAL DATA,100501,REDACTED PERSONAL DATA,Community Services,OP North FNC,Adult Care Funded Nursing Care - Loal Auth Clients,Third Party Payments,REVENUE
http://statistics.data.gov.uk/id/local-authority/00HY,Wiltshire Council,08/06/2011,5105957119,"2,338.24",REDACTED PERSONAL DATA,100501,REDACTED PERSONAL DATA,Community Services,OP South Locality,Adult Care Nursing Placements- Spot Purchase,Third Party Payments,REVENUE
http://statistics.data.gov.uk/id/local-authority/00HY,Wiltshire Council,08/06/2011,5105957260,"2,495.64",REDACTED PERSONAL DATA,100501,REDACTED PERSONAL DATA,Community Services,OP North Locality,Adult Care Nursing Placements- Spot Purchase,Third Party Payments,REVENUE
http://statistics.data.gov.uk/id/local-authority/00HY,Wiltshire Council,08/06/2011,5105957064,"2,806.52",REDACTED PERSONAL DATA,100501,REDACTED PERSONAL DATA,Community Services,OP North Locality,Adult Care Nursing Placements- Spot Purchase,Third Party Payments,REVENUE
http://statistics.data.gov.uk/id/local-authority/00HY,Wiltshire Council,08/06/2011,5105957016,"2,939.36",REDACTED PERSONAL DATA,100501,REDACTED PERSONAL DATA,Community Services,OP North Locality,Adult Care Nursing Placements- Spot Purchase,Third Party Payments,REVENUE
http://statistics.data.gov.uk/id/local-authority/00HY,Wiltshire Council,08/06/2011,5105956700,"2,990.40",REDACTED PERSONAL DATA,100501,REDACTED PERSONAL DATA,Community Services,OP North Locality,Adult Care Nursing Placements- Spot Purchase,Third Party Payments,REVENUE
http://statistics.data.gov.uk/id/local-authority/00HY,Wiltshire Council,09/06/2011,5105960197,"3,000.00",REDACTED PERSONAL DATA,100501,REDACTED PERSONAL DATA,Community Services,OP North HL,Adult Care - Home Loan Costs,Capital charges and Expenditure,REVENUE
http://statistics.data.gov.uk/id/local-authority/00HY,Wiltshire Council,08/06/2011,5105957107,"3,164.04",REDACTED PERSONAL DATA,100501,REDACTED PERSONAL DATA,Community Services,MH OP West Locality,Adult Care Nursing Placements- Spot Purchase,Third Party Payments,REVENUE
http://statistics.data.gov.uk/id/local-authority/00HY,Wiltshire Council,08/06/2011,5105956866,"3,400.00",REDACTED PERSONAL DATA,100501,REDACTED PERSONAL DATA,Community Services,PI North Locality,Adult Care Nursing Placements- Spot Purchase,Third Party Payments,REVENUE
http://statistics.data.gov.uk/id/local-authority/00HY,Wiltshire Council,08/06/2011,1900600462,"4,882.80",REDACTED PERSONAL DATA,100501,REDACTED PERSONAL DATA,Community Services,FNC,Adult Care Funded Nursing Care - Out of County Cli,Third Party Payments,REVENUE
http://statistics.data.gov.uk/id/local-authority/00HY,Wiltshire Council,08/06/2011,5105958542,556.4,Turning Point ,100570,SP1 ,Community Services,CTPLD County S75 U65,Adult Day Care - Spot,Third Party Payments,REVENUE
http://statistics.data.gov.uk/id/local-authority/00HY,Wiltshire Council,08/06/2011,5105958550,630.56,Turning Point ,100570,SP1 ,Community Services,CTPLD County S75 U65,Adult Day Care - Spot,Third Party Payments,REVENUE
http://statistics.data.gov.uk/id/local-authority/00HY,Wiltshire Council,08/06/2011,5105958532,667.72,Turning Point ,100570,SP1 ,Community Services,CTPLD County S75 U65,Adult Day Care - Spot,Third Party Payments,REVENUE
http://statistics.data.gov.uk/id/local-authority/00HY,Wiltshire Council,23/06/2011,5105965065,756.6,Turning Point ,100570,SP1 ,Community Services,CTPLD County CIC U65,Adult Day Care - Spot,Third Party Payments,REVENUE
http://statistics.data.gov.uk/id/local-authority/00HY,Wiltshire Council,08/06/2011,5105958498,756.68,Turning Point ,100570,SP1 ,Community Services,CTPLD County S75 U65,Adult Day Care - Spot,Third Party Payments,REVENUE
http://statistics.data.gov.uk/id/local-authority/00HY,Wiltshire Council,08/06/2011,5105958507,756.68,Turning Point ,100570,SP1 ,Community Services,CTPLD County CIC U65,Adult Day Care - Spot,Third Party Payments,REVENUE
http://statistics.data.gov.uk/id/local-authority/00HY,Wiltshire Council,08/06/2011,5105958520,756.68,Turning Point ,100570,SP1 ,Community Services,CTPLD County S75 U65,Adult Day Care - Spot,Third Party Payments,REVENUE
http://statistics.data.gov.uk/id/local-authority/00HY,Wiltshire Council,08/06/2011,5105958541,756.68,Turning Point ,100570,SP1 ,Community Services,CTPLD County S75 U65,Adult Day Care - Spot,Third Party Payments,REVENUE
http://statistics.data.gov.uk/id/local-authority/00HY,Wiltshire Council,23/06/2011,5105965064,871.92,Turning Point ,100570,SP1 ,Community Services,CTPLD County CIC 65+,Supported Living - Without SP payments,Third Party Payments,REVENUE
http://statistics.data.gov.uk/id/local-authority/00HY,Wiltshire Council,08/06/2011,5105958497,882.76,Turning Point ,100570,SP1 ,Community Services,CTPLD County S75 U65,Adult Day Care - Spot,Third Party Payments,REVENUE
http://statistics.data.gov.uk/id/local-authority/00HY,Wiltshire Council,08/06/2011,5105958514,"1,008.92",Turning Point ,100570,SP1 ,Community Services,CTPLD County S75 U65,Adult Day Care - Spot,Third Party Payments,REVENUE
http://statistics.data.gov.uk/id/local-authority/00HY,Wiltshire Council,08/06/2011,5105958537,"1,008.92",Turning Point ,100570,SP1 ,Community Services,CTPLD County S75 U65,Adult Day Care - Spot,Third Party Payments,REVENUE
http://statistics.data.gov.uk/id/local-authority/00HY,Wiltshire Council,08/06/2011,5105958538,"1,492.36",Turning Point ,100570,SP1 ,Community Services,CTPLD County CIC U65,Adult Day Care - Spot,Third Party Payments,REVENUE
http://statistics.data.gov.uk/id/local-authority/00HY,Wiltshire Council,08/06/2011,5105958506,"1,737.48",Turning Point ,100570,SP1 ,Community Services,CTPLD County S75 U65,Adult Day Care - Spot,Third Party Payments,REVENUE
http://statistics.data.gov.uk/id/local-authority/00HY,Wiltshire Council,24/06/2011,5105965367,"1,815.36",Turning Point ,100570,SP1 ,Community Services,CTPLD County CIC U65,Adult Day Care - Spot,Third Party Payments,REVENUE
http://statistics.data.gov.uk/id/local-authority/00HY,Wiltshire Council,08/06/2011,5105958521,"2,957.44",Turning Point ,100570,SP1 ,Community Services,CTPLD County CIC U65,Adult Day Care - Spot,Third Party Payments,REVENUE
http://statistics.data.gov.uk/id/local-authority/00HY,Wiltshire Council,08/06/2011,5105958526,"3,599.12",Turning Point ,100570,SP1 ,Community Services,CTPLD County S75 65+,Supported Living - With SP Payments (3rd Party),Third Party Payments,REVENUE
http://statistics.data.gov.uk/id/local-authority/00HY,Wiltshire Council,08/06/2011,5105958492,"3,678.32",Turning Point ,100570,SP1 ,Community Services,PI South Locality,Supported Living - With SP Payments (3rd Party),Third Party Payments,REVENUE
http://statistics.data.gov.uk/id/local-authority/00HY,Wiltshire Council,24/06/2011,5105965368,"3,717.60",Turning Point ,100570,SP1 ,Community Services,CTPLD County CIC U65,Supported Living - Without SP payments,Third Party Payments,REVENUE
http://statistics.data.gov.uk/id/local-authority/00HY,Wiltshire Council,08/06/2011,5105958533,"3,846.32",Turning Point ,100570,SP1 ,Community Services,CTPLD County S75 U65,Supported Living - With SP Payments (3rd Party),Third Party Payments,REVENUE
http://statistics.data.gov.uk/id/local-authority/00HY,Wiltshire Council,08/06/2011,5105958539,"3,862.24",Turning Point ,100570,SP1 ,Community Services,CTPLD County S75 U65,Supported Living - With SP Payments (3rd Party),Third Party Payments,REVENUE
http://statistics.data.gov.uk/id/local-authority/00HY,Wiltshire Council,08/06/2011,5105958524,"3,878.20",Turning Point ,100570,SP1 ,Community Services,CTPLD County S75 U65,Supported Living - With SP Payments (3rd Party),Third Party Payments,REVENUE
http://statistics.data.gov.uk/id/local-authority/00HY,Wiltshire Council,08/06/2011,5105958543,"4,050.40",Turning Point ,100570,SP1 ,Community Services,CTPLD County S75 U65,Supported Living - With SP Payments (3rd Party),Third Party Payments,REVENUE
http://statistics.data.gov.uk/id/local-authority/00HY,Wiltshire Council,08/06/2011,5105958522,"4,066.36",Turning Point ,100570,SP1 ,Community Services,CTPLD County S75 U65,Supported Living - With SP Payments (3rd Party),Third Party Payments,REVENUE
http://statistics.data.gov.uk/id/local-authority/00HY,Wiltshire Council,08/06/2011,5105958504,"4,146.28",Turning Point ,100570,SP1 ,Community Services,CTPLD County CIC 65+,Supported Living - With SP Payments (3rd Party),Third Party Payments,REVENUE
http://statistics.data.gov.uk/id/local-authority/00HY,Wiltshire Council,08/06/2011,5105958548,"4,538.36",Turning Point ,100570,SP1 ,Community Services,CTPLD County S75 U65,Supported Living - Without SP payments,Third Party Payments,REVENUE
http://statistics.data.gov.uk/id/local-authority/00HY,Wiltshire Council,08/06/2011,5105958501,"4,573.24",Turning Point ,100570,SP1 ,Community Services,CTPLD County S75 U65,Supported Living - With SP Payments (3rd Party),Third Party Payments,REVENUE
http://statistics.data.gov.uk/id/local-authority/00HY,Wiltshire Council,08/06/2011,5105958510,"4,573.24",Turning Point ,100570,SP1 ,Community Services,CTPLD County CIC U65,Supported Living - With SP Payments (3rd Party),Third Party Payments,REVENUE
http://statistics.data.gov.uk/id/local-authority/00HY,Wiltshire Council,08/06/2011,5105958515,"4,573.24",Turning Point ,100570,SP1 ,Community Services,CTPLD County CIC U65,Supported Living - With SP Payments (3rd Party),Third Party Payments,REVENUE
http://statistics.data.gov.uk/id/local-authority/00HY,Wiltshire Council,08/06/2011,5105955863,"4,651.60",Turning Point ,100570,SP1 ,Community Services,CTPLD County S75 65+,Adult Residential Placements - Spot Purchase,Third Party Payments,REVENUE
http://statistics.data.gov.uk/id/local-authority/00HY,Wiltshire Council,08/06/2011,5105955877,"4,651.60",Turning Point ,100570,SP1 ,Community Services,CTPLD County S75 65+,Adult Residential Placements - Spot Purchase,Third Party Payments,REVENUE
http://statistics.data.gov.uk/id/local-authority/00HY,Wiltshire Council,08/06/2011,5105955919,"4,651.60",Turning Point ,100570,SP1 ,Community Services,CTPLD County S75 65+,Adult Residential Placements - Spot Purchase,Third Party Payments,REVENUE
http://statistics.data.gov.uk/id/local-authority/00HY,Wiltshire Council,08/06/2011,5105956070,"4,651.60",Turning Point ,100570,SP1 ,Community Services,CTPLD County S75 U65,Adult Residential Placements - Spot Purchase,Third Party Payments,REVENUE
http://statistics.data.gov.uk/id/local-authority/00HY,Wiltshire Council,08/06/2011,5105957127,"4,651.60",Turning Point ,100570,SP1 ,Community Services,CTPLD County S75 U65,Adult Residential Placements - Spot Purchase,Third Party Payments,REVENUE
http://statistics.data.gov.uk/id/local-authority/00HY,Wiltshire Council,08/06/2011,5105957136,"4,651.60",Turning Point ,100570,SP1 ,Community Services,CTPLD County S75 U65,Adult Residential Placements - Spot Purchase,Third Party Payments,REVENUE
http://statistics.data.gov.uk/id/local-authority/00HY,Wiltshire Council,08/06/2011,5105957692,"4,651.60",Turning Point ,100570,SP1 ,Community Services,CTPLD County S75 U65,Adult Residential Placements - Spot Purchase,Third Party Payments,REVENUE
http://statistics.data.gov.uk/id/local-authority/00HY,Wiltshire Council,16/06/2011,5105962031,"4,800.00",Turning Point ,100570,SP1 ,Community Services,CTPLD County CIC U65,Adult Care Nursing Placements- Spot Purchase,Third Party Payments,REVENUE
http://statistics.data.gov.uk/id/local-authority/00HY,Wiltshire Council,08/06/2011,5105958536,"4,977.28",Turning Point ,100570,SP1 ,Community Services,CTPLD County CIC 65+,Supported Living - Without SP payments,Third Party Payments,REVENUE
http://statistics.data.gov.uk/id/local-authority/00HY,Wiltshire Council,09/06/2011,5105958546,"5,300.40",Turning Point ,100570,SP1 ,Community Services,CTPLD County S75 U65,Supported Living - With SP Payments (3rd Party),Third Party Payments,REVENUE
http://statistics.data.gov.uk/id/local-authority/00HY,Wiltshire Council,09/06/2011,5105958499,"5,332.32",Turning Point ,100570,SP1 ,Community Services,CTPLD County S75 U65,Supported Living - With SP Payments (3rd Party),Third Party Payments,REVENUE
http://statistics.data.gov.uk/id/local-authority/00HY,Wiltshire Council,08/06/2011,5105958495,"5,396.00",Turning Point ,100570,SP1 ,Community Services,CTPLD County CIC U65,Supported Living - Without SP payments,Third Party Payments,REVENUE
http://statistics.data.gov.uk/id/local-authority/00HY,Wiltshire Council,08/06/2011,5105958508,"5,422.32",Turning Point ,100570,SP1 ,Community Services,CTPLD County CIC U65,Supported Living - Without SP payments,Third Party Payments,REVENUE
http://statistics.data.gov.uk/id/local-authority/00HY,Wiltshire Council,08/06/2011,5105958529,"5,637.60",Turning Point ,100570,SP1 ,Community Services,CTPLD County CIC U65,Supported Living - Without SP payments,Third Party Payments,REVENUE
http://statistics.data.gov.uk/id/local-authority/00HY,Wiltshire Council,08/06/2011,5105957759,"5,862.92",Turning Point ,100570,SP1 ,Community Services,CTPLD County S75 U65,Adult Residential Placements - Spot Purchase,Third Party Payments,REVENUE
http://statistics.data.gov.uk/id/local-authority/00HY,Wiltshire Council,08/06/2011,5105956204,"6,112.48",Turning Point ,100570,SP1 ,Community Services,CTPLD County S75 U65,Adult Residential Placements - Spot Purchase,Third Party Payments,REVENUE
http://statistics.data.gov.uk/id/local-authority/00HY,Wiltshire Council,08/06/2011,5105956376,"6,112.48",Turning Point ,100570,SP1 ,Community Services,CTPLD County S75 U65,Adult Residential Placements - Spot Purchase,Third Party Payments,REVENUE
http://statistics.data.gov.uk/id/local-authority/00HY,Wiltshire Council,08/06/2011,5105956599,"6,707.40",Turning Point ,100570,SP1 ,Community Services,CTPLD County CIC U65,Adult Residential Placements - Spot Purchase,Third Party Payments,REVENUE
http://statistics.data.gov.uk/id/local-authority/00HY,Wiltshire Council,15/06/2011,1900607870,"23,028.64",Turning Point ,100570,SP1 ,Community Services,S/People,Supporting People - Subsidy,Third Party Payments,REVENUE
http://statistics.data.gov.uk/id/local-authority/00HY,Wiltshire Council,23/06/2011,1900616049,"23,028.64",Turning Point ,100570,SP1 ,Community Services,S/People,Supporting People - Subsidy,Third Party Payments,REVENUE
http://statistics.data.gov.uk/id/local-authority/00HY,Wiltshire Council,15/06/2011,1900607871,"1,995.35",Salisbury City Almshouse   Welfare ,100571,SP1 ,Community Services,S/People,Supporting People - Subsidy,Third Party Payments,REVENUE
http://statistics.data.gov.uk/id/local-authority/00HY,Wiltshire Council,23/06/2011,1900616050,"2,334.00",Salisbury City Almshouse   Welfare ,100571,SP1 ,Community Services,S/People,Supporting People - Subsidy,Third Party Payments,REVENUE
http://statistics.data.gov.uk/id/local-authority/00HY,Wiltshire Council,27/06/2011,1900602766,714,Biogas Technology Ltd ,100573,PE17,Neighbourhood & Planning,Closed Site-Rout Mtc,Preventative Property Maintenance,Premises Related,REVENUE
http://statistics.data.gov.uk/id/local-authority/00HY,Wiltshire Council,23/06/2011,1900616819,532,Arrow Private Hire ,100574,SN8 ,Neighbourhood & Planning,Mainstream Secondary,Transport Contracts,Third Party Payments,REVENUE
http://statistics.data.gov.uk/id/local-authority/00HY,Wiltshire Council,23/06/2011,1900616823,540,Arrow Private Hire ,100574,SN8 ,Neighbourhood & Planning,SEN Secondary,Transport Contracts,Third Party Payments,REVENUE
http://statistics.data.gov.uk/id/local-authority/00HY,Wiltshire Council,23/06/2011,1900616821,570,Arrow Private Hire ,100574,SN8 ,Neighbourhood & Planning,SEN Primary,Transport Contracts,Third Party Payments,REVENUE
http://statistics.data.gov.uk/id/local-authority/00HY,Wiltshire Council,23/06/2011,1900616827,969,Arrow Private Hire ,100574,SN8 ,Neighbourhood & Planning,SEN Primary,Transport Contracts,Third Party Payments,REVENUE
http://statistics.data.gov.uk/id/local-authority/00HY,Wiltshire Council,09/06/2011,1900602648,975,Arrow Private Hire ,100574,SN8 ,Neighbourhood & Planning,LAC&16+ North&East,Transport Contracts,Third Party Payments,REVENUE
http://statistics.data.gov.uk/id/local-authority/00HY,Wiltshire Council,02/06/2011,1900599058,921.05,St Augustines Enterprises Ltd ,100577,BA14,Neighbourhood & Planning,Mainstream 16+ Sec,Transport Contracts,Third Party Payments,REVENUE
http://statistics.data.gov.uk/id/local-authority/00HY,Wiltshire Council,02/06/2011,1900599058,"7,211.77",St Augustines Enterprises Ltd ,100577,BA14,Neighbourhood & Planning,Mainstream Secondary,Transport Contracts,Third Party Payments,REVENUE
http://statistics.data.gov.uk/id/local-authority/00HY,Wiltshire Council,15/06/2011,1900607872,"1,154.08",Habinteg Housing Association ,100583,EC4A,Community Services,S/People,Supporting People - Subsidy,Third Party Payments,REVENUE
http://statistics.data.gov.uk/id/local-authority/00HY,Wiltshire Council,23/06/2011,1900616051,"1,154.08",Habinteg Housing Association ,100583,EC4A,Community Services,S/People,Supporting People - Subsidy,Third Party Payments,REVENUE
http://statistics.data.gov.uk/id/local-authority/00HY,Wiltshire Council,22/06/2011,1900615590,984.35,REDACTED PERSONAL DATA,100584,REDACTED PERSONAL DATA,Neighbourhood & Planning,DCS North Locality O,Transport Contracts,Third Party Payments,REVENUE
http://statistics.data.gov.uk/id/local-authority/00HY,Wiltshire Council,22/06/2011,1900615593,"2,185.76",REDACTED PERSONAL DATA,100584,REDACTED PERSONAL DATA,Neighbourhood & Planning,SEN Secondary,Transport Contracts,Third Party Payments,REVENUE
http://statistics.data.gov.uk/id/local-authority/00HY,Wiltshire Council,24/06/2011,1900616968,"1,452.89",Stagecoach  South  Ltd ,100585,SK3 ,Neighbourhood & Planning,Public Transport,Transport Contracts,Third Party Payments,REVENUE
http://statistics.data.gov.uk/id/local-authority/00HY,Wiltshire Council,27/06/2011,1900617296,"8,008.68",Stagecoach  South  Ltd ,100585,SK3 ,Neighbourhood & Planning,Concessionary Fares,Compensation for Concessionary fares,Third Party Payments,REVENUE
http://statistics.data.gov.uk/id/local-authority/00HY,Wiltshire Council,23/06/2011,5105953447,766.63,Self Unlimited ,100589,LE8 ,Community Services,PI North Locality,Adult Day Care - Spot,Third Party Payments,REVENUE
http://statistics.data.gov.uk/id/local-authority/00HY,Wiltshire Council,23/06/2011,5105953446,863.97,Self Unlimited ,100589,LE8 ,Community Services,PI North Locality,Adult Day Care - Spot,Third Party Payments,REVENUE
http://statistics.data.gov.uk/id/local-authority/00HY,Wiltshire Council,08/06/2011,5105956406,"2,094.96",Self Unlimited ,100589,LE8 ,Community Services,CTPLD County CIC U65,Adult Residential Placements - Spot Purchase,Third Party Payments,REVENUE
http://statistics.data.gov.uk/id/local-authority/00HY,Wiltshire Council,08/06/2011,5105956015,"2,115.28",Self Unlimited ,100589,LE8 ,Community Services,CTPLD County CIC U65,Adult Residential Placements - Spot Purchase,Third Party Payments,REVENUE
http://statistics.data.gov.uk/id/local-authority/00HY,Wiltshire Council,08/06/2011,5105957708,"2,266.80",Self Unlimited ,100589,LE8 ,Community Services,CTPLD County CIC 65+,Adult Residential Placements - Spot Purchase,Third Party Payments,REVENUE
http://statistics.data.gov.uk/id/local-authority/00HY,Wiltshire Council,08/06/2011,5105956388,"2,297.88",Self Unlimited ,100589,LE8 ,Community Services,PI North Locality,Adult Residential Placements - Spot Purchase,Third Party Payments,REVENUE
http://statistics.data.gov.uk/id/local-authority/00HY,Wiltshire Council,08/06/2011,5105959141,"2,310.16",Self Unlimited ,100589,LE8 ,Community Services,CTPLD County CIC U65,Adult Residential Placements - Spot Purchase,Third Party Payments,REVENUE
http://statistics.data.gov.uk/id/local-authority/00HY,Wiltshire Council,08/06/2011,5105956072,"2,314.20",Self Unlimited ,100589,LE8 ,Community Services,CTPLD County CIC U65,Adult Residential Placements - Spot Purchase,Third Party Payments,REVENUE
http://statistics.data.gov.uk/id/local-authority/00HY,Wiltshire Council,08/06/2011,5105956078,"2,314.20",Self Unlimited ,100589,LE8 ,Community Services,CTPLD County CIC U65,Adult Residential Placements - Spot Purchase,Third Party Payments,REVENUE
http://statistics.data.gov.uk/id/local-authority/00HY,Wiltshire Council,08/06/2011,5105956200,"2,314.20",Self Unlimited ,100589,LE8 ,Community Services,CTPLD County CIC U65,Adult Residential Placements - Spot Purchase,Third Party Payments,REVENUE
http://statistics.data.gov.uk/id/local-authority/00HY,Wiltshire Council,08/06/2011,5105956332,"2,314.20",Self Unlimited ,100589,LE8 ,Community Services,CTPLD County CIC U65,Adult Residential Placements - Spot Purchase,Third Party Payments,REVENUE
http://statistics.data.gov.uk/id/local-authority/00HY,Wiltshire Council,08/06/2011,5105956318,"2,346.68",Self Unlimited ,100589,LE8 ,Community Services,CTPLD County CIC U65,Adult Residential Placements - Spot Purchase,Third Party Payments,REVENUE
http://statistics.data.gov.uk/id/local-authority/00HY,Wiltshire Council,08/06/2011,5105957129,"2,346.68",Self Unlimited ,100589,LE8 ,Community Services,CTPLD County CIC U65,Adult Residential Placements - Spot Purchase,Third Party Payments,REVENUE
http://statistics.data.gov.uk/id/local-authority/00HY,Wiltshire Council,08/06/2011,5105956110,"2,383.68",Self Unlimited ,100589,LE8 ,Community Services,MH AOWA North,Adult Residential Placements - Spot Purchase,Third Party Payments,REVENUE
http://statistics.data.gov.uk/id/local-authority/00HY,Wiltshire Council,08/06/2011,5105956258,"2,529.40",Self Unlimited ,100589,LE8 ,Community Services,CTPLD County CIC U65,Adult Residential Placements - Spot Purchase,Third Party Payments,REVENUE
http://statistics.data.gov.uk/id/local-authority/00HY,Wiltshire Council,08/06/2011,5105956356,"2,549.68",Self Unlimited ,100589,LE8 ,Community Services,CTPLD County CIC U65,Adult Residential Placements - Spot Purchase,Third Party Payments,REVENUE
http://statistics.data.gov.uk/id/local-authority/00HY,Wiltshire Council,08/06/2011,5105956362,"2,549.68",Self Unlimited ,100589,LE8 ,Community Services,CTPLD County CIC U65,Adult Residential Placements - Spot Purchase,Third Party Payments,REVENUE
http://statistics.data.gov.uk/id/local-authority/00HY,Wiltshire Council,08/06/2011,5105956394,"2,549.68",Self Unlimited ,100589,LE8 ,Community Services,CTPLD County CIC U65,Adult Residential Placements - Spot Purchase,Third Party Payments,REVENUE
http://statistics.data.gov.uk/id/local-authority/00HY,Wiltshire Council,08/06/2011,5105957551,"2,639.00",Self Unlimited ,100589,LE8 ,Community Services,CTPLD County CIC U65,Adult Residential Placements - Spot Purchase,Third Party Payments,REVENUE
http://statistics.data.gov.uk/id/local-authority/00HY,Wiltshire Council,08/06/2011,5105956023,"2,700.00",Self Unlimited ,100589,LE8 ,Community Services,CTPLD County CIC U65,Adult Residential Placements - Spot Purchase,Third Party Payments,REVENUE
http://statistics.data.gov.uk/id/local-authority/00HY,Wiltshire Council,08/06/2011,5105956132,"2,708.00",Self Unlimited ,100589,LE8 ,Community Services,CTPLD County CIC U65,Adult Residential Placements - Spot Purchase,Third Party Payments,REVENUE
http://statistics.data.gov.uk/id/local-authority/00HY,Wiltshire Council,08/06/2011,5105956178,"2,842.00",Self Unlimited ,100589,LE8 ,Community Services,CTPLD County CIC U65,Adult Residential Placements - Spot Purchase,Third Party Payments,REVENUE
http://statistics.data.gov.uk/id/local-authority/00HY,Wiltshire Council,23/06/2011,1900616052,"3,327.56",Self Unlimited ,100589,LE8 ,Community Services,S/People,Supporting People - Subsidy,Third Party Payments,REVENUE
http://statistics.data.gov.uk/id/local-authority/00HY,Wiltshire Council,28/06/2011,1900617365,"3,700.00",Self Unlimited ,100589,LE8 ,Community Services,CTPLD County CIC U65,Adult Residential Placements - Spot Purchase,Third Party Payments,REVENUE
http://statistics.data.gov.uk/id/local-authority/00HY,Wiltshire Council,08/06/2011,5105959143,"4,237.99",Self Unlimited ,100589,LE8 ,Community Services,CTPLD County CIC U65,Adult Residential Placements - Spot Purchase,Third Party Payments,REVENUE
http://statistics.data.gov.uk/id/local-authority/00HY,Wiltshire Council,21/06/2011,1900609734,"4,430.28",Self Unlimited ,100589,LE8 ,Community Services,CTPLD County CIC U65,Adult Residential Placements - Spot Purchase,Third Party Payments,REVENUE
http://statistics.data.gov.uk/id/local-authority/00HY,Wiltshire Council,08/06/2011,5105956096,"4,466.00",Self Unlimited ,100589,LE8 ,Community Services,CTPLD County CIC U65,Adult Residential Placements - Spot Purchase,Third Party Payments,REVENUE
http://statistics.data.gov.uk/id/local-authority/00HY,Wiltshire Council,08/06/2011,5105956116,"4,904.00",Self Unlimited ,100589,LE8 ,Community Services,CTPLD County CIC U65,Adult Residential Placements - Spot Purchase,Third Party Payments,REVENUE
http://statistics.data.gov.uk/id/local-authority/00HY,Wiltshire Council,02/06/2011,5105954734,500,Wiltshire Waste  Recycling  Ltd ,100594,SN10,Neighbourhood & Planning,East Ops - Waste,Payments to Contractors - Waste - Other,Third Party Payments,REVENUE
http://statistics.data.gov.uk/id/local-authority/00HY,Wiltshire Council,20/06/2011,1900609357,"1,302.22",APL Travel Limited ,100596,SN4 ,Neighbourhood & Planning,Mainstream Secondary,Transport Contracts,Third Party Payments,REVENUE
http://statistics.data.gov.uk/id/local-authority/00HY,Wiltshire Council,16/06/2011,1900608444,"1,375.28",APL Travel Limited ,100596,SN4 ,Neighbourhood & Planning,Mainstream Secondary,Transport Contracts,Third Party Payments,REVENUE
http://statistics.data.gov.uk/id/local-authority/00HY,Wiltshire Council,16/06/2011,1900608441,"1,511.41",APL Travel Limited ,100596,SN4 ,Neighbourhood & Planning,Mainstream Secondary,Transport Contracts,Third Party Payments,REVENUE
http://statistics.data.gov.uk/id/local-authority/00HY,Wiltshire Council,16/06/2011,1900608448,"2,033.20",APL Travel Limited ,100596,SN4 ,Neighbourhood & Planning,Mainstream Secondary,Transport Contracts,Third Party Payments,REVENUE
http://statistics.data.gov.uk/id/local-authority/00HY,Wiltshire Council,16/06/2011,1900608430,"2,486.51",APL Travel Limited ,100596,SN4 ,Neighbourhood & Planning,Mainstream Secondary,Transport Contracts,Third Party Payments,REVENUE
http://statistics.data.gov.uk/id/local-authority/00HY,Wiltshire Council,16/06/2011,1900608444,"2,578.19",APL Travel Limited ,100596,SN4 ,Neighbourhood & Planning,Mainstream 16+ FE,Transport Contracts,Third Party Payments,REVENUE
http://statistics.data.gov.uk/id/local-authority/00HY,Wiltshire Council,16/06/2011,1900608447,"2,654.91",APL Travel Limited ,100596,SN4 ,Neighbourhood & Planning,Mainstream Secondary,Transport Contracts,Third Party Payments,REVENUE
http://statistics.data.gov.uk/id/local-authority/00HY,Wiltshire Council,16/06/2011,1900608441,"3,561.38",APL Travel Limited ,100596,SN4 ,Neighbourhood & Planning,Public Transport,Transport Contracts,Third Party Payments,REVENUE
http://statistics.data.gov.uk/id/local-authority/00HY,Wiltshire Council,16/06/2011,1900608444,"4,478.98",APL Travel Limited ,100596,SN4 ,Neighbourhood & Planning,Public Transport,Transport Contracts,Third Party Payments,REVENUE
http://statistics.data.gov.uk/id/local-authority/00HY,Wiltshire Council,27/06/2011,1900617273,"5,283.42",APL Travel Limited ,100596,SN4 ,Neighbourhood & Planning,Concessionary Fares,Compensation for Concessionary fares,Third Party Payments,REVENUE
http://statistics.data.gov.uk/id/local-authority/00HY,Wiltshire Council,20/06/2011,1900609357,"5,286.34",APL Travel Limited ,100596,SN4 ,Neighbourhood & Planning,Public Transport,Transport Contracts,Third Party Payments,REVENUE
http://statistics.data.gov.uk/id/local-authority/00HY,Wiltshire Council,16/06/2011,1900608445,"5,442.49",APL Travel Limited ,100596,SN4 ,Neighbourhood & Planning,Mainstream Secondary,Transport Contracts,Third Party Payments,REVENUE
http://statistics.data.gov.uk/id/local-authority/00HY,Wiltshire Council,13/06/2011,5105948585,581.72,Community Access Network Ltd ,100597,SN2 ,Community Services,CTPLD County CIC U65,Supported Living - Without SP payments,Third Party Payments,REVENUE
http://statistics.data.gov.uk/id/local-authority/00HY,Wiltshire Council,13/06/2011,5105948582,669.6,Community Access Network Ltd ,100597,SN2 ,Community Services,CTPLD County CIC U65,Adult Domiciliary Care - Spot,Third Party Payments,REVENUE
http://statistics.data.gov.uk/id/local-authority/00HY,Wiltshire Council,13/06/2011,5105948586,795.15,Community Access Network Ltd ,100597,SN2 ,Community Services,CTPLD County CIC U65,Adult Domiciliary Care - Spot,Third Party Payments,REVENUE
http://statistics.data.gov.uk/id/local-authority/00HY,Wiltshire Council,08/06/2011,5105956210,"4,066.08",Community Access Network Ltd ,100597,SN2 ,Community Services,CTPLD County CIC U65,Adult Residential Placements - Spot Purchase,Third Party Payments,REVENUE
http://statistics.data.gov.uk/id/local-authority/00HY,Wiltshire Council,13/06/2011,5105948583,"4,191.29",Community Access Network Ltd ,100597,SN2 ,Community Services,CTPLD County CIC U65,Supported Living - Without SP payments,Third Party Payments,REVENUE
http://statistics.data.gov.uk/id/local-authority/00HY,Wiltshire Council,23/06/2011,1900616768,503.01,Leszan Travel  wilts ltd ,100600,SN12,Neighbourhood & Planning,DCS CTPLD U65,Transport Contracts,Third Party Payments,REVENUE
http://statistics.data.gov.uk/id/local-authority/00HY,Wiltshire Council,27/06/2011,1900617248,507,Leszan Travel  wilts ltd ,100600,SN12,Neighbourhood & Planning,N&E Children w/Dis,Transport Contracts,Third Party Payments,REVENUE
http://statistics.data.gov.uk/id/local-authority/00HY,Wiltshire Council,27/06/2011,1900617248,515.62,Leszan Travel  wilts ltd ,100600,SN12,Neighbourhood & Planning,SEN Secondary,Transport Contracts,Third Party Payments,REVENUE
http://statistics.data.gov.uk/id/local-authority/00HY,Wiltshire Council,23/06/2011,1900616137,541.5,Leszan Travel  wilts ltd ,100600,SN12,Neighbourhood & Planning,SEN Secondary,Transport Contracts,Third Party Payments,REVENUE
http://statistics.data.gov.uk/id/local-authority/00HY,Wiltshire Council,24/06/2011,1900616946,552,Leszan Travel  wilts ltd ,100600,SN12,Neighbourhood & Planning,SEN Secondary,Transport Contracts,Third Party Payments,REVENUE
http://statistics.data.gov.uk/id/local-authority/00HY,Wiltshire Council,23/06/2011,1900616778,558,Leszan Travel  wilts ltd ,100600,SN12,Neighbourhood & Planning,SEN Secondary,Transport Contracts,Third Party Payments,REVENUE
http://statistics.data.gov.uk/id/local-authority/00HY,Wiltshire Council,01/06/2011,1900598537,560,Leszan Travel  wilts ltd ,100600,SN12,Neighbourhood & Planning,RES Secondary,Transport Contracts,Third Party Payments,REVENUE
http://statistics.data.gov.uk/id/local-authority/00HY,Wiltshire Council,23/06/2011,1900616755,578,Leszan Travel  wilts ltd ,100600,SN12,Neighbourhood & Planning,West Children w/Dis,Transport Contracts,Third Party Payments,REVENUE
http://statistics.data.gov.uk/id/local-authority/00HY,Wiltshire Council,01/06/2011,1900598531,580.5,Leszan Travel  wilts ltd ,100600,SN12,Neighbourhood & Planning,SEN Primary,Transport Contracts,Third Party Payments,REVENUE
http://statistics.data.gov.uk/id/local-authority/00HY,Wiltshire Council,01/06/2011,1900598531,580.5,Leszan Travel  wilts ltd ,100600,SN12,Neighbourhood & Planning,SEN Secondary,Transport Contracts,Third Party Payments,REVENUE
http://statistics.data.gov.uk/id/local-authority/00HY,Wiltshire Council,24/06/2011,1900616948,592,Leszan Travel  wilts ltd ,100600,SN12,Neighbourhood & Planning,SEN Secondary,Transport Contracts,Third Party Payments,REVENUE
http://statistics.data.gov.uk/id/local-authority/00HY,Wiltshire Council,24/06/2011,1900616948,592,Leszan Travel  wilts ltd ,100600,SN12,Neighbourhood & Planning,RES Secondary,Transport Contracts,Third Party Payments,REVENUE
http://statistics.data.gov.uk/id/local-authority/00HY,Wiltshire Council,17/06/2011,1900609093,592.26,Leszan Travel  wilts ltd ,100600,SN12,Neighbourhood & Planning,SEN Primary,Transport Contracts,Third Party Payments,REVENUE
http://statistics.data.gov.uk/id/local-authority/00HY,Wiltshire Council,23/06/2011,1900616780,608,Leszan Travel  wilts ltd ,100600,SN12,Neighbourhood & Planning,SEN Secondary,Transport Contracts,Third Party Payments,REVENUE
http://statistics.data.gov.uk/id/local-authority/00HY,Wiltshire Council,23/06/2011,1900616141,646,Leszan Travel  wilts ltd ,100600,SN12,Neighbourhood & Planning,Mainstream Secondary,Transport Contracts,Third Party Payments,REVENUE
http://statistics.data.gov.uk/id/local-authority/00HY,Wiltshire Council,23/06/2011,1900616138,711.25,Leszan Travel  wilts ltd ,100600,SN12,Neighbourhood & Planning,Mainstream Secondary,Transport Contracts,Third Party Payments,REVENUE
http://statistics.data.gov.uk/id/local-authority/00HY,Wiltshire Council,17/06/2011,1900609107,731.13,Leszan Travel  wilts ltd ,100600,SN12,Neighbourhood & Planning,SEN Rechargable Exp,Transport Contracts,Third Party Payments,REVENUE
http://statistics.data.gov.uk/id/local-authority/00HY,Wiltshire Council,24/06/2011,1900616952,738,Leszan Travel  wilts ltd ,100600,SN12,Neighbourhood & Planning,SEN Primary,Transport Contracts,Third Party Payments,REVENUE
http://statistics.data.gov.uk/id/local-authority/00HY,Wiltshire Council,24/06/2011,1900616950,744,Leszan Travel  wilts ltd ,100600,SN12,Neighbourhood & Planning,SEN Secondary,Transport Contracts,Third Party Payments,REVENUE
http://statistics.data.gov.uk/id/local-authority/00HY,Wiltshire Council,24/06/2011,1900616962,774,Leszan Travel  wilts ltd ,100600,SN12,Neighbourhood & Planning,SEN Secondary,Transport Contracts,Third Party Payments,REVENUE
http://statistics.data.gov.uk/id/local-authority/00HY,Wiltshire Council,23/06/2011,1900616763,786.94,Leszan Travel  wilts ltd ,100600,SN12,Neighbourhood & Planning,SEN Secondary,Transport Contracts,Third Party Payments,REVENUE
http://statistics.data.gov.uk/id/local-authority/00HY,Wiltshire Council,17/06/2011,1900609113,820.8,Leszan Travel  wilts ltd ,100600,SN12,Neighbourhood & Planning,SEN 16+ Secondary,Transport Contracts,Third Party Payments,REVENUE
http://statistics.data.gov.uk/id/local-authority/00HY,Wiltshire Council,23/06/2011,1900616130,825.07,Leszan Travel  wilts ltd ,100600,SN12,Neighbourhood & Planning,SEN Primary,Transport Contracts,Third Party Payments,REVENUE
http://statistics.data.gov.uk/id/local-authority/00HY,Wiltshire Council,17/06/2011,1900609106,843.6,Leszan Travel  wilts ltd ,100600,SN12,Neighbourhood & Planning,SEN Secondary,Transport Contracts,Third Party Payments,REVENUE
http://statistics.data.gov.uk/id/local-authority/00HY,Wiltshire Council,23/06/2011,1900616131,855,Leszan Travel  wilts ltd ,100600,SN12,Neighbourhood & Planning,SEN Primary,Transport Contracts,Third Party Payments,REVENUE
http://statistics.data.gov.uk/id/local-authority/00HY,Wiltshire Council,23/06/2011,1900616140,861.32,Leszan Travel  wilts ltd ,100600,SN12,Neighbourhood & Planning,Mainstream Secondary,Transport Contracts,Third Party Payments,REVENUE
http://statistics.data.gov.uk/id/local-authority/00HY,Wiltshire Council,23/06/2011,1900616762,890.28,Leszan Travel  wilts ltd ,100600,SN12,Neighbourhood & Planning,Mainstream Secondary,Transport Contracts,Third Party Payments,REVENUE
http://statistics.data.gov.uk/id/local-authority/00HY,Wiltshire Council,24/06/2011,1900616951,896,Leszan Travel  wilts ltd ,100600,SN12,Neighbourhood & Planning,RES Secondary,Transport Contracts,Third Party Payments,REVENUE
http://statistics.data.gov.uk/id/local-authority/00HY,Wiltshire Council,17/06/2011,1900609102,896.8,Leszan Travel  wilts ltd ,100600,SN12,Neighbourhood & Planning,SEN Primary,Transport Contracts,Third Party Payments,REVENUE
http://statistics.data.gov.uk/id/local-authority/00HY,Wiltshire Council,23/06/2011,1900616779,896.8,Leszan Travel  wilts ltd ,100600,SN12,Neighbourhood & Planning,SEN Secondary,Transport Contracts,Third Party Payments,REVENUE
http://statistics.data.gov.uk/id/local-authority/00HY,Wiltshire Council,17/06/2011,1900609094,912,Leszan Travel  wilts ltd ,100600,SN12,Neighbourhood & Planning,SEN Secondary,Transport Contracts,Third Party Payments,REVENUE
http://statistics.data.gov.uk/id/local-authority/00HY,Wiltshire Council,17/06/2011,1900609094,912,Leszan Travel  wilts ltd ,100600,SN12,Neighbourhood & Planning,RES Secondary,Transport Contracts,Third Party Payments,REVENUE
http://statistics.data.gov.uk/id/local-authority/00HY,Wiltshire Council,24/06/2011,1900616958,949.86,Leszan Travel  wilts ltd ,100600,SN12,Neighbourhood & Planning,SEN Secondary,Transport Contracts,Third Party Payments,REVENUE
http://statistics.data.gov.uk/id/local-authority/00HY,Wiltshire Council,27/06/2011,1900617248,960,Leszan Travel  wilts ltd ,100600,SN12,Neighbourhood & Planning,West Children w/Dis,Transport Contracts,Third Party Payments,REVENUE
http://statistics.data.gov.uk/id/local-authority/00HY,Wiltshire Council,23/06/2011,1900616774,996,Leszan Travel  wilts ltd ,100600,SN12,Neighbourhood & Planning,SEN Primary,Transport Contracts,Third Party Payments,REVENUE
http://statistics.data.gov.uk/id/local-authority/00HY,Wiltshire Council,23/06/2011,1900616774,996,Leszan Travel  wilts ltd ,100600,SN12,Neighbourhood & Planning,SEN Secondary,Transport Contracts,Third Party Payments,REVENUE
http://statistics.data.gov.uk/id/local-authority/00HY,Wiltshire Council,01/06/2011,1900598527,"1,026.00",Leszan Travel  wilts ltd ,100600,SN12,Neighbourhood & Planning,SEN Secondary,Transport Contracts,Third Party Payments,REVENUE
http://statistics.data.gov.uk/id/local-authority/00HY,Wiltshire Council,23/06/2011,1900616776,"1,054.00",Leszan Travel  wilts ltd ,100600,SN12,Neighbourhood & Planning,SEN Primary,Transport Contracts,Third Party Payments,REVENUE
http://statistics.data.gov.uk/id/local-authority/00HY,Wiltshire Council,27/06/2011,1900617248,"1,099.38",Leszan Travel  wilts ltd ,100600,SN12,Neighbourhood & Planning,SEN Primary,Transport Contracts,Third Party Payments,REVENUE
http://statistics.data.gov.uk/id/local-authority/00HY,Wiltshire Council,17/06/2011,1900609107,"1,145.97",Leszan Travel  wilts ltd ,100600,SN12,Neighbourhood & Planning,SEN Primary,Transport Contracts,Third Party Payments,REVENUE
http://statistics.data.gov.uk/id/local-authority/00HY,Wiltshire Council,23/06/2011,1900616146,"1,182.72",Leszan Travel  wilts ltd ,100600,SN12,Neighbourhood & Planning,SEN Secondary,Transport Contracts,Third Party Payments,REVENUE
http://statistics.data.gov.uk/id/local-authority/00HY,Wiltshire Council,17/06/2011,1900609093,"1,184.54",Leszan Travel  wilts ltd ,100600,SN12,Neighbourhood & Planning,SEN Secondary,Transport Contracts,Third Party Payments,REVENUE
http://statistics.data.gov.uk/id/local-authority/00HY,Wiltshire Council,23/06/2011,1900616775,"1,216.00",Leszan Travel  wilts ltd ,100600,SN12,Neighbourhood & Planning,DCS CTPLD U65,Transport Contracts,Third Party Payments,REVENUE
http://statistics.data.gov.uk/id/local-authority/00HY,Wiltshire Council,23/06/2011,1900616780,"1,216.00",Leszan Travel  wilts ltd ,100600,SN12,Neighbourhood & Planning,SEN Primary,Transport Contracts,Third Party Payments,REVENUE
http://statistics.data.gov.uk/id/local-authority/00HY,Wiltshire Council,24/06/2011,1900616936,"1,216.00",Leszan Travel  wilts ltd ,100600,SN12,Neighbourhood & Planning,SEN Secondary,Transport Contracts,Third Party Payments,REVENUE
http://statistics.data.gov.uk/id/local-authority/00HY,Wiltshire Council,17/06/2011,1900609095,"1,225.50",Leszan Travel  wilts ltd ,100600,SN12,Neighbourhood & Planning,SEN Primary,Transport Contracts,Third Party Payments,REVENUE
http://statistics.data.gov.uk/id/local-authority/00HY,Wiltshire Council,17/06/2011,1900609095,"1,225.50",Leszan Travel  wilts ltd ,100600,SN12,Neighbourhood & Planning,SEN Secondary,Transport Contracts,Third Party Payments,REVENUE
http://statistics.data.gov.uk/id/local-authority/00HY,Wiltshire Council,17/06/2011,1900609113,"1,231.20",Leszan Travel  wilts ltd ,100600,SN12,Neighbourhood & Planning,SEN Rechargable Exp,Transport Contracts,Third Party Payments,REVENUE
http://statistics.data.gov.uk/id/local-authority/00HY,Wiltshire Council,23/06/2011,1900616772,"1,254.00",Leszan Travel  wilts ltd ,100600,SN12,Neighbourhood & Planning,SEN Secondary,Transport Contracts,Third Party Payments,REVENUE
http://statistics.data.gov.uk/id/local-authority/00HY,Wiltshire Council,17/06/2011,1900609103,"1,311.00",Leszan Travel  wilts ltd ,100600,SN12,Neighbourhood & Planning,SEN Secondary,Transport Contracts,Third Party Payments,REVENUE
http://statistics.data.gov.uk/id/local-authority/00HY,Wiltshire Council,23/06/2011,1900616763,"1,319.30",Leszan Travel  wilts ltd ,100600,SN12,Neighbourhood & Planning,SEN Primary,Transport Contracts,Third Party Payments,REVENUE
http://statistics.data.gov.uk/id/local-authority/00HY,Wiltshire Council,23/06/2011,1900616781,"1,330.00",Leszan Travel  wilts ltd ,100600,SN12,Neighbourhood & Planning,SEN Secondary,Transport Contracts,Third Party Payments,REVENUE
http://statistics.data.gov.uk/id/local-authority/00HY,Wiltshire Council,17/06/2011,1900609102,"1,345.20",Leszan Travel  wilts ltd ,100600,SN12,Neighbourhood & Planning,SEN Secondary,Transport Contracts,Third Party Payments,REVENUE
http://statistics.data.gov.uk/id/local-authority/00HY,Wiltshire Council,23/06/2011,1900616779,"1,345.20",Leszan Travel  wilts ltd ,100600,SN12,Neighbourhood & Planning,SEN Primary,Transport Contracts,Third Party Payments,REVENUE
http://statistics.data.gov.uk/id/local-authority/00HY,Wiltshire Council,23/06/2011,1900616123,"1,396.50",Leszan Travel  wilts ltd ,100600,SN12,Neighbourhood & Planning,SEN Secondary,Transport Contracts,Third Party Payments,REVENUE
http://statistics.data.gov.uk/id/local-authority/00HY,Wiltshire Council,17/06/2011,1900609107,"1,407.83",Leszan Travel  wilts ltd ,100600,SN12,Neighbourhood & Planning,SEN Secondary,Transport Contracts,Third Party Payments,REVENUE
http://statistics.data.gov.uk/id/local-authority/00HY,Wiltshire Council,17/06/2011,1900609107,"1,407.83",Leszan Travel  wilts ltd ,100600,SN12,Neighbourhood & Planning,SEN 16+ Secondary,Transport Contracts,Third Party Payments,REVENUE
http://statistics.data.gov.uk/id/local-authority/00HY,Wiltshire Council,23/06/2011,1900616125,"1,501.00",Leszan Travel  wilts ltd ,100600,SN12,Neighbourhood & Planning,SEN Secondary,Transport Contracts,Third Party Payments,REVENUE
http://statistics.data.gov.uk/id/local-authority/00HY,Wiltshire Council,23/06/2011,1900616126,"1,520.00",Leszan Travel  wilts ltd ,100600,SN12,Neighbourhood & Planning,SEN Secondary,Transport Contracts,Third Party Payments,REVENUE
http://statistics.data.gov.uk/id/local-authority/00HY,Wiltshire Council,23/06/2011,1900616757,"1,629.11",Leszan Travel  wilts ltd ,100600,SN12,Neighbourhood & Planning,DCS Kennet MenHthO65,Transport Contracts,Third Party Payments,REVENUE
http://statistics.data.gov.uk/id/local-authority/00HY,Wiltshire Council,23/06/2011,1900616143,"1,634.00",Leszan Travel  wilts ltd ,100600,SN12,Neighbourhood & Planning,SEN Secondary,Transport Contracts,Third Party Payments,REVENUE
http://statistics.data.gov.uk/id/local-authority/00HY,Wiltshire Council,23/06/2011,1900616782,"1,634.00",Leszan Travel  wilts ltd ,100600,SN12,Neighbourhood & Planning,SEN Primary,Transport Contracts,Third Party Payments,REVENUE
http://statistics.data.gov.uk/id/local-authority/00HY,Wiltshire Council,23/06/2011,1900616130,"1,650.13",Leszan Travel  wilts ltd ,100600,SN12,Neighbourhood & Planning,SEN 16+ Secondary,Transport Contracts,Third Party Payments,REVENUE
http://statistics.data.gov.uk/id/local-authority/00HY,Wiltshire Council,24/06/2011,1900616945,"1,664.62",Leszan Travel  wilts ltd ,100600,SN12,Neighbourhood & Planning,DCS Kennet MenHthO65,Transport Contracts,Third Party Payments,REVENUE
http://statistics.data.gov.uk/id/local-authority/00HY,Wiltshire Council,23/06/2011,1900616759,"1,672.00",Leszan Travel  wilts ltd ,100600,SN12,Neighbourhood & Planning,SEN Primary,Transport Contracts,Third Party Payments,REVENUE
http://statistics.data.gov.uk/id/local-authority/00HY,Wiltshire Council,23/06/2011,1900616124,"1,673.77",Leszan Travel  wilts ltd ,100600,SN12,Neighbourhood & Planning,SEN Secondary,Transport Contracts,Third Party Payments,REVENUE
http://statistics.data.gov.uk/id/local-authority/00HY,Wiltshire Council,23/06/2011,1900616142,"1,691.00",Leszan Travel  wilts ltd ,100600,SN12,Neighbourhood & Planning,SEN Primary,Transport Contracts,Third Party Payments,REVENUE
http://statistics.data.gov.uk/id/local-authority/00HY,Wiltshire Council,23/06/2011,1900616757,"1,714.87",Leszan Travel  wilts ltd ,100600,SN12,Neighbourhood & Planning,DCS East Locality OP,Transport Contracts,Third Party Payments,REVENUE
http://statistics.data.gov.uk/id/local-authority/00HY,Wiltshire Council,24/06/2011,1900616945,"1,761.42",Leszan Travel  wilts ltd ,100600,SN12,Neighbourhood & Planning,DCS East Locality OP,Transport Contracts,Third Party Payments,REVENUE
http://statistics.data.gov.uk/id/local-authority/00HY,Wiltshire Council,23/06/2011,1900616212,"2,034.78",Leszan Travel  wilts ltd ,100600,SN12,Neighbourhood & Planning,DCS CTPLD U65,Transport Contracts,Third Party Payments,REVENUE
http://statistics.data.gov.uk/id/local-authority/00HY,Wiltshire Council,17/06/2011,1900609092,"2,166.00",Leszan Travel  wilts ltd ,100600,SN12,Neighbourhood & Planning,SEN Secondary,Transport Contracts,Third Party Payments,REVENUE
http://statistics.data.gov.uk/id/local-authority/00HY,Wiltshire Council,23/06/2011,1900616758,"2,622.00",Leszan Travel  wilts ltd ,100600,SN12,Neighbourhood & Planning,SEN Secondary,Transport Contracts,Third Party Payments,REVENUE
http://statistics.data.gov.uk/id/local-authority/00HY,Wiltshire Council,17/06/2011,1900609114,"7,643.62",Leszan Travel  wilts ltd ,100600,SN12,Neighbourhood & Planning,SEN Primary,Transport Contracts,Third Party Payments,REVENUE
http://statistics.data.gov.uk/id/local-authority/00HY,Wiltshire Council,24/06/2011,1900616949,"7,643.62",Leszan Travel  wilts ltd ,100600,SN12,Neighbourhood & Planning,SEN Primary,Transport Contracts,Third Party Payments,REVENUE
http://statistics.data.gov.uk/id/local-authority/00HY,Wiltshire Council,15/06/2011,1900607988,"1,310.99",Frome Minibuses ,100601,BA11,Neighbourhood & Planning,Public Transport,Transport Contracts,Third Party Payments,REVENUE
http://statistics.data.gov.uk/id/local-authority/00HY,Wiltshire Council,15/06/2011,1900607983,"2,161.23",Frome Minibuses ,100601,BA11,Neighbourhood & Planning,Public Transport,Transport Contracts,Third Party Payments,REVENUE
http://statistics.data.gov.uk/id/local-authority/00HY,Wiltshire Council,15/06/2011,1900607988,"2,491.07",Frome Minibuses ,100601,BA11,Neighbourhood & Planning,Mainstream Primary,Transport Contracts,Third Party Payments,REVENUE
http://statistics.data.gov.uk/id/local-authority/00HY,Wiltshire Council,15/06/2011,1900607985,"2,916.18",Frome Minibuses ,100601,BA11,Neighbourhood & Planning,Mainstream Secondary,Transport Contracts,Third Party Payments,REVENUE
http://statistics.data.gov.uk/id/local-authority/00HY,Wiltshire Council,27/06/2011,1900617313,"3,803.64",Frome Minibuses ,100601,BA11,Neighbourhood & Planning,Concessionary Fares,Compensation for Concessionary fares,Third Party Payments,REVENUE
http://statistics.data.gov.uk/id/local-authority/00HY,Wiltshire Council,23/06/2011,1900616209,"5,009.36",Frome Minibuses ,100601,BA11,Neighbourhood & Planning,Public Transport,Transport Contracts,Third Party Payments,REVENUE
http://statistics.data.gov.uk/id/local-authority/00HY,Wiltshire Council,15/06/2011,1900607981,"5,829.29",Frome Minibuses ,100601,BA11,Neighbourhood & Planning,Public Transport,Transport Contracts,Third Party Payments,REVENUE
http://statistics.data.gov.uk/id/local-authority/00HY,Wiltshire Council,15/06/2011,1900607984,"7,370.03",Frome Minibuses ,100601,BA11,Neighbourhood & Planning,Public Transport,Transport Contracts,Third Party Payments,REVENUE
http://statistics.data.gov.uk/id/local-authority/00HY,Wiltshire Council,27/06/2011,1900617288,"8,051.43",Frome Minibuses ,100601,BA11,Neighbourhood & Planning,Concessionary Fares,Compensation for Concessionary fares,Third Party Payments,REVENUE
http://statistics.data.gov.uk/id/local-authority/00HY,Wiltshire Council,28/06/2011,1900617622,"36,955.00",C J Deighton  and  Co  Limited ,100612,BA13,Wiltshire Council,Wiltshire Council,Buildings Minor Alterations,Premises Related,CAPITAL
http://statistics.data.gov.uk/id/local-authority/00HY,Wiltshire Council,22/06/2011,1900615574,"42,465.00",C J Deighton  and  Co  Limited ,100612,BA13,Wiltshire Council,Wiltshire Council,Buildings Minor Alterations,Premises Related,CAPITAL
http://statistics.data.gov.uk/id/local-authority/00HY,Wiltshire Council,02/06/2011,5105954577,570,Expotel Telecoms Ltd ,100618,BA2 ,Resources,WAN,Hardware Purchases IT,Supplies and Services,REVENUE
http://statistics.data.gov.uk/id/local-authority/00HY,Wiltshire Council,06/06/2011,5105955156,570,Expotel Telecoms Ltd ,100618,BA2 ,Resources,WAN,Hardware Purchases IT,Supplies and Services,REVENUE
http://statistics.data.gov.uk/id/local-authority/00HY,Wiltshire Council,14/06/2011,5105960967,740,Expotel Telecoms Ltd ,100618,BA2 ,Resources,Wrkplc Transform Prg,Telephones - Landlines (incl fax),Supplies and Services,REVENUE
http://statistics.data.gov.uk/id/local-authority/00HY,Wiltshire Council,22/06/2011,1900615608,665,White Horse Cars Ltd ,100619,.,Neighbourhood & Planning,Mainstream Secondary,Transport Contracts,Third Party Payments,REVENUE
http://statistics.data.gov.uk/id/local-authority/00HY,Wiltshire Council,15/06/2011,1900607875,"6,615.88",Sarsen Housing Association Ltd ,100624,SN10,Community Services,S/People,Supporting People - Subsidy,Third Party Payments,REVENUE
http://statistics.data.gov.uk/id/local-authority/00HY,Wiltshire Council,23/06/2011,1900616054,"6,615.88",Sarsen Housing Association Ltd ,100624,SN10,Community Services,S/People,Supporting People - Subsidy,Third Party Payments,REVENUE
http://statistics.data.gov.uk/id/local-authority/00HY,Wiltshire Council,15/06/2011,1900607876,"47,114.20",Sarsen Housing Association Ltd ,100624,SN10,Community Services,S/People,Supporting People - Block Gross,Third Party Payments,REVENUE
http://statistics.data.gov.uk/id/local-authority/00HY,Wiltshire Council,23/06/2011,1900616055,"47,114.20",Sarsen Housing Association Ltd ,100624,SN10,Community Services,S/People,Supporting People - Block Gross,Third Party Payments,REVENUE
http://statistics.data.gov.uk/id/local-authority/00HY,Wiltshire Council,24/06/2011,1900603962,"4,376.58",Lorne Stewart Plc ,100625,BS4 ,Resources,Campus,Preventative Property Maintenance,Premises Related,REVENUE
http://statistics.data.gov.uk/id/local-authority/00HY,Wiltshire Council,29/06/2011,1900617696,"4,376.58",Lorne Stewart Plc ,100625,BS4 ,Resources,Campus,Preventative Property Maintenance,Premises Related,REVENUE
http://statistics.data.gov.uk/id/local-authority/00HY,Wiltshire Council,03/06/2011,1900599527,555.22,A P Taxis ,100628,SN12,Neighbourhood & Planning,SEN Secondary,Transport Contracts,Third Party Payments,REVENUE
http://statistics.data.gov.uk/id/local-authority/00HY,Wiltshire Council,03/06/2011,1900599527,555.22,A P Taxis ,100628,SN12,Neighbourhood & Planning,SEN Rechargable Exp,Transport Contracts,Third Party Payments,REVENUE
http://statistics.data.gov.uk/id/local-authority/00HY,Wiltshire Council,03/06/2011,1900599528,638.94,A P Taxis ,100628,SN12,Neighbourhood & Planning,LAC&16+ North&East,Transport Contracts,Third Party Payments,REVENUE
http://statistics.data.gov.uk/id/local-authority/00HY,Wiltshire Council,03/06/2011,1900599525,"2,901.22",A P Taxis ,100628,SN12,Neighbourhood & Planning,SEN Primary,Transport Contracts,Third Party Payments,REVENUE
http://statistics.data.gov.uk/id/local-authority/00HY,Wiltshire Council,06/06/2011,1900599889,503.15,Williams Taxis ,100633,SP3 ,Neighbourhood & Planning,Mainstream Primary,Transport Contracts,Third Party Payments,REVENUE
http://statistics.data.gov.uk/id/local-authority/00HY,Wiltshire Council,24/06/2011,1900616976,978.9,Williams Taxis ,100633,SP3 ,Neighbourhood & Planning,Mainstream Primary,Transport Contracts,Third Party Payments,REVENUE
http://statistics.data.gov.uk/id/local-authority/00HY,Wiltshire Council,10/06/2011,1900602703,500,Hytech - Water Ltd ,100637,BS19,Neighbourhood & Planning,Closed Site-Rout Mtc,Preventative Property Maintenance,Premises Related,REVENUE
http://statistics.data.gov.uk/id/local-authority/00HY,Wiltshire Council,07/06/2011,1900600187,720,REDACTED PERSONAL DATA,100645,REDACTED PERSONAL DATA,Children & Education,LAC & 16+ Team 2,Client & Social Housing Bed & Breakfast,Third Party Payments,REVENUE
http://statistics.data.gov.uk/id/local-authority/00HY,Wiltshire Council,10/06/2011,1900599674,780,REDACTED PERSONAL DATA,100687,REDACTED PERSONAL DATA,Children & Education,LAC & 16+ Team 1,Client & Social Housing Bed & Breakfast,Third Party Payments,REVENUE
http://statistics.data.gov.uk/id/local-authority/00HY,Wiltshire Council,10/06/2011,1900599684,720,REDACTED PERSONAL DATA,100706,REDACTED PERSONAL DATA,Children & Education,LAC & 16+ Team 1,Client & Social Housing Bed & Breakfast,Third Party Payments,REVENUE
http://statistics.data.gov.uk/id/local-authority/00HY,Wiltshire Council,07/06/2011,1900600185,720,REDACTED PERSONAL DATA,100706,REDACTED PERSONAL DATA,Children & Education,LAC & 16+ Team 2,Client & Social Housing Bed & Breakfast,Third Party Payments,REVENUE
http://statistics.data.gov.uk/id/local-authority/00HY,Wiltshire Council,08/06/2011,5105959064,840,REDACTED PERSONAL DATA,100724,REDACTED PERSONAL DATA,Children & Education,PlacementServices,Fostering Basic,Third Party Payments,REVENUE
http://statistics.data.gov.uk/id/local-authority/00HY,Wiltshire Council,22/06/2011,5105964262,840,REDACTED PERSONAL DATA,100724,REDACTED PERSONAL DATA,Children & Education,PlacementServices,Fostering Basic,Third Party Payments,REVENUE
http://statistics.data.gov.uk/id/local-authority/00HY,Wiltshire Council,08/06/2011,5105959433,589.26,REDACTED PERSONAL DATA,100725,REDACTED PERSONAL DATA,Children & Education,Adoption Services,Adoption Allowances,Third Party Payments,REVENUE
http://statistics.data.gov.uk/id/local-authority/00HY,Wiltshire Council,22/06/2011,5105964457,589.26,REDACTED PERSONAL DATA,100725,REDACTED PERSONAL DATA,Children & Education,Adoption Services,Adoption Allowances,Third Party Payments,REVENUE
http://statistics.data.gov.uk/id/local-authority/00HY,Wiltshire Council,27/06/2011,1900617282,"1,109.07",Community Transport for South Wilts ,100761,SP2 ,Neighbourhood & Planning,Concessionary Fares,Compensation for Concessionary fares,Third Party Payments,REVENUE
http://statistics.data.gov.uk/id/local-authority/00HY,Wiltshire Council,23/06/2011,1900616800,"1,154.58",Community Transport for South Wilts ,100761,SP2 ,Neighbourhood & Planning,Connect 2 Wiltshire,Transport Contracts,Third Party Payments,REVENUE
http://statistics.data.gov.uk/id/local-authority/00HY,Wiltshire Council,23/06/2011,1900616800,"1,266.67",Community Transport for South Wilts ,100761,SP2 ,Neighbourhood & Planning,Mainstream Primary,Transport Contracts,Third Party Payments,REVENUE
http://statistics.data.gov.uk/id/local-authority/00HY,Wiltshire Council,06/06/2011,5105954724,597.2,Carewatch Wessex Carewatch Wessex,100762,SP8 ,Community Services,OP South Locality,Adult Domiciliary Care - Spot,Third Party Payments,REVENUE
http://statistics.data.gov.uk/id/local-authority/00HY,Wiltshire Council,22/06/2011,5105954708,654.7,Carewatch Wessex Carewatch Wessex,100762,SP8 ,Community Services,MH OP West Locality,Adult Domiciliary Care - Spot,Third Party Payments,REVENUE
http://statistics.data.gov.uk/id/local-authority/00HY,Wiltshire Council,22/06/2011,5105954730,757.7,Carewatch Wessex Carewatch Wessex,100762,SP8 ,Community Services,OP West Locality,Adult Domiciliary Care - Spot,Third Party Payments,REVENUE
http://statistics.data.gov.uk/id/local-authority/00HY,Wiltshire Council,02/06/2011,5105954642,759.5,Carewatch Wessex Carewatch Wessex,100762,SP8 ,Community Services,OP South Locality,Adult Domiciliary Care - Spot,Third Party Payments,REVENUE
http://statistics.data.gov.uk/id/local-authority/00HY,Wiltshire Council,22/06/2011,5105954739,787.68,Carewatch Wessex Carewatch Wessex,100762,SP8 ,Community Services,MH OP West Locality,Adult Domiciliary Care - Spot Contribution,Income,REVENUE
http://statistics.data.gov.uk/id/local-authority/00HY,Wiltshire Council,06/06/2011,5105954736,856.6,Carewatch Wessex Carewatch Wessex,100762,SP8 ,Community Services,MH OP West Locality,Adult Domiciliary Care - Spot,Third Party Payments,REVENUE
http://statistics.data.gov.uk/id/local-authority/00HY,Wiltshire Council,22/06/2011,5105954740,859.7,Carewatch Wessex Carewatch Wessex,100762,SP8 ,Community Services,OP South Locality,Adult Domiciliary Care - Spot Contribution,Income,REVENUE
http://statistics.data.gov.uk/id/local-authority/00HY,Wiltshire Council,06/06/2011,5105954714,870.88,Carewatch Wessex Carewatch Wessex,100762,SP8 ,Community Services,PI West Locality,Adult Domiciliary Care - Spot,Third Party Payments,REVENUE
http://statistics.data.gov.uk/id/local-authority/00HY,Wiltshire Council,02/06/2011,5105954643,876,Carewatch Wessex Carewatch Wessex,100762,SP8 ,Community Services,OP South Locality,Adult Domiciliary Care - Spot,Third Party Payments,REVENUE
http://statistics.data.gov.uk/id/local-authority/00HY,Wiltshire Council,06/06/2011,5105954733,945.05,Carewatch Wessex Carewatch Wessex,100762,SP8 ,Community Services,MH OP West Locality,Adult Domiciliary Care - Spot,Third Party Payments,REVENUE
http://statistics.data.gov.uk/id/local-authority/00HY,Wiltshire Council,06/06/2011,5105954716,955.2,Carewatch Wessex Carewatch Wessex,100762,SP8 ,Community Services,OP South Locality,Adult Domiciliary Care - Spot,Third Party Payments,REVENUE
http://statistics.data.gov.uk/id/local-authority/00HY,Wiltshire Council,22/06/2011,5105954737,"1,091.50",Carewatch Wessex Carewatch Wessex,100762,SP8 ,Community Services,MH OP South Locality,Adult Domiciliary Care - Spot Contribution,Income,REVENUE
http://statistics.data.gov.uk/id/local-authority/00HY,Wiltshire Council,22/06/2011,5105954743,"1,150.00",Carewatch Wessex Carewatch Wessex,100762,SP8 ,Community Services,OP South Locality,Adult Domiciliary Care - Spot,Third Party Payments,REVENUE
http://statistics.data.gov.uk/id/local-authority/00HY,Wiltshire Council,22/06/2011,5105954717,"1,184.10",Carewatch Wessex Carewatch Wessex,100762,SP8 ,Community Services,OP West Locality,Adult Domiciliary Care - Spot Contribution,Income,REVENUE
http://statistics.data.gov.uk/id/local-authority/00HY,Wiltshire Council,08/06/2011,5105958970,"1,400.00",REDACTED PERSONAL DATA,100772,REDACTED PERSONAL DATA,Children & Education,PlacementServices,Fostering Basic,Third Party Payments,REVENUE
http://statistics.data.gov.uk/id/local-authority/00HY,Wiltshire Council,22/06/2011,5105964170,"1,400.00",REDACTED PERSONAL DATA,100772,REDACTED PERSONAL DATA,Children & Education,PlacementServices,Fostering Basic,Third Party Payments,REVENUE
http://statistics.data.gov.uk/id/local-authority/00HY,Wiltshire Council,06/06/2011,1900599910,675,Hilltop Taxis ,100836,SP7 ,Neighbourhood & Planning,Mainstream Primary,Transport Contracts,Third Party Payments,REVENUE
http://statistics.data.gov.uk/id/local-authority/00HY,Wiltshire Council,23/06/2011,1900616145,"1,425.00",Hilltop Taxis ,100836,SP7 ,Neighbourhood & Planning,Mainstream Primary,Transport Contracts,Third Party Payments,REVENUE
http://statistics.data.gov.uk/id/local-authority/00HY,Wiltshire Council,24/06/2011,5105965341,507,Alabare Christian Care Centre ,100837,SP1 ,Community Services,CTPLD County CIC U65,Adult Day Care - Spot,Third Party Payments,REVENUE
http://statistics.data.gov.uk/id/local-authority/00HY,Wiltshire Council,08/06/2011,5105958297,659.04,Alabare Christian Care Centre ,100837,SP1 ,Community Services,CTPLD County CIC U65,Supported Living - Without SP payments,Third Party Payments,REVENUE
http://statistics.data.gov.uk/id/local-authority/00HY,Wiltshire Council,22/06/2011,5105964690,780,Alabare Christian Care Centre ,100837,SP1 ,Community Services,CTPLD County CIC U65,Supported Living - Without SP payments,Third Party Payments,REVENUE
http://statistics.data.gov.uk/id/local-authority/00HY,Wiltshire Council,24/06/2011,5105965338,783.64,Alabare Christian Care Centre ,100837,SP1 ,Community Services,MH AOWA South,Adult Domiciliary Care - Spot,Third Party Payments,REVENUE
http://statistics.data.gov.uk/id/local-authority/00HY,Wiltshire Council,08/06/2011,5105958319,819.28,Alabare Christian Care Centre ,100837,SP1 ,Community Services,CTPLD County CIC U65,Supported Living - Without SP payments,Third Party Payments,REVENUE
http://statistics.data.gov.uk/id/local-authority/00HY,Wiltshire Council,22/06/2011,5105964344,"1,179.47",Alabare Christian Care Centre ,100837,SP1 ,Community Services,CTPLD County CIC U65,Supported Living - Without SP payments,Third Party Payments,REVENUE
http://statistics.data.gov.uk/id/local-authority/00HY,Wiltshire Council,08/06/2011,5105958313,"1,306.64",Alabare Christian Care Centre ,100837,SP1 ,Community Services,CTPLD County CIC U65,Supported Living - Without SP payments,Third Party Payments,REVENUE
http://statistics.data.gov.uk/id/local-authority/00HY,Wiltshire Council,08/06/2011,5105958318,"1,313.24",Alabare Christian Care Centre ,100837,SP1 ,Community Services,CTPLD County CIC U65,Supported Living - Without SP payments,Third Party Payments,REVENUE
http://statistics.data.gov.uk/id/local-authority/00HY,Wiltshire Council,24/06/2011,5105965340,"1,419.00",Alabare Christian Care Centre ,100837,SP1 ,Community Services,CTPLD County CIC U65,Supported Living - Without SP payments,Third Party Payments,REVENUE
http://statistics.data.gov.uk/id/local-authority/00HY,Wiltshire Council,08/06/2011,5105958316,"1,461.36",Alabare Christian Care Centre ,100837,SP1 ,Community Services,CTPLD County CIC U65,Supported Living - Without SP payments,Third Party Payments,REVENUE
http://statistics.data.gov.uk/id/local-authority/00HY,Wiltshire Council,22/06/2011,5105964692,"1,560.00",Alabare Christian Care Centre ,100837,SP1 ,Community Services,CTPLD County CIC U65,Supported Living - Without SP payments,Third Party Payments,REVENUE
http://statistics.data.gov.uk/id/local-authority/00HY,Wiltshire Council,22/06/2011,5105964694,"1,560.00",Alabare Christian Care Centre ,100837,SP1 ,Community Services,CTPLD County CIC U65,Supported Living - Without SP payments,Third Party Payments,REVENUE
http://statistics.data.gov.uk/id/local-authority/00HY,Wiltshire Council,08/06/2011,5105958309,"1,560.96",Alabare Christian Care Centre ,100837,SP1 ,Community Services,CTPLD County CIC U65,Supported Living - Without SP payments,Third Party Payments,REVENUE
http://statistics.data.gov.uk/id/local-authority/00HY,Wiltshire Council,08/06/2011,5105958302,"1,564.92",Alabare Christian Care Centre ,100837,SP1 ,Community Services,CTPLD County CIC U65,Supported Living - Without SP payments,Third Party Payments,REVENUE
http://statistics.data.gov.uk/id/local-authority/00HY,Wiltshire Council,08/06/2011,5105958296,"1,588.80",Alabare Christian Care Centre ,100837,SP1 ,Community Services,CTPLD County CIC U65,Supported Living - Without SP payments,Third Party Payments,REVENUE
http://statistics.data.gov.uk/id/local-authority/00HY,Wiltshire Council,08/06/2011,5105958311,"1,741.80",Alabare Christian Care Centre ,100837,SP1 ,Community Services,CTPLD County CIC U65,Supported Living - Without SP payments,Third Party Payments,REVENUE
http://statistics.data.gov.uk/id/local-authority/00HY,Wiltshire Council,08/06/2011,5105958314,"1,751.44",Alabare Christian Care Centre ,100837,SP1 ,Community Services,CTPLD County CIC U65,Supported Living - Without SP payments,Third Party Payments,REVENUE
http://statistics.data.gov.uk/id/local-authority/00HY,Wiltshire Council,08/06/2011,5105958326,"1,751.44",Alabare Christian Care Centre ,100837,SP1 ,Community Services,CTPLD County CIC U65,Supported Living - Without SP payments,Third Party Payments,REVENUE
http://statistics.data.gov.uk/id/local-authority/00HY,Wiltshire Council,08/06/2011,5105958307,"2,208.44",Alabare Christian Care Centre ,100837,SP1 ,Community Services,CTPLD County CIC U65,Supported Living - Without SP payments,Third Party Payments,REVENUE
http://statistics.data.gov.uk/id/local-authority/00HY,Wiltshire Council,08/06/2011,5105958321,"2,454.24",Alabare Christian Care Centre ,100837,SP1 ,Community Services,CTPLD County CIC U65,Supported Living - Without SP payments,Third Party Payments,REVENUE
http://statistics.data.gov.uk/id/local-authority/00HY,Wiltshire Council,24/06/2011,5105965343,"2,674.12",Alabare Christian Care Centre ,100837,SP1 ,Community Services,CTPLD County CIC U65,Supported Living - Without SP payments,Third Party Payments,REVENUE
http://statistics.data.gov.uk/id/local-authority/00HY,Wiltshire Council,24/06/2011,5105965342,"2,727.40",Alabare Christian Care Centre ,100837,SP1 ,Community Services,CTPLD County CIC U65,Supported Living - Without SP payments,Third Party Payments,REVENUE
http://statistics.data.gov.uk/id/local-authority/00HY,Wiltshire Council,08/06/2011,5105958304,"3,219.04",Alabare Christian Care Centre ,100837,SP1 ,Community Services,CTPLD County CIC U65,Supported Living - With SP Payments (3rd Party),Third Party Payments,REVENUE
http://statistics.data.gov.uk/id/local-authority/00HY,Wiltshire Council,08/06/2011,5105958299,"4,085.60",Alabare Christian Care Centre ,100837,SP1 ,Community Services,CTPLD County CIC U65,Supported Living - With SP Payments (3rd Party),Third Party Payments,REVENUE
http://statistics.data.gov.uk/id/local-authority/00HY,Wiltshire Council,08/06/2011,5105958323,"4,085.60",Alabare Christian Care Centre ,100837,SP1 ,Community Services,CTPLD County CIC U65,Supported Living - With SP Payments (3rd Party),Third Party Payments,REVENUE
http://statistics.data.gov.uk/id/local-authority/00HY,Wiltshire Council,08/06/2011,5105958327,"4,085.60",Alabare Christian Care Centre ,100837,SP1 ,Community Services,CTPLD County CIC U65,Supported Living - With SP Payments (3rd Party),Third Party Payments,REVENUE
http://statistics.data.gov.uk/id/local-authority/00HY,Wiltshire Council,08/06/2011,5105958294,"4,136.64",Alabare Christian Care Centre ,100837,SP1 ,Community Services,CTPLD County CIC U65,Supported Living - Without SP payments,Third Party Payments,REVENUE
http://statistics.data.gov.uk/id/local-authority/00HY,Wiltshire Council,15/06/2011,1900607877,"8,760.00",Alabare Christian Care Centre ,100837,SP1 ,Community Services,S/People,Supporting People - Subsidy,Third Party Payments,REVENUE
http://statistics.data.gov.uk/id/local-authority/00HY,Wiltshire Council,23/06/2011,1900616056,"8,760.00",Alabare Christian Care Centre ,100837,SP1 ,Community Services,S/People,Supporting People - Subsidy,Third Party Payments,REVENUE
http://statistics.data.gov.uk/id/local-authority/00HY,Wiltshire Council,09/06/2011,5105959884,"40,700.10",Alabare Christian Care Centre ,100837,SP1 ,Community Services,MH Commissioned Cont,Grants Paid to individuals for Tangible Benefits,Supplies and Services,REVENUE
http://statistics.data.gov.uk/id/local-authority/00HY,Wiltshire Council,29/06/2011,5105967197,"48,488.95",Alabare Christian Care Centre ,100837,SP1 ,Children & Education,External Placements,Adult / Child Care Agency Placement,Third Party Payments,REVENUE
http://statistics.data.gov.uk/id/local-authority/00HY,Wiltshire Council,15/06/2011,1900607878,"87,706.36",Alabare Christian Care Centre ,100837,SP1 ,Community Services,S/People,Supporting People - Block Gross,Third Party Payments,REVENUE
http://statistics.data.gov.uk/id/local-authority/00HY,Wiltshire Council,23/06/2011,1900616057,"87,706.36",Alabare Christian Care Centre ,100837,SP1 ,Community Services,S/People,Supporting People - Block Gross,Third Party Payments,REVENUE
http://statistics.data.gov.uk/id/local-authority/00HY,Wiltshire Council,03/06/2011,1900599453,570,A M S Taxis ,100839,BA14,Neighbourhood & Planning,SEN Secondary,Transport Contracts,Third Party Payments,REVENUE
http://statistics.data.gov.uk/id/local-authority/00HY,Wiltshire Council,07/06/2011,1900600250,593.34,A M S Taxis ,100839,BA14,Neighbourhood & Planning,DCS CTPLD U65,Transport Contracts,Third Party Payments,REVENUE
http://statistics.data.gov.uk/id/local-authority/00HY,Wiltshire Council,02/06/2011,1900599051,915.8,A M S Taxis ,100839,BA14,Neighbourhood & Planning,SEN Secondary,Transport Contracts,Third Party Payments,REVENUE
http://statistics.data.gov.uk/id/local-authority/00HY,Wiltshire Council,07/06/2011,1900600265,933.71,A M S Taxis ,100839,BA14,Neighbourhood & Planning,Community Team East,Transport Contracts,Third Party Payments,REVENUE
http://statistics.data.gov.uk/id/local-authority/00HY,Wiltshire Council,02/06/2011,1900599049,"1,044.00",A M S Taxis ,100839,BA14,Neighbourhood & Planning,SEN Primary,Transport Contracts,Third Party Payments,REVENUE
http://statistics.data.gov.uk/id/local-authority/00HY,Wiltshire Council,02/06/2011,1900599052,"1,116.25",A M S Taxis ,100839,BA14,Neighbourhood & Planning,SEN Secondary,Transport Contracts,Third Party Payments,REVENUE
http://statistics.data.gov.uk/id/local-authority/00HY,Wiltshire Council,02/06/2011,1900599057,"1,182.75",A M S Taxis ,100839,BA14,Neighbourhood & Planning,SEN 16+ Secondary,Transport Contracts,Third Party Payments,REVENUE
http://statistics.data.gov.uk/id/local-authority/00HY,Wiltshire Council,02/06/2011,1900599050,"1,397.80",A M S Taxis ,100839,BA14,Neighbourhood & Planning,SEN Primary,Transport Contracts,Third Party Payments,REVENUE
http://statistics.data.gov.uk/id/local-authority/00HY,Wiltshire Council,03/06/2011,1900599452,"1,691.00",A M S Taxis ,100839,BA14,Neighbourhood & Planning,SEN Primary,Transport Contracts,Third Party Payments,REVENUE
http://statistics.data.gov.uk/id/local-authority/00HY,Wiltshire Council,15/06/2011,1900608135,"1,675.59",Selwood Housing Society Limited ,100844,BA14,Neighbourhood & Planning,Wiltshire Work Grant,Payments to Contractors - Other,Third Party Payments,REVENUE
http://statistics.data.gov.uk/id/local-authority/00HY,Wiltshire Council,27/06/2011,1900617243,"4,962.04",Selwood Housing Society Limited ,100844,BA14,Community Services,Wilts Suppd Living,Miscellaneous Costs,Supplies and Services,REVENUE
http://statistics.data.gov.uk/id/local-authority/00HY,Wiltshire Council,27/06/2011,1900617242,"5,136.60",Selwood Housing Society Limited ,100844,BA14,Community Services,Wilts Suppd Living,Miscellaneous Costs,Supplies and Services,REVENUE
http://statistics.data.gov.uk/id/local-authority/00HY,Wiltshire Council,15/06/2011,1900607879,"6,030.52",Selwood Housing Society Limited ,100844,BA14,Community Services,S/People,Supporting People - Subsidy,Third Party Payments,REVENUE
http://statistics.data.gov.uk/id/local-authority/00HY,Wiltshire Council,23/06/2011,1900616058,"6,030.52",Selwood Housing Society Limited ,100844,BA14,Community Services,S/People,Supporting People - Subsidy,Third Party Payments,REVENUE
http://statistics.data.gov.uk/id/local-authority/00HY,Wiltshire Council,15/06/2011,1900607880,"76,182.96",Selwood Housing Society Limited ,100844,BA14,Community Services,S/People,Supporting People - Block Gross,Third Party Payments,REVENUE
http://statistics.data.gov.uk/id/local-authority/00HY,Wiltshire Council,23/06/2011,1900616059,"76,182.96",Selwood Housing Society Limited ,100844,BA14,Community Services,S/People,Supporting People - Block Gross,Third Party Payments,REVENUE
http://statistics.data.gov.uk/id/local-authority/00HY,Wiltshire Council,20/06/2011,1900609422,581.59,Adrains Engineering Psv ,100848,SN15,Neighbourhood & Planning,Public Transport,Transport Contracts,Third Party Payments,REVENUE
http://statistics.data.gov.uk/id/local-authority/00HY,Wiltshire Council,20/06/2011,1900609417,794.35,Adrains Engineering Psv ,100848,SN15,Neighbourhood & Planning,Public Transport,Transport Contracts,Third Party Payments,REVENUE
http://statistics.data.gov.uk/id/local-authority/00HY,Wiltshire Council,20/06/2011,1900609417,794.35,Adrains Engineering Psv ,100848,SN15,Neighbourhood & Planning,Mainstream Primary,Transport Contracts,Third Party Payments,REVENUE
http://statistics.data.gov.uk/id/local-authority/00HY,Wiltshire Council,06/06/2011,1900599887,"1,157.08",Adrains Engineering Psv ,100848,SN15,Neighbourhood & Planning,Mainstream Secondary,Transport Contracts,Third Party Payments,REVENUE
http://statistics.data.gov.uk/id/local-authority/00HY,Wiltshire Council,27/06/2011,1900617263,"1,157.08",Adrains Engineering Psv ,100848,SN15,Neighbourhood & Planning,Mainstream Secondary,Transport Contracts,Third Party Payments,REVENUE
http://statistics.data.gov.uk/id/local-authority/00HY,Wiltshire Council,27/06/2011,1900617252,"1,491.69",Adrains Engineering Psv ,100848,SN15,Neighbourhood & Planning,Public Transport,Transport Contracts,Third Party Payments,REVENUE
http://statistics.data.gov.uk/id/local-authority/00HY,Wiltshire Council,06/06/2011,1900599905,"1,509.92",Adrains Engineering Psv ,100848,SN15,Neighbourhood & Planning,Mainstream Primary,Transport Contracts,Third Party Payments,REVENUE
http://statistics.data.gov.uk/id/local-authority/00HY,Wiltshire Council,27/06/2011,1900617262,"1,509.92",Adrains Engineering Psv ,100848,SN15,Neighbourhood & Planning,Mainstream Primary,Transport Contracts,Third Party Payments,REVENUE
http://statistics.data.gov.uk/id/local-authority/00HY,Wiltshire Council,06/06/2011,1900599885,"1,691.46",Adrains Engineering Psv ,100848,SN15,Neighbourhood & Planning,Public Transport,Transport Contracts,Third Party Payments,REVENUE
http://statistics.data.gov.uk/id/local-authority/00HY,Wiltshire Council,27/06/2011,1900617261,"1,691.46",Adrains Engineering Psv ,100848,SN15,Neighbourhood & Planning,Public Transport,Transport Contracts,Third Party Payments,REVENUE
http://statistics.data.gov.uk/id/local-authority/00HY,Wiltshire Council,06/06/2011,1900599895,"1,920.99",Adrains Engineering Psv ,100848,SN15,Neighbourhood & Planning,Public Transport,Transport Contracts,Third Party Payments,REVENUE
http://statistics.data.gov.uk/id/local-authority/00HY,Wiltshire Council,06/06/2011,1900599899,"2,375.00",Adrains Engineering Psv ,100848,SN15,Neighbourhood & Planning,Mainstream Secondary,Transport Contracts,Third Party Payments,REVENUE
http://statistics.data.gov.uk/id/local-authority/00HY,Wiltshire Council,20/06/2011,1900609417,"2,383.06",Adrains Engineering Psv ,100848,SN15,Neighbourhood & Planning,Mainstream Secondary,Transport Contracts,Third Party Payments,REVENUE
http://statistics.data.gov.uk/id/local-authority/00HY,Wiltshire Council,27/06/2011,1900617262,"2,516.31",Adrains Engineering Psv ,100848,SN15,Neighbourhood & Planning,Public Transport,Transport Contracts,Third Party Payments,REVENUE
http://statistics.data.gov.uk/id/local-authority/00HY,Wiltshire Council,06/06/2011,1900599905,"2,556.36",Adrains Engineering Psv ,100848,SN15,Neighbourhood & Planning,Public Transport,Transport Contracts,Third Party Payments,REVENUE
http://statistics.data.gov.uk/id/local-authority/00HY,Wiltshire Council,06/06/2011,1900599895,"3,190.91",Adrains Engineering Psv ,100848,SN15,Neighbourhood & Planning,Mainstream Secondary,Transport Contracts,Third Party Payments,REVENUE
http://statistics.data.gov.uk/id/local-authority/00HY,Wiltshire Council,27/06/2011,1900617252,"3,190.91",Adrains Engineering Psv ,100848,SN15,Neighbourhood & Planning,Mainstream Secondary,Transport Contracts,Third Party Payments,REVENUE
http://statistics.data.gov.uk/id/local-authority/00HY,Wiltshire Council,27/06/2011,1900617261,"3,378.90",Adrains Engineering Psv ,100848,SN15,Neighbourhood & Planning,Mainstream Primary,Transport Contracts,Third Party Payments,REVENUE
http://statistics.data.gov.uk/id/local-authority/00HY,Wiltshire Council,06/06/2011,1900599885,"3,396.00",Adrains Engineering Psv ,100848,SN15,Neighbourhood & Planning,Mainstream Primary,Transport Contracts,Third Party Payments,REVENUE
http://statistics.data.gov.uk/id/local-authority/00HY,Wiltshire Council,06/06/2011,1900599899,"3,635.11",Adrains Engineering Psv ,100848,SN15,Neighbourhood & Planning,Public Transport,Transport Contracts,Third Party Payments,REVENUE
http://statistics.data.gov.uk/id/local-authority/00HY,Wiltshire Council,06/06/2011,1900599887,"4,745.80",Adrains Engineering Psv ,100848,SN15,Neighbourhood & Planning,Mainstream Primary,Transport Contracts,Third Party Payments,REVENUE
http://statistics.data.gov.uk/id/local-authority/00HY,Wiltshire Council,27/06/2011,1900617263,"4,745.80",Adrains Engineering Psv ,100848,SN15,Neighbourhood & Planning,Mainstream Primary,Transport Contracts,Third Party Payments,REVENUE
http://statistics.data.gov.uk/id/local-authority/00HY,Wiltshire Council,27/06/2011,1900617263,"8,958.71",Adrains Engineering Psv ,100848,SN15,Neighbourhood & Planning,Public Transport,Transport Contracts,Third Party Payments,REVENUE
http://statistics.data.gov.uk/id/local-authority/00HY,Wiltshire Council,06/06/2011,1900599887,"9,323.83",Adrains Engineering Psv ,100848,SN15,Neighbourhood & Planning,Public Transport,Transport Contracts,Third Party Payments,REVENUE
http://statistics.data.gov.uk/id/local-authority/00HY,Wiltshire Council,03/06/2011,1900599457,684,REDACTED PERSONAL DATA,100851,REDACTED PERSONAL DATA,Neighbourhood & Planning,SEN Primary,Transport Contracts,Third Party Payments,REVENUE
http://statistics.data.gov.uk/id/local-authority/00HY,Wiltshire Council,03/06/2011,1900599457,684,REDACTED PERSONAL DATA,100851,REDACTED PERSONAL DATA,Neighbourhood & Planning,SEN Secondary,Transport Contracts,Third Party Payments,REVENUE
http://statistics.data.gov.uk/id/local-authority/00HY,Wiltshire Council,03/06/2011,1900599457,684,REDACTED PERSONAL DATA,100851,REDACTED PERSONAL DATA,Neighbourhood & Planning,SEN 16+ Secondary,Transport Contracts,Third Party Payments,REVENUE
http://statistics.data.gov.uk/id/local-authority/00HY,Wiltshire Council,13/06/2011,5105960747,530.6,Ordinary Life Project Association ,100855,BA12,Community Services,CTPLD County CIC 65+,Supported Living - Without SP payments,Third Party Payments,REVENUE
http://statistics.data.gov.uk/id/local-authority/00HY,Wiltshire Council,13/06/2011,5105960748,833.8,Ordinary Life Project Association ,100855,BA12,Community Services,CTPLD County CIC 65+,Supported Living - Without SP payments,Third Party Payments,REVENUE
http://statistics.data.gov.uk/id/local-authority/00HY,Wiltshire Council,13/06/2011,5105960744,"1,246.40",Ordinary Life Project Association ,100855,BA12,Community Services,CTPLD County CIC U65,Adult Domiciliary Care - Spot,Third Party Payments,REVENUE
http://statistics.data.gov.uk/id/local-authority/00HY,Wiltshire Council,13/06/2011,5105960737,"1,455.56",Ordinary Life Project Association ,100855,BA12,Community Services,CTPLD County CIC U65,Supported Living - With SP Payments (3rd Party),Third Party Payments,REVENUE
http://statistics.data.gov.uk/id/local-authority/00HY,Wiltshire Council,14/06/2011,5105961198,"1,455.56",Ordinary Life Project Association ,100855,BA12,Community Services,PI West Locality,Supported Living - With SP Payments (3rd Party),Third Party Payments,REVENUE
http://statistics.data.gov.uk/id/local-authority/00HY,Wiltshire Council,13/06/2011,5105960735,"1,516.20",Ordinary Life Project Association ,100855,BA12,Community Services,CTPLD County S75 U65,Supported Living - With SP Payments (3rd Party),Third Party Payments,REVENUE
http://statistics.data.gov.uk/id/local-authority/00HY,Wiltshire Council,13/06/2011,5105960741,"1,516.20",Ordinary Life Project Association ,100855,BA12,Community Services,CTPLD County S75 U65,Supported Living - With SP Payments (3rd Party),Third Party Payments,REVENUE
http://statistics.data.gov.uk/id/local-authority/00HY,Wiltshire Council,13/06/2011,5105960745,"1,516.20",Ordinary Life Project Association ,100855,BA12,Community Services,CTPLD County CIC U65,Supported Living - With SP Payments (3rd Party),Third Party Payments,REVENUE
http://statistics.data.gov.uk/id/local-authority/00HY,Wiltshire Council,14/06/2011,5105961195,"1,576.84",Ordinary Life Project Association ,100855,BA12,Community Services,CTPLD County CIC U65,Supported Living - With SP Payments (3rd Party),Third Party Payments,REVENUE
http://statistics.data.gov.uk/id/local-authority/00HY,Wiltshire Council,14/06/2011,5105961200,"1,789.08",Ordinary Life Project Association ,100855,BA12,Community Services,CTPLD County CIC U65,Supported Living - With SP Payments (3rd Party),Third Party Payments,REVENUE
http://statistics.data.gov.uk/id/local-authority/00HY,Wiltshire Council,08/06/2011,5105956164,"2,481.48",Ordinary Life Project Association ,100855,BA12,Community Services,CTPLD County S75 U65,Adult Residential Placements - Spot Purchase,Third Party Payments,REVENUE
http://statistics.data.gov.uk/id/local-authority/00HY,Wiltshire Council,08/06/2011,5105956146,"2,689.48",Ordinary Life Project Association ,100855,BA12,Community Services,CTPLD County S75 U65,Adult Residential Placements - Spot Purchase,Third Party Payments,REVENUE
http://statistics.data.gov.uk/id/local-authority/00HY,Wiltshire Council,08/06/2011,5105955831,"2,941.04",Ordinary Life Project Association ,100855,BA12,Community Services,CTPLD County S75 65+,Adult Residential Placements - Spot Purchase,Third Party Payments,REVENUE
http://statistics.data.gov.uk/id/local-authority/00HY,Wiltshire Council,16/06/2011,5105961971,"3,156.00",Ordinary Life Project Association ,100855,BA12,Community Services,CTPLD County S75 U65,Adult Residential Placements - Spot Purchase,Third Party Payments,REVENUE
http://statistics.data.gov.uk/id/local-authority/00HY,Wiltshire Council,16/06/2011,5105961903,"3,376.28",Ordinary Life Project Association ,100855,BA12,Community Services,CTPLD County CIC U65,Adult Residential Placements - Spot Purchase,Third Party Payments,REVENUE
http://statistics.data.gov.uk/id/local-authority/00HY,Wiltshire Council,08/06/2011,5105956066,"3,400.00",Ordinary Life Project Association ,100855,BA12,Community Services,PI North Locality,Adult Residential Placements - Spot Purchase,Third Party Payments,REVENUE
http://statistics.data.gov.uk/id/local-authority/00HY,Wiltshire Council,08/06/2011,5105958184,"3,400.00",Ordinary Life Project Association ,100855,BA12,Community Services,PI North Locality,Adult Residential Placements - Spot Purchase,Third Party Payments,REVENUE
http://statistics.data.gov.uk/id/local-authority/00HY,Wiltshire Council,08/06/2011,5105955993,"3,400.56",Ordinary Life Project Association ,100855,BA12,Community Services,CTPLD County S75 65+,Adult Residential Placements - Spot Purchase,Third Party Payments,REVENUE
http://statistics.data.gov.uk/id/local-authority/00HY,Wiltshire Council,08/06/2011,5105956064,"3,471.68",Ordinary Life Project Association ,100855,BA12,Community Services,CTPLD County CIC U65,Adult Residential Placements - Spot Purchase,Third Party Payments,REVENUE
http://statistics.data.gov.uk/id/local-authority/00HY,Wiltshire Council,08/06/2011,5105955939,"3,642.44",Ordinary Life Project Association ,100855,BA12,Community Services,CTPLD County S75 U65,Adult Residential Placements - Spot Purchase,Third Party Payments,REVENUE
http://statistics.data.gov.uk/id/local-authority/00HY,Wiltshire Council,08/06/2011,5105956021,"3,659.36",Ordinary Life Project Association ,100855,BA12,Community Services,CTPLD County S75 U65,Adult Residential Placements - Spot Purchase,Third Party Payments,REVENUE
http://statistics.data.gov.uk/id/local-authority/00HY,Wiltshire Council,08/06/2011,5105955795,"3,700.44",Ordinary Life Project Association ,100855,BA12,Community Services,CTPLD County S75 65+,Adult Residential Placements - Spot Purchase,Third Party Payments,REVENUE
http://statistics.data.gov.uk/id/local-authority/00HY,Wiltshire Council,08/06/2011,5105955873,"3,705.24",Ordinary Life Project Association ,100855,BA12,Community Services,CTPLD County S75 65+,Adult Residential Placements - Spot Purchase,Third Party Payments,REVENUE
http://statistics.data.gov.uk/id/local-authority/00HY,Wiltshire Council,08/06/2011,5105956134,"3,781.04",Ordinary Life Project Association ,100855,BA12,Community Services,CTPLD County CIC U65,Adult Residential Placements - Spot Purchase,Third Party Payments,REVENUE
http://statistics.data.gov.uk/id/local-authority/00HY,Wiltshire Council,08/06/2011,5105956046,"3,781.08",Ordinary Life Project Association ,100855,BA12,Community Services,CTPLD County CIC U65,Adult Residential Placements - Spot Purchase,Third Party Payments,REVENUE
http://statistics.data.gov.uk/id/local-authority/00HY,Wiltshire Council,08/06/2011,5105956184,"3,806.84",Ordinary Life Project Association ,100855,BA12,Community Services,CTPLD County S75 U65,Adult Residential Placements - Spot Purchase,Third Party Payments,REVENUE
http://statistics.data.gov.uk/id/local-authority/00HY,Wiltshire Council,16/06/2011,5105961901,"3,816.56",Ordinary Life Project Association ,100855,BA12,Community Services,CTPLD County CIC U65,Adult Residential Placements - Spot Purchase,Third Party Payments,REVENUE
http://statistics.data.gov.uk/id/local-authority/00HY,Wiltshire Council,08/06/2011,5105956100,"3,869.72",Ordinary Life Project Association ,100855,BA12,Community Services,CTPLD County S75 U65,Adult Residential Placements - Spot Purchase,Third Party Payments,REVENUE
http://statistics.data.gov.uk/id/local-authority/00HY,Wiltshire Council,08/06/2011,5105956160,"3,934.52",Ordinary Life Project Association ,100855,BA12,Community Services,CTPLD County CIC U65,Adult Residential Placements - Spot Purchase,Third Party Payments,REVENUE
http://statistics.data.gov.uk/id/local-authority/00HY,Wiltshire Council,08/06/2011,5105955871,"3,966.48",Ordinary Life Project Association ,100855,BA12,Community Services,CTPLD County S75 65+,Adult Residential Placements - Spot Purchase,Third Party Payments,REVENUE
http://statistics.data.gov.uk/id/local-authority/00HY,Wiltshire Council,08/06/2011,5105955785,"4,466.00",Ordinary Life Project Association ,100855,BA12,Community Services,CTPLD County S75 U65,Adult Residential Placements - Spot Purchase,Third Party Payments,REVENUE
http://statistics.data.gov.uk/id/local-authority/00HY,Wiltshire Council,08/06/2011,5105955977,"4,466.00",Ordinary Life Project Association ,100855,BA12,Community Services,CTPLD County S75 U65,Adult Residential Placements - Spot Purchase,Third Party Payments,REVENUE
http://statistics.data.gov.uk/id/local-authority/00HY,Wiltshire Council,08/06/2011,5105958482,"5,109.48",Ordinary Life Project Association ,100855,BA12,Community Services,CTPLD County CIC U65,Supported Living - With SP Payments (3rd Party),Third Party Payments,REVENUE
http://statistics.data.gov.uk/id/local-authority/00HY,Wiltshire Council,13/06/2011,5105960732,"5,186.12",Ordinary Life Project Association ,100855,BA12,Community Services,CTPLD County CIC U65,Supported Living - With SP Payments (3rd Party),Third Party Payments,REVENUE
http://statistics.data.gov.uk/id/local-authority/00HY,Wiltshire Council,16/06/2011,5105961924,"5,669.16",Ordinary Life Project Association ,100855,BA12,Community Services,CTPLD County CIC 65+,Adult Residential Placements - Spot Purchase,Third Party Payments,REVENUE
http://statistics.data.gov.uk/id/local-authority/00HY,Wiltshire Council,08/06/2011,5105956192,"5,800.00",Ordinary Life Project Association ,100855,BA12,Community Services,CTPLD County CIC U65,Adult Residential Placements - Spot Purchase,Third Party Payments,REVENUE
http://statistics.data.gov.uk/id/local-authority/00HY,Wiltshire Council,08/06/2011,5105956114,"6,443.24",Ordinary Life Project Association ,100855,BA12,Community Services,CTPLD County S75 U65,Adult Residential Placements - Spot Purchase,Third Party Payments,REVENUE
http://statistics.data.gov.uk/id/local-authority/00HY,Wiltshire Council,15/06/2011,1900607881,"11,069.48",Ordinary Life Project Association ,100855,BA12,Community Services,S/People,Supporting People - Subsidy,Third Party Payments,REVENUE
http://statistics.data.gov.uk/id/local-authority/00HY,Wiltshire Council,23/06/2011,1900616060,"11,069.48",Ordinary Life Project Association ,100855,BA12,Community Services,S/People,Supporting People - Subsidy,Third Party Payments,REVENUE
http://statistics.data.gov.uk/id/local-authority/00HY,Wiltshire Council,08/06/2011,1900601970,940.5,REDACTED PERSONAL DATA,100858,REDACTED PERSONAL DATA,Neighbourhood & Planning,Mainstream Primary,Transport Contracts,Third Party Payments,REVENUE
http://statistics.data.gov.uk/id/local-authority/00HY,Wiltshire Council,16/06/2011,1900608433,570,Deandrive ,100861,SP3 ,Neighbourhood & Planning,Mainstream Primary,Transport Contracts,Third Party Payments,REVENUE
http://statistics.data.gov.uk/id/local-authority/00HY,Wiltshire Council,27/06/2011,1900617266,874,Deandrive ,100861,SP3 ,Neighbourhood & Planning,Mainstream Primary,Transport Contracts,Third Party Payments,REVENUE
http://statistics.data.gov.uk/id/local-authority/00HY,Wiltshire Council,23/06/2011,1900616777,883.5,Grosvenor Travel ,100865,SP7 ,Neighbourhood & Planning,Mainstream Primary,Transport Contracts,Third Party Payments,REVENUE
http://statistics.data.gov.uk/id/local-authority/00HY,Wiltshire Council,23/06/2011,1900616773,"2,362.30",Grosvenor Travel ,100865,SP7 ,Neighbourhood & Planning,Mainstream Secondary,Transport Contracts,Third Party Payments,REVENUE
http://statistics.data.gov.uk/id/local-authority/00HY,Wiltshire Council,24/06/2011,5105965227,"1,126.25",Voyage ,100870,WS13,Community Services,PI West Locality,Adult Residential Respite contribution - Spot,Income,REVENUE
http://statistics.data.gov.uk/id/local-authority/00HY,Wiltshire Council,24/06/2011,5105965226,"1,128.85",Voyage ,100870,WS13,Community Services,PI West Locality,Adult Residential Respite contribution - Spot,Income,REVENUE
http://statistics.data.gov.uk/id/local-authority/00HY,Wiltshire Council,08/06/2011,1900600463,"1,344.40",Voyage ,100870,WS13,Community Services,FNC,Adult Care Funded Nursing Care - Out of County Cli,Third Party Payments,REVENUE
http://statistics.data.gov.uk/id/local-authority/00HY,Wiltshire Council,08/06/2011,5105958569,"2,338.00",Voyage ,100870,WS13,Community Services,CTPLD County CIC U65,Supported Living - Without SP payments,Third Party Payments,REVENUE
http://statistics.data.gov.uk/id/local-authority/00HY,Wiltshire Council,08/06/2011,5105958426,"2,530.96",Voyage ,100870,WS13,Community Services,CTPLD County CIC U65,Supported Living - Without SP payments,Third Party Payments,REVENUE
http://statistics.data.gov.uk/id/local-authority/00HY,Wiltshire Council,08/06/2011,5105958418,"2,692.56",Voyage ,100870,WS13,Community Services,CTPLD County CIC U65,Supported Living - With SP Payments (3rd Party),Third Party Payments,REVENUE
http://statistics.data.gov.uk/id/local-authority/00HY,Wiltshire Council,08/06/2011,5105958573,"2,692.56",Voyage ,100870,WS13,Community Services,CTPLD County CIC 65+,Supported Living - With SP Payments (3rd Party),Third Party Payments,REVENUE
http://statistics.data.gov.uk/id/local-authority/00HY,Wiltshire Council,08/06/2011,5105958430,"2,693.68",Voyage ,100870,WS13,Community Services,PI South Locality,Supported Living - With SP Payments (3rd Party),Third Party Payments,REVENUE
http://statistics.data.gov.uk/id/local-authority/00HY,Wiltshire Council,08/06/2011,5105958570,"2,736.44",Voyage ,100870,WS13,Community Services,CTPLD County CIC U65,Supported Living - With SP Payments (3rd Party),Third Party Payments,REVENUE
http://statistics.data.gov.uk/id/local-authority/00HY,Wiltshire Council,08/06/2011,5105958434,"2,800.00",Voyage ,100870,WS13,Community Services,PI South Locality,Supported Living - With SP Payments (3rd Party),Third Party Payments,REVENUE
http://statistics.data.gov.uk/id/local-authority/00HY,Wiltshire Council,08/06/2011,5105958566,"2,810.40",Voyage ,100870,WS13,Community Services,CTPLD County CIC U65,Supported Living - With SP Payments (3rd Party),Third Party Payments,REVENUE
http://statistics.data.gov.uk/id/local-authority/00HY,Wiltshire Council,08/06/2011,5105956150,"3,471.68",Voyage ,100870,WS13,Community Services,CTPLD County CIC U65,Adult Residential Placements - Spot Purchase,Third Party Payments,REVENUE
http://statistics.data.gov.uk/id/local-authority/00HY,Wiltshire Council,08/06/2011,5105957099,"3,600.00",Voyage ,100870,WS13,Community Services,PI North Locality,Adult Residential Placements - Spot Purchase,Third Party Payments,REVENUE
http://statistics.data.gov.uk/id/local-authority/00HY,Wiltshire Council,08/06/2011,5105959321,"3,711.92",Voyage ,100870,WS13,Community Services,CTPLD County CIC U65,Supported Living - Without SP payments,Third Party Payments,REVENUE
http://statistics.data.gov.uk/id/local-authority/00HY,Wiltshire Council,08/06/2011,5105958421,"3,940.60",Voyage ,100870,WS13,Community Services,CTPLD County CIC U65,Supported Living - Without SP payments,Third Party Payments,REVENUE
http://statistics.data.gov.uk/id/local-authority/00HY,Wiltshire Council,08/06/2011,5105956334,"4,568.56",Voyage ,100870,WS13,Community Services,CTPLD County CIC U65,Adult Residential Placements - Spot Purchase,Third Party Payments,REVENUE
http://statistics.data.gov.uk/id/local-authority/00HY,Wiltshire Council,08/06/2011,5105956152,"4,749.16",Voyage ,100870,WS13,Community Services,CTPLD County S75 U65,Adult Residential Placements - Spot Purchase,Third Party Payments,REVENUE
http://statistics.data.gov.uk/id/local-authority/00HY,Wiltshire Council,08/06/2011,5105957399,"4,826.56",Voyage ,100870,WS13,Community Services,CTPLD County S75 U65,Adult Care Nursing Placements- Spot Purchase,Third Party Payments,REVENUE
http://statistics.data.gov.uk/id/local-authority/00HY,Wiltshire Council,08/06/2011,5105956374,"4,853.84",Voyage ,100870,WS13,Community Services,CTPLD County S75 U65,Adult Residential Placements - Spot Purchase,Third Party Payments,REVENUE
http://statistics.data.gov.uk/id/local-authority/00HY,Wiltshire Council,08/06/2011,5105956158,"4,908.40",Voyage ,100870,WS13,Community Services,CTPLD County CIC U65,Adult Residential Placements - Spot Purchase,Third Party Payments,REVENUE
http://statistics.data.gov.uk/id/local-authority/00HY,Wiltshire Council,08/06/2011,5105957615,"5,181.56",Voyage ,100870,WS13,Community Services,CTPLD County S75 U65,Adult Residential Placements - Spot Purchase,Third Party Payments,REVENUE
http://statistics.data.gov.uk/id/local-authority/00HY,Wiltshire Council,15/06/2011,1900607882,"5,218.56",Voyage ,100870,WS13,Community Services,S/People,Supporting People - Subsidy,Third Party Payments,REVENUE
http://statistics.data.gov.uk/id/local-authority/00HY,Wiltshire Council,08/06/2011,5105956068,"5,278.00",Voyage ,100870,WS13,Community Services,CTPLD County S75 U65,Adult Residential Placements - Spot Purchase,Third Party Payments,REVENUE
http://statistics.data.gov.uk/id/local-authority/00HY,Wiltshire Council,08/06/2011,5105956368,"5,278.00",Voyage ,100870,WS13,Community Services,CTPLD County CIC U65,Adult Residential Placements - Spot Purchase,Third Party Payments,REVENUE
http://statistics.data.gov.uk/id/local-authority/00HY,Wiltshire Council,08/06/2011,5105956060,"5,302.84",Voyage ,100870,WS13,Community Services,CTPLD County CIC U65,Adult Residential Placements - Spot Purchase,Third Party Payments,REVENUE
http://statistics.data.gov.uk/id/local-authority/00HY,Wiltshire Council,08/06/2011,5105955833,"5,408.80",Voyage ,100870,WS13,Community Services,PI West Locality,Adult Residential Placements - Spot Purchase,Third Party Payments,REVENUE
http://statistics.data.gov.uk/id/local-authority/00HY,Wiltshire Council,08/06/2011,5105956208,"5,435.16",Voyage ,100870,WS13,Community Services,CTPLD County S75 U65,Adult Residential Placements - Spot Purchase,Third Party Payments,REVENUE
http://statistics.data.gov.uk/id/local-authority/00HY,Wiltshire Council,08/06/2011,5105957975,"5,435.20",Voyage ,100870,WS13,Community Services,CTPLD County S75 U65,Adult Residential Placements - Spot Purchase,Third Party Payments,REVENUE
http://statistics.data.gov.uk/id/local-authority/00HY,Wiltshire Council,08/06/2011,5105956372,"5,469.64",Voyage ,100870,WS13,Community Services,CTPLD County S75 U65,Adult Residential Placements - Spot Purchase,Third Party Payments,REVENUE
http://statistics.data.gov.uk/id/local-authority/00HY,Wiltshire Council,16/06/2011,5105961897,"5,481.00",Voyage ,100870,WS13,Community Services,CTPLD County S75 U65,Adult Residential Placements - Spot Purchase,Third Party Payments,REVENUE
http://statistics.data.gov.uk/id/local-authority/00HY,Wiltshire Council,08/06/2011,5105957158,"5,713.64",Voyage ,100870,WS13,Community Services,CTPLD County CIC U65,Adult Residential Placements - Spot Purchase,Third Party Payments,REVENUE
http://statistics.data.gov.uk/id/local-authority/00HY,Wiltshire Council,08/06/2011,5105956250,"5,928.60",Voyage ,100870,WS13,Community Services,CTPLD County CIC U65,Adult Residential Placements - Spot Purchase,Third Party Payments,REVENUE
http://statistics.data.gov.uk/id/local-authority/00HY,Wiltshire Council,08/06/2011,5105956625,"5,952.00",Voyage ,100870,WS13,Community Services,CTPLD County CIC U65,Adult Residential Placements - Spot Purchase,Third Party Payments,REVENUE
http://statistics.data.gov.uk/id/local-authority/00HY,Wiltshire Council,08/06/2011,5105955931,"6,010.64",Voyage ,100870,WS13,Community Services,CTPLD County S75 65+,Adult Residential Placements - Spot Purchase,Third Party Payments,REVENUE
http://statistics.data.gov.uk/id/local-authority/00HY,Wiltshire Council,08/06/2011,5105956346,"6,018.56",Voyage ,100870,WS13,Community Services,CTPLD County CIC U65,Adult Residential Placements - Spot Purchase,Third Party Payments,REVENUE
http://statistics.data.gov.uk/id/local-authority/00HY,Wiltshire Council,08/06/2011,5105956212,"6,242.36",Voyage ,100870,WS13,Community Services,CTPLD County S75 U65,Adult Residential Placements - Spot Purchase,Third Party Payments,REVENUE
http://statistics.data.gov.uk/id/local-authority/00HY,Wiltshire Council,08/06/2011,5105956420,"6,242.36",Voyage ,100870,WS13,Community Services,CTPLD County S75 U65,Adult Residential Placements - Spot Purchase,Third Party Payments,REVENUE
http://statistics.data.gov.uk/id/local-authority/00HY,Wiltshire Council,08/06/2011,5105957117,"6,242.36",Voyage ,100870,WS13,Community Services,CTPLD County S75 U65,Adult Residential Placements - Spot Purchase,Third Party Payments,REVENUE
http://statistics.data.gov.uk/id/local-authority/00HY,Wiltshire Council,08/06/2011,5105957122,"6,242.36",Voyage ,100870,WS13,Community Services,CTPLD County S75 U65,Adult Residential Placements - Spot Purchase,Third Party Payments,REVENUE
http://statistics.data.gov.uk/id/local-authority/00HY,Wiltshire Council,08/06/2011,5105957141,"6,242.36",Voyage ,100870,WS13,Community Services,CTPLD County S75 U65,Adult Residential Placements - Spot Purchase,Third Party Payments,REVENUE
http://statistics.data.gov.uk/id/local-authority/00HY,Wiltshire Council,08/06/2011,5105956360,"6,300.00",Voyage ,100870,WS13,Community Services,CTPLD County CIC U65,Adult Residential Placements - Spot Purchase,Third Party Payments,REVENUE
http://statistics.data.gov.uk/id/local-authority/00HY,Wiltshire Council,08/06/2011,5105957175,"6,336.68",Voyage ,100870,WS13,Community Services,CTPLD County S75 U65,Adult Residential Placements - Spot Purchase,Third Party Payments,REVENUE
http://statistics.data.gov.uk/id/local-authority/00HY,Wiltshire Council,08/06/2011,5105956228,"6,400.00",Voyage ,100870,WS13,Community Services,CTPLD County CIC U65,Adult Residential Placements - Spot Purchase,Third Party Payments,REVENUE
